Body name,Directorate,Service Area Categorisation,Supplier Name,Date,Net Amount,Purpose of Spend,Procurement Classification: ProClass Label,
Solihull MBC,Children's Services - DSG Schools - Non DMT,Children & Education Services,123-Reg.co.uk ,05/02/2016,20.94,IT Equipment & Software,279999 - Information Communications Technology - Not Elsewhere Classified,
Solihull MBC,Communities & Adult Social Care,Cultural & Related Services,123-Reg.co.uk ,24/02/2016,28.96,Materials,279999 - Information Communications Technology - Not Elsewhere Classified,
Solihull MBC,Managed Growth,Environmental and Regulatory Services,608 Vets Solihull,31/03/2016,89.89,Purchase Card Statement Summary,199999 - Facilities & Management Services - Not Elsewhere Classified,
Solihull MBC,Communities & Adult Social Care,Adult Social Care,99P Stores,31/03/2016,5.16,Purchase Card Statement Summary,111200 - Catering - Food & Beverages,
Solihull MBC,Children's Services & Skills,Children & Education Services,99P Stores ,01/03/2016,-0.99,Purchase Card Statement Summary,111200 - Catering - Food & Beverages,
Solihull MBC,Children's Services & Skills,Children & Education Services,99P Stores ,01/03/2016,5.99,Purchase Card Statement Summary,111200 - Catering - Food & Beverages,
Solihull MBC,Children's Services - DSG Schools - Non DMT,Children & Education Services,99P Stores ,29/02/2016,7.90,Capitation,111200 - Catering - Food & Beverages,
Solihull MBC,Children's Services - DSG Schools - Non DMT,Children & Education Services,A F Blakemore & Son Ltd ,04/02/2016,74.75,Capitation,111200 - Catering - Food & Beverages,
Solihull MBC,Children's Services - DSG Schools - Non DMT,Children & Education Services,A J M (1988) Ltd ,04/02/2016,9.12,Building Maint Day To Day,101400 - Building Construction Materials - General Materials,
Solihull MBC,Children's Services - DSG Schools - Non DMT,Children & Education Services,A J M (1988) Ltd ,25/02/2016,18.75,Building Maint Day To Day,101400 - Building Construction Materials - General Materials,
Solihull MBC,Managed Growth,Highways & Transport Services,A1 Motor Store,31/03/2016,53.06,Purchase Card Statement Summary,381500 - Vehicle Management - Parts,
Solihull MBC,Communities & Adult Social Care,Adult Social Care,Action On Elder Abuse ,02/03/2016,52.00,General Office Expenses,201711 - Financial Services - Grants - Non-charitable,
Solihull MBC,Children's Services - DSG Schools - Non DMT,Children & Education Services,Adobe  Acropro Subs ,28/02/2016,14.29,Software Licenses & Support,271430 - Information Communication Technology - Software - Commercial Off-The-Shelf,
Solihull MBC,Resources,Central Services to the Public,Adobe  Creative Cloud ,10/02/2016,638.40,Purchase Card Statement Summary,271430 - Information Communication Technology - Software - Commercial Off-The-Shelf,
Solihull MBC,Resources,Children & Education Services,Adsa Stores Ltd 4231 ,24/02/2016,26.24,Catering Provisions,111200 - Catering - Food & Beverages,
Solihull MBC,Children's Services & Skills,Children & Education Services,Advantis Credit - Moto ,17/02/2016,81.20,Purchase Card Statement Summary,229999 - Healthcare - Not Elsewhere Classified,
Solihull MBC,Children's Services & Skills,Children & Education Services,Alan Warwick ,10/02/2016,12.67,Catering Provisions,111200 - Catering - Food & Beverages,
Solihull MBC,Children's Services & Skills,Children & Education Services,Alan Warwick ,24/02/2016,25.71,Catering Provisions,111200 - Catering - Food & Beverages,
Solihull MBC,Children's Services & Skills,Children & Education Services,Alan Warwick ,09/02/2016,32.49,Catering Provisions,111200 - Catering - Food & Beverages,
Solihull MBC,Communities & Adult Social Care,Adult Social Care,Aldi,31/03/2016,9.37,Purchase Card Statement Summary,111200 - Catering - Food & Beverages,
Solihull MBC,Communities & Adult Social Care,Adult Social Care,Aldi,31/03/2016,13.79,Purchase Card Statement Summary,111200 - Catering - Food & Beverages,
Solihull MBC,Communities & Adult Social Care,Adult Social Care,Aldi,31/03/2016,14.97,Purchase Card Statement Summary,111200 - Catering - Food & Beverages,
Solihull MBC,Communities & Adult Social Care,Adult Social Care,Aldi,31/03/2016,56.01,Purchase Card Statement Summary,111200 - Catering - Food & Beverages,
Solihull MBC,Communities & Adult Social Care,Adult Social Care,Aldi,31/03/2016,71.02,Purchase Card Statement Summary,111200 - Catering - Food & Beverages,
Solihull MBC,Communities & Adult Social Care,Adult Social Care,Aldi ,18/02/2016,0.82,Purchase Card Statement Summary,111200 - Catering - Food & Beverages,
Solihull MBC,Communities & Adult Social Care,Adult Social Care,Aldi ,12/02/2016,2.47,Purchase Card Statement Summary,111200 - Catering - Food & Beverages,
Solihull MBC,Communities & Adult Social Care,Adult Social Care,Aldi ,23/02/2016,2.65,Purchase Card Statement Summary,111200 - Catering - Food & Beverages,
Solihull MBC,Children's Services - DSG Schools - Non DMT,Children & Education Services,Aldi ,19/02/2016,2.88,Capitation,111200 - Catering - Food & Beverages,
Solihull MBC,Communities & Adult Social Care,Adult Social Care,Aldi ,29/02/2016,2.89,Purchase Card Statement Summary,111200 - Catering - Food & Beverages,
Solihull MBC,Communities & Adult Social Care,Adult Social Care,Aldi ,22/02/2016,4.13,Purchase Card Statement Summary,111200 - Catering - Food & Beverages,
Solihull MBC,Communities & Adult Social Care,Adult Social Care,Aldi ,29/02/2016,4.86,Cleaning,111200 - Catering - Food & Beverages,
Solihull MBC,Children's Services - DSG Schools - Non DMT,Children & Education Services,Aldi ,19/02/2016,6.32,Cleaning / Janitrl Materials,111200 - Catering - Food & Beverages,
Solihull MBC,Children's Services - DSG Schools - Non DMT,Children & Education Services,Aldi ,11/02/2016,6.36,Capitation,111200 - Catering - Food & Beverages,
Solihull MBC,Children's Services - DSG Schools - Non DMT,Children & Education Services,Aldi ,26/02/2016,11.22,Meetings & Other Expenses,111200 - Catering - Food & Beverages,
Solihull MBC,Children's Services - DSG Schools - Non DMT,Children & Education Services,Aldi ,12/02/2016,12.22,Capitation,111200 - Catering - Food & Beverages,
Solihull MBC,Communities & Adult Social Care,Adult Social Care,Aldi ,22/02/2016,12.29,Cleaning,111200 - Catering - Food & Beverages,
Solihull MBC,Communities & Adult Social Care,Adult Social Care,Aldi ,12/02/2016,16.79,Cleaning,111200 - Catering - Food & Beverages,
Solihull MBC,Communities & Adult Social Care,Adult Social Care,Aldi ,05/02/2016,17.05,Catering Provisions,111200 - Catering - Food & Beverages,
Solihull MBC,Children's Services - DSG Schools - Non DMT,Children & Education Services,Aldi ,22/02/2016,21.36,Capitation,111200 - Catering - Food & Beverages,
Solihull MBC,Communities & Adult Social Care,Adult Social Care,Aldi ,23/02/2016,37.64,Purchase Card Statement Summary,111200 - Catering - Food & Beverages,
Solihull MBC,Communities & Adult Social Care,Adult Social Care,Aldi ,25/02/2016,40.55,Furniture & Equipment,111200 - Catering - Food & Beverages,
Solihull MBC,Communities & Adult Social Care,Adult Social Care,Aldi ,29/02/2016,40.56,Purchase Card Statement Summary,111200 - Catering - Food & Beverages,
Solihull MBC,Communities & Adult Social Care,Adult Social Care,Aldi ,18/02/2016,55.68,Purchase Card Statement Summary,111200 - Catering - Food & Beverages,
Solihull MBC,Communities & Adult Social Care,Adult Social Care,Aldi ,12/02/2016,58.44,Purchase Card Statement Summary,111200 - Catering - Food & Beverages,
Solihull MBC,Communities & Adult Social Care,Adult Social Care,Aldi ,22/02/2016,67.72,Catering Provisions,111200 - Catering - Food & Beverages,
Solihull MBC,Communities & Adult Social Care,Adult Social Care,Aldi ,29/02/2016,75.14,Catering Provisions,111200 - Catering - Food & Beverages,
Solihull MBC,Managed Growth,Cultural & Related Services,All Bar One ,25/02/2016,25.21,Professional Fees,261600 - Human Resources - Travel & Subsistence,
Solihull MBC,Public Health & Commissioning,Adult Social Care,Amazon Prime,31/03/2016,79,Purchase Card Statement Summary,161000 - Domestic Goods - Commercial,
Solihull MBC,Children's Services - DSG Schools - Non DMT,Children & Education Services,Amazon Prime ,07/02/2016,-79.00,Capitation,161000 - Domestic Goods - Commercial,
Solihull MBC,Children's Services - DSG Schools - Non DMT,Children & Education Services,Amazon Prime ,21/02/2016,79.00,Stationery,161000 - Domestic Goods - Commercial,
Solihull MBC,Children's Services - DSG Schools - Non DMT,Children & Education Services,Amazon Prime ,07/02/2016,79.00,Capitation,161000 - Domestic Goods - Commercial,
Solihull MBC,Children's Services - DSG Schools - Non DMT,Children & Education Services,"Amazon Svcs Europe,Sar",31/03/2016,16.59,Purchase Card Statement Summary,171114 - Education - Literature,
Solihull MBC,Children's Services - DSG Schools - Non DMT,Children & Education Services,Amazon Svcs Europe-Sar ,05/02/2016,1.96,Capitation,171114 - Education - Literature,
Solihull MBC,Children's Services - DSG Schools - Non DMT,Children & Education Services,Amazon Svcs Europe-Sar ,25/02/2016,4.24,Capitation,171114 - Education - Literature,
Solihull MBC,Children's Services - DSG Schools - Non DMT,Children & Education Services,Amazon Svcs Europe-Sar ,02/03/2016,5.25,IT Equipment & Software,171114 - Education - Literature,
Solihull MBC,Children's Services - DSG Schools - Non DMT,Children & Education Services,Amazon Svcs Europe-Sar ,19/02/2016,5.81,Furniture & Equipment,171114 - Education - Literature,
Solihull MBC,Children's Services - DSG Schools - Non DMT,Children & Education Services,Amazon Svcs Europe-Sar ,29/02/2016,6.80,Capitation,171114 - Education - Literature,
Solihull MBC,Children's Services - DSG Schools - Non DMT,Children & Education Services,Amazon Svcs Europe-Sar ,21/02/2016,7.30,Health & Safety,171114 - Education - Literature,
Solihull MBC,Children's Services - DSG Schools - Non DMT,Children & Education Services,Amazon Svcs Europe-Sar ,28/02/2016,8.33,Capitation,171114 - Education - Literature,
Solihull MBC,Children's Services - DSG Schools - Non DMT,Children & Education Services,Amazon Svcs Europe-Sar ,04/02/2016,10.54,IT Equipment & Software,171114 - Education - Literature,
Solihull MBC,Children's Services - DSG Schools - Non DMT,Children & Education Services,Amazon Svcs Europe-Sar ,24/02/2016,10.56,Capitation,171114 - Education - Literature,
Solihull MBC,Children's Services - DSG Schools - Non DMT,Children & Education Services,Amazon Svcs Europe-Sar ,23/02/2016,13.04,Capitation,171114 - Education - Literature,
Solihull MBC,Children's Services - DSG Schools - Non DMT,Children & Education Services,Amazon Svcs Europe-Sar ,01/03/2016,15.04,Capitation,171114 - Education - Literature,
Solihull MBC,Children's Services - DSG Schools - Non DMT,Children & Education Services,Amazon Svcs Europe-Sar ,06/02/2016,17.95,Purchase Card Statement Summary,171114 - Education - Literature,
Solihull MBC,Children's Services - DSG Schools - Non DMT,Children & Education Services,Amazon Svcs Europe-Sar ,15/02/2016,21.67,Capitation,171114 - Education - Literature,
Solihull MBC,Children's Services - DSG Schools - Non DMT,Children & Education Services,Amazon Svcs Europe-Sar ,25/02/2016,22.95,Capitation,171114 - Education - Literature,
Solihull MBC,Children's Services - DSG Schools - Non DMT,Children & Education Services,Amazon Svcs Europe-Sar ,11/02/2016,26.53,Capitation,171114 - Education - Literature,
Solihull MBC,Children's Services - DSG Schools - Non DMT,Children & Education Services,Amazon Svcs Europe-Sar ,03/02/2016,29.22,Capitation,171114 - Education - Literature,
Solihull MBC,Children's Services - DSG Schools - Non DMT,Children & Education Services,Amazon Svcs Europe-Sar ,03/02/2016,37.70,IT Equipment & Software,171114 - Education - Literature,
Solihull MBC,Children's Services - DSG Schools - Non DMT,Children & Education Services,Amazon Svcs Europe-Sar ,09/02/2016,40.00,Capitation,171114 - Education - Literature,
Solihull MBC,Communities & Adult Social Care,Adult Social Care,Amazon Svcs Europe-Sar ,04/02/2016,47.95,IT Equipment & Software,171114 - Education - Literature,
Solihull MBC,Children's Services - DSG Schools - Non DMT,Children & Education Services,Amazon Svcs Europe-Sar ,23/02/2016,58.65,IT Equipment & Software,171114 - Education - Literature,
Solihull MBC,Children's Services - DSG Schools - Non DMT,Children & Education Services,Amazon Svcs Europe-Sar ,26/02/2016,60.48,Capitation,171114 - Education - Literature,
Solihull MBC,Children's Services - DSG Schools - Non DMT,Children & Education Services,Amazon Svcs Europe-Sar ,27/02/2016,115.20,Capitation,171114 - Education - Literature,
Solihull MBC,Children's Services - DSG Schools - Non DMT,Children & Education Services,Amazon UK Marketplace,31/03/2016,2.49,Purchase Card Statement Summary,161000 - Domestic Goods - Commercial,
Solihull MBC,Children's Services - DSG Schools - Non DMT,Children & Education Services,Amazon UK Marketplace,31/03/2016,2.81,Purchase Card Statement Summary,171114 - Education - Literature,
Solihull MBC,Children's Services - DSG Schools - Non DMT,Children & Education Services,Amazon UK Marketplace,31/03/2016,2.81,Purchase Card Statement Summary,161000 - Domestic Goods - Commercial,
Solihull MBC,Children's Services - DSG Schools - Non DMT,Children & Education Services,Amazon UK Marketplace,31/03/2016,3.85,Purchase Card Statement Summary,161000 - Domestic Goods - Commercial,
Solihull MBC,Children's Services - DSG Schools - Non DMT,Children & Education Services,Amazon UK Marketplace,31/03/2016,3.9,Purchase Card Statement Summary,171114 - Education - Literature,
Solihull MBC,Children's Services - DSG Schools - Non DMT,Children & Education Services,Amazon UK Marketplace,31/03/2016,3.99,Purchase Card Statement Summary,161000 - Domestic Goods - Commercial,
Solihull MBC,Children's Services - DSG Schools - Non DMT,Children & Education Services,Amazon UK Marketplace,31/03/2016,4.99,Purchase Card Statement Summary,161000 - Domestic Goods - Commercial,
Solihull MBC,Children's Services - DSG Schools - Non DMT,Children & Education Services,Amazon UK Marketplace,31/03/2016,5.62,Purchase Card Statement Summary,161000 - Domestic Goods - Commercial,
Solihull MBC,Children's Services - DSG Schools - Non DMT,Children & Education Services,Amazon UK Marketplace,31/03/2016,9.98,Purchase Card Statement Summary,161000 - Domestic Goods - Commercial,
Solihull MBC,Children's Services - DSG Schools - Non DMT,Children & Education Services,Amazon UK Marketplace,31/03/2016,12.98,Purchase Card Statement Summary,171114 - Education - Literature,
Solihull MBC,Children's Services - DSG Schools - Non DMT,Children & Education Services,Amazon UK Marketplace,31/03/2016,40.08,Purchase Card Statement Summary,171114 - Education - Literature,
Solihull MBC,Children's Services - DSG Schools - Non DMT,Children & Education Services,Amazon UK Marketplace,31/03/2016,59.9,Purchase Card Statement Summary,161000 - Domestic Goods - Commercial,
Solihull MBC,Communities & Adult Social Care,Adult Social Care,Amazon UK Marketplace,31/03/2016,86.43,Purchase Card Statement Summary,161000 - Domestic Goods - Commercial,
Solihull MBC,Children's Services - DSG Schools - Non DMT,Children & Education Services,Amazon UK Marketplace ,10/02/2016,-44.64,Capitation,161000 - Domestic Goods - Commercial,
Solihull MBC,Children's Services - DSG Schools - Non DMT,Children & Education Services,Amazon UK Marketplace ,04/02/2016,-26.06,Capitation,161000 - Domestic Goods - Commercial,
Solihull MBC,Children's Services - DSG Schools - Non DMT,Children & Education Services,Amazon UK Marketplace ,03/02/2016,-7.79,Capitation,161000 - Domestic Goods - Commercial,
Solihull MBC,Children's Services - DSG Schools - Non DMT,Children & Education Services,Amazon UK Marketplace ,02/03/2016,-2.80,Capitation,161000 - Domestic Goods - Commercial,
Solihull MBC,Managed Growth,Environmental and Regulatory Services,Amazon UK Marketplace ,15/02/2016,0.90,Purchase Card Statement Summary,161000 - Domestic Goods - Commercial,
Solihull MBC,Children's Services - DSG Schools - Non DMT,Children & Education Services,Amazon UK Marketplace ,01/03/2016,1.28,Capitation,161000 - Domestic Goods - Commercial,
Solihull MBC,Children's Services - DSG Schools - Non DMT,Children & Education Services,Amazon UK Marketplace ,04/02/2016,1.56,Capitation,161000 - Domestic Goods - Commercial,
Solihull MBC,Children's Services - DSG Schools - Non DMT,Children & Education Services,Amazon UK Marketplace ,09/02/2016,1.60,Capitation,161000 - Domestic Goods - Commercial,
Solihull MBC,Children's Services - DSG Schools - Non DMT,Children & Education Services,Amazon UK Marketplace ,04/02/2016,1.69,Capitation,171114 - Education - Literature,
Solihull MBC,Children's Services - DSG Schools - Non DMT,Children & Education Services,Amazon UK Marketplace ,06/02/2016,1.70,Capitation,161000 - Domestic Goods - Commercial,
Solihull MBC,Children's Services - DSG Schools - Non DMT,Children & Education Services,Amazon UK Marketplace ,09/02/2016,1.89,Capitation,161000 - Domestic Goods - Commercial,
Solihull MBC,Children's Services - DSG Schools - Non DMT,Children & Education Services,Amazon UK Marketplace ,02/03/2016,1.98,Capitation,171114 - Education - Literature,
Solihull MBC,Children's Services - DSG Schools - Non DMT,Children & Education Services,Amazon UK Marketplace ,04/02/2016,1.99,Capitation,171114 - Education - Literature,
Solihull MBC,Children's Services - DSG Schools - Non DMT,Children & Education Services,Amazon UK Marketplace ,06/02/2016,1.99,Capitation,161000 - Domestic Goods - Commercial,
Solihull MBC,Children's Services - DSG Schools - Non DMT,Children & Education Services,Amazon UK Marketplace ,08/02/2016,2.00,Capitation,171114 - Education - Literature,
Solihull MBC,Children's Services - DSG Schools - Non DMT,Children & Education Services,Amazon UK Marketplace ,27/02/2016,2.17,Health & Safety,161000 - Domestic Goods - Commercial,
Solihull MBC,Children's Services - DSG Schools - Non DMT,Children & Education Services,Amazon UK Marketplace ,06/02/2016,2.18,Capitation,161000 - Domestic Goods - Commercial,
Solihull MBC,Children's Services - DSG Schools - Non DMT,Children & Education Services,Amazon UK Marketplace ,26/02/2016,2.19,Capitation,161000 - Domestic Goods - Commercial,
Solihull MBC,Children's Services - DSG Schools - Non DMT,Children & Education Services,Amazon UK Marketplace ,02/03/2016,2.20,Capitation,161000 - Domestic Goods - Commercial,
Solihull MBC,Children's Services - DSG Schools - Non DMT,Children & Education Services,Amazon UK Marketplace ,24/02/2016,2.23,Capitation,161000 - Domestic Goods - Commercial,
Solihull MBC,Children's Services - DSG Schools - Non DMT,Children & Education Services,Amazon UK Marketplace ,29/02/2016,2.50,Capitation,171114 - Education - Literature,
Solihull MBC,Children's Services - DSG Schools - Non DMT,Children & Education Services,Amazon UK Marketplace ,28/02/2016,2.55,Capitation,161000 - Domestic Goods - Commercial,
Solihull MBC,Children's Services - DSG Schools - Non DMT,Children & Education Services,Amazon UK Marketplace ,01/03/2016,2.58,Capitation,161000 - Domestic Goods - Commercial,
Solihull MBC,Children's Services - DSG Schools - Non DMT,Children & Education Services,Amazon UK Marketplace ,05/02/2016,2.58,Capitation,161000 - Domestic Goods - Commercial,
Solihull MBC,Children's Services - DSG Schools - Non DMT,Children & Education Services,Amazon UK Marketplace ,26/02/2016,2.80,Capitation,161000 - Domestic Goods - Commercial,
Solihull MBC,Children's Services - DSG Schools - Non DMT,Children & Education Services,Amazon UK Marketplace ,26/02/2016,2.80,Capitation,171114 - Education - Literature,
Solihull MBC,Children's Services - DSG Schools - Non DMT,Children & Education Services,Amazon UK Marketplace ,10/02/2016,2.81,Capitation,161000 - Domestic Goods - Commercial,
Solihull MBC,Children's Services - DSG Schools - Non DMT,Children & Education Services,Amazon UK Marketplace ,10/02/2016,2.81,Capitation,161000 - Domestic Goods - Commercial,
Solihull MBC,Children's Services - DSG Schools - Non DMT,Children & Education Services,Amazon UK Marketplace ,10/02/2016,2.81,Capitation,161000 - Domestic Goods - Commercial,
Solihull MBC,Children's Services - DSG Schools - Non DMT,Children & Education Services,Amazon UK Marketplace ,10/02/2016,2.81,Capitation,171114 - Education - Literature,
Solihull MBC,Children's Services - DSG Schools - Non DMT,Children & Education Services,Amazon UK Marketplace ,11/02/2016,2.81,Capitation,171114 - Education - Literature,
Solihull MBC,Children's Services - DSG Schools - Non DMT,Children & Education Services,Amazon UK Marketplace ,25/02/2016,2.81,Capitation,161000 - Domestic Goods - Commercial,
Solihull MBC,Children's Services - DSG Schools - Non DMT,Children & Education Services,Amazon UK Marketplace ,11/02/2016,2.81,Capitation,171114 - Education - Literature,
Solihull MBC,Children's Services - DSG Schools - Non DMT,Children & Education Services,Amazon UK Marketplace ,25/02/2016,2.81,Capitation,161000 - Domestic Goods - Commercial,
Solihull MBC,Children's Services - DSG Schools - Non DMT,Children & Education Services,Amazon UK Marketplace ,26/02/2016,2.90,Capitation,171114 - Education - Literature,
Solihull MBC,Children's Services - DSG Schools - Non DMT,Children & Education Services,Amazon UK Marketplace ,11/02/2016,2.91,Capitation,161000 - Domestic Goods - Commercial,
Solihull MBC,Children's Services - DSG Schools - Non DMT,Children & Education Services,Amazon UK Marketplace ,01/03/2016,2.97,Capitation,161000 - Domestic Goods - Commercial,
Solihull MBC,Children's Services - DSG Schools - Non DMT,Children & Education Services,Amazon UK Marketplace ,26/02/2016,2.97,Capitation,161000 - Domestic Goods - Commercial,
Solihull MBC,Children's Services - DSG Schools - Non DMT,Children & Education Services,Amazon UK Marketplace ,25/02/2016,2.99,Capitation,161000 - Domestic Goods - Commercial,
Solihull MBC,Children's Services - DSG Schools - Non DMT,Children & Education Services,Amazon UK Marketplace ,26/02/2016,3.04,Capitation,171114 - Education - Literature,
Solihull MBC,Children's Services - DSG Schools - Non DMT,Children & Education Services,Amazon UK Marketplace ,29/02/2016,3.13,Capitation,171114 - Education - Literature,
Solihull MBC,Children's Services - DSG Schools - Non DMT,Children & Education Services,Amazon UK Marketplace ,06/02/2016,3.28,Capitation,171114 - Education - Literature,
Solihull MBC,Children's Services - DSG Schools - Non DMT,Children & Education Services,Amazon UK Marketplace ,01/03/2016,3.33,Capitation,161000 - Domestic Goods - Commercial,
Solihull MBC,Children's Services - DSG Schools - Non DMT,Children & Education Services,Amazon UK Marketplace ,03/02/2016,3.68,Capitation,171114 - Education - Literature,
Solihull MBC,Children's Services - DSG Schools - Non DMT,Children & Education Services,Amazon UK Marketplace ,29/02/2016,3.69,Capitation,171114 - Education - Literature,
Solihull MBC,Children's Services - DSG Schools - Non DMT,Children & Education Services,Amazon UK Marketplace ,11/02/2016,3.74,Capitation,161000 - Domestic Goods - Commercial,
Solihull MBC,Children's Services - DSG Schools - Non DMT,Children & Education Services,Amazon UK Marketplace ,08/02/2016,3.74,Capitation,161000 - Domestic Goods - Commercial,
Solihull MBC,Children's Services - DSG Schools - Non DMT,Children & Education Services,Amazon UK Marketplace ,25/02/2016,3.79,Furniture & Equipment,161000 - Domestic Goods - Commercial,
Solihull MBC,Children's Services - DSG Schools - Non DMT,Children & Education Services,Amazon UK Marketplace ,12/02/2016,3.82,Capitation,161000 - Domestic Goods - Commercial,
Solihull MBC,Children's Services - DSG Schools - Non DMT,Children & Education Services,Amazon UK Marketplace ,23/02/2016,3.83,Capitation,161000 - Domestic Goods - Commercial,
Solihull MBC,Children's Services - DSG Schools - Non DMT,Children & Education Services,Amazon UK Marketplace ,04/02/2016,3.85,Capitation,161000 - Domestic Goods - Commercial,
Solihull MBC,Children's Services - DSG Schools - Non DMT,Children & Education Services,Amazon UK Marketplace ,26/02/2016,3.94,Capitation,161000 - Domestic Goods - Commercial,
Solihull MBC,Children's Services - DSG Schools - Non DMT,Children & Education Services,Amazon UK Marketplace ,04/02/2016,3.99,IT Equipment & Software,171114 - Education - Literature,
Solihull MBC,Children's Services - DSG Schools - Non DMT,Children & Education Services,Amazon UK Marketplace ,23/02/2016,4.07,Capitation,161000 - Domestic Goods - Commercial,
Solihull MBC,Children's Services - DSG Schools - Non DMT,Children & Education Services,Amazon UK Marketplace ,05/02/2016,4.08,Capitation,161000 - Domestic Goods - Commercial,
Solihull MBC,Children's Services - DSG Schools - Non DMT,Children & Education Services,Amazon UK Marketplace ,01/03/2016,4.13,Capitation,161000 - Domestic Goods - Commercial,
Solihull MBC,Children's Services - DSG Schools - Non DMT,Children & Education Services,Amazon UK Marketplace ,03/02/2016,4.17,Capitation,161000 - Domestic Goods - Commercial,
Solihull MBC,Children's Services - DSG Schools - Non DMT,Children & Education Services,Amazon UK Marketplace ,19/02/2016,4.28,Capitation,161000 - Domestic Goods - Commercial,
Solihull MBC,Children's Services - DSG Schools - Non DMT,Children & Education Services,Amazon UK Marketplace ,25/02/2016,4.35,Capitation,171114 - Education - Literature,
Solihull MBC,Children's Services - DSG Schools - Non DMT,Children & Education Services,Amazon UK Marketplace ,09/02/2016,4.35,Capitation,161000 - Domestic Goods - Commercial,
Solihull MBC,Children's Services - DSG Schools - Non DMT,Children & Education Services,Amazon UK Marketplace ,23/02/2016,4.48,Capitation,161000 - Domestic Goods - Commercial,
Solihull MBC,Children's Services - DSG Schools - Non DMT,Children & Education Services,Amazon UK Marketplace ,08/02/2016,4.78,Health & Safety,171114 - Education - Literature,
Solihull MBC,Children's Services - DSG Schools - Non DMT,Children & Education Services,Amazon UK Marketplace ,05/02/2016,4.80,Capitation,161000 - Domestic Goods - Commercial,
Solihull MBC,Children's Services - DSG Schools - Non DMT,Children & Education Services,Amazon UK Marketplace ,05/02/2016,4.82,IT Equipment & Software,171114 - Education - Literature,
Solihull MBC,Children's Services - DSG Schools - Non DMT,Children & Education Services,Amazon UK Marketplace ,11/02/2016,4.83,Capitation,161000 - Domestic Goods - Commercial,
Solihull MBC,Children's Services - DSG Schools - Non DMT,Children & Education Services,Amazon UK Marketplace ,26/02/2016,4.94,Capitation,161000 - Domestic Goods - Commercial,
Solihull MBC,Children's Services - DSG Schools - Non DMT,Children & Education Services,Amazon UK Marketplace ,11/02/2016,4.95,Capitation,171114 - Education - Literature,
Solihull MBC,Managed Growth,Highways & Transport Services,Amazon UK Marketplace ,22/02/2016,4.97,Furniture & Equipment,161000 - Domestic Goods - Commercial,
Solihull MBC,Children's Services - DSG Schools - Non DMT,Children & Education Services,Amazon UK Marketplace ,10/02/2016,5.03,Capitation,171114 - Education - Literature,
Solihull MBC,Children's Services - DSG Schools - Non DMT,Children & Education Services,Amazon UK Marketplace ,02/03/2016,5.11,Capitation,161000 - Domestic Goods - Commercial,
Solihull MBC,Children's Services - DSG Schools - Non DMT,Children & Education Services,Amazon UK Marketplace ,04/02/2016,5.12,Capitation,161000 - Domestic Goods - Commercial,
Solihull MBC,Children's Services - DSG Schools - Non DMT,Children & Education Services,Amazon UK Marketplace ,29/02/2016,5.43,Capitation,171114 - Education - Literature,
Solihull MBC,Children's Services - DSG Schools - Non DMT,Children & Education Services,Amazon UK Marketplace ,08/02/2016,5.49,Capitation,161000 - Domestic Goods - Commercial,
Solihull MBC,Children's Services - DSG Schools - Non DMT,Children & Education Services,Amazon UK Marketplace ,03/02/2016,5.50,IT Equipment & Software,161000 - Domestic Goods - Commercial,
Solihull MBC,Children's Services - DSG Schools - Non DMT,Children & Education Services,Amazon UK Marketplace ,06/02/2016,5.59,Capitation,171114 - Education - Literature,
Solihull MBC,Children's Services - DSG Schools - Non DMT,Children & Education Services,Amazon UK Marketplace ,07/02/2016,5.81,Capitation,171114 - Education - Literature,
Solihull MBC,Children's Services - DSG Schools - Non DMT,Children & Education Services,Amazon UK Marketplace ,03/02/2016,5.88,Building Maint Day To Day,161000 - Domestic Goods - Commercial,
Solihull MBC,Children's Services - DSG Schools - Non DMT,Children & Education Services,Amazon UK Marketplace ,26/02/2016,5.98,Capitation,161000 - Domestic Goods - Commercial,
Solihull MBC,Children's Services - DSG Schools - Non DMT,Children & Education Services,Amazon UK Marketplace ,25/02/2016,6.03,Furniture & Equipment,161000 - Domestic Goods - Commercial,
Solihull MBC,Children's Services - DSG Schools - Non DMT,Children & Education Services,Amazon UK Marketplace ,01/03/2016,6.11,Purchase Card Statement Summary,161000 - Domestic Goods - Commercial,
Solihull MBC,Children's Services - DSG Schools - Non DMT,Children & Education Services,Amazon UK Marketplace ,10/02/2016,6.20,Capitation,161000 - Domestic Goods - Commercial,
Solihull MBC,Children's Services - DSG Schools - Non DMT,Children & Education Services,Amazon UK Marketplace ,05/02/2016,6.25,Capitation,171114 - Education - Literature,
Solihull MBC,Children's Services - DSG Schools - Non DMT,Children & Education Services,Amazon UK Marketplace ,26/02/2016,6.25,Capitation,161000 - Domestic Goods - Commercial,
Solihull MBC,Children's Services - DSG Schools - Non DMT,Children & Education Services,Amazon UK Marketplace ,25/02/2016,6.27,Capitation,171114 - Education - Literature,
Solihull MBC,Children's Services - DSG Schools - Non DMT,Children & Education Services,Amazon UK Marketplace ,04/02/2016,6.39,Capitation,161000 - Domestic Goods - Commercial,
Solihull MBC,Children's Services - DSG Schools - Non DMT,Children & Education Services,Amazon UK Marketplace ,12/02/2016,6.42,Capitation,171114 - Education - Literature,
Solihull MBC,Children's Services - DSG Schools - Non DMT,Children & Education Services,Amazon UK Marketplace ,08/02/2016,6.45,Building Maint Day To Day,161000 - Domestic Goods - Commercial,
Solihull MBC,Children's Services - DSG Schools - Non DMT,Children & Education Services,Amazon UK Marketplace ,03/02/2016,6.60,Capitation,171114 - Education - Literature,
Solihull MBC,Children's Services - DSG Schools - Non DMT,Children & Education Services,Amazon UK Marketplace ,02/03/2016,6.68,Capitation,161000 - Domestic Goods - Commercial,
Solihull MBC,Children's Services - DSG Schools - Non DMT,Children & Education Services,Amazon UK Marketplace ,23/02/2016,6.96,Capitation,161000 - Domestic Goods - Commercial,
Solihull MBC,Children's Services - DSG Schools - Non DMT,Children & Education Services,Amazon UK Marketplace ,09/02/2016,6.98,Capitation,161000 - Domestic Goods - Commercial,
Solihull MBC,Children's Services - DSG Schools - Non DMT,Children & Education Services,Amazon UK Marketplace ,25/02/2016,6.99,Capitation,161000 - Domestic Goods - Commercial,
Solihull MBC,Children's Services - DSG Schools - Non DMT,Children & Education Services,Amazon UK Marketplace ,29/02/2016,7.00,Capitation,161000 - Domestic Goods - Commercial,
Solihull MBC,Children's Services - DSG Schools - Non DMT,Children & Education Services,Amazon UK Marketplace ,04/02/2016,7.15,Capitation,161000 - Domestic Goods - Commercial,
Solihull MBC,Children's Services & Skills,Children & Education Services,Amazon UK Marketplace ,05/02/2016,7.23,Purchase Card Statement Summary,171114 - Education - Literature,
Solihull MBC,Children's Services - DSG Schools - Non DMT,Children & Education Services,Amazon UK Marketplace ,10/02/2016,7.25,Capitation,161000 - Domestic Goods - Commercial,
Solihull MBC,Children's Services - DSG Schools - Non DMT,Children & Education Services,Amazon UK Marketplace ,04/02/2016,7.39,Capitation,171114 - Education - Literature,
Solihull MBC,Children's Services - DSG Schools - Non DMT,Children & Education Services,Amazon UK Marketplace ,24/02/2016,7.41,Health & Safety,161000 - Domestic Goods - Commercial,
Solihull MBC,Children's Services - DSG Schools - Non DMT,Children & Education Services,Amazon UK Marketplace ,11/02/2016,7.50,Capitation,161000 - Domestic Goods - Commercial,
Solihull MBC,Children's Services - DSG Schools - Non DMT,Children & Education Services,Amazon UK Marketplace ,26/02/2016,7.79,Capitation,171114 - Education - Literature,
Solihull MBC,Children's Services - DSG Schools - Non DMT,Children & Education Services,Amazon UK Marketplace ,02/03/2016,7.93,IT Equipment & Software,171114 - Education - Literature,
Solihull MBC,Children's Services - DSG Schools - Non DMT,Children & Education Services,Amazon UK Marketplace ,24/02/2016,7.99,Furniture & Equipment,161000 - Domestic Goods - Commercial,
Solihull MBC,Children's Services - DSG Schools - Non DMT,Children & Education Services,Amazon UK Marketplace ,04/02/2016,8.00,Capitation,161000 - Domestic Goods - Commercial,
Solihull MBC,Children's Services - DSG Schools - Non DMT,Children & Education Services,Amazon UK Marketplace ,26/02/2016,8.02,Capitation,171114 - Education - Literature,
Solihull MBC,Children's Services - DSG Schools - Non DMT,Children & Education Services,Amazon UK Marketplace ,25/02/2016,8.05,Capitation,161000 - Domestic Goods - Commercial,
Solihull MBC,Children's Services - DSG Schools - Non DMT,Children & Education Services,Amazon UK Marketplace ,08/02/2016,8.26,Capitation,161000 - Domestic Goods - Commercial,
Solihull MBC,Resources,Central Services to the Public,Amazon UK Marketplace ,03/02/2016,8.32,IT Equipment & Software,171114 - Education - Literature,
Solihull MBC,Children's Services - DSG Schools - Non DMT,Children & Education Services,Amazon UK Marketplace ,03/02/2016,8.70,Capitation,161000 - Domestic Goods - Commercial,
Solihull MBC,Children's Services - DSG Schools - Non DMT,Children & Education Services,Amazon UK Marketplace ,03/02/2016,8.75,Health & Safety,161000 - Domestic Goods - Commercial,
Solihull MBC,Children's Services - DSG Schools - Non DMT,Children & Education Services,Amazon UK Marketplace ,03/02/2016,8.75,Capitation,161000 - Domestic Goods - Commercial,
Solihull MBC,Children's Services - DSG Schools - Non DMT,Children & Education Services,Amazon UK Marketplace ,25/02/2016,8.80,Capitation,171114 - Education - Literature,
Solihull MBC,Children's Services - DSG Schools - Non DMT,Children & Education Services,Amazon UK Marketplace ,26/02/2016,9.00,Maintenance Of Grounds,161000 - Domestic Goods - Commercial,
Solihull MBC,Children's Services - DSG Schools - Non DMT,Children & Education Services,Amazon UK Marketplace ,02/03/2016,9.00,Capitation,161000 - Domestic Goods - Commercial,
Solihull MBC,Children's Services - DSG Schools - Non DMT,Children & Education Services,Amazon UK Marketplace ,24/02/2016,9.10,Building Maint Day To Day,161000 - Domestic Goods - Commercial,
Solihull MBC,Children's Services - DSG Schools - Non DMT,Children & Education Services,Amazon UK Marketplace ,04/02/2016,9.18,Capitation,171114 - Education - Literature,
Solihull MBC,Children's Services - DSG Schools - Non DMT,Children & Education Services,Amazon UK Marketplace ,04/02/2016,9.42,Capitation,171114 - Education - Literature,
Solihull MBC,Children's Services - DSG Schools - Non DMT,Children & Education Services,Amazon UK Marketplace ,11/02/2016,9.42,Capitation,171114 - Education - Literature,
Solihull MBC,Managed Growth - HRA,Housing Revenue Account,Amazon UK Marketplace ,09/02/2016,9.58,Purchase Card Statement Summary,171114 - Education - Literature,
Solihull MBC,Children's Services - DSG Schools - Non DMT,Children & Education Services,Amazon UK Marketplace ,29/02/2016,9.64,Capitation,161000 - Domestic Goods - Commercial,
Solihull MBC,Children's Services - DSG Schools - Non DMT,Children & Education Services,Amazon UK Marketplace ,05/02/2016,9.78,Capitation,161000 - Domestic Goods - Commercial,
Solihull MBC,Children's Services - DSG Schools - Non DMT,Children & Education Services,Amazon UK Marketplace ,08/02/2016,9.90,Capitation,171114 - Education - Literature,
Solihull MBC,Children's Services - DSG Schools - Non DMT,Children & Education Services,Amazon UK Marketplace ,04/02/2016,9.96,Capitation,171114 - Education - Literature,
Solihull MBC,Children's Services - DSG Schools - Non DMT,Children & Education Services,Amazon UK Marketplace ,27/02/2016,9.98,Capitation,161000 - Domestic Goods - Commercial,
Solihull MBC,Children's Services - DSG Schools - Non DMT,Children & Education Services,Amazon UK Marketplace ,02/03/2016,10.25,Capitation,161000 - Domestic Goods - Commercial,
Solihull MBC,Children's Services - DSG Schools - Non DMT,Children & Education Services,Amazon UK Marketplace ,03/02/2016,10.72,Capitation,161000 - Domestic Goods - Commercial,
Solihull MBC,Children's Services - DSG Schools - Non DMT,Children & Education Services,Amazon UK Marketplace ,08/02/2016,10.74,Capitation,161000 - Domestic Goods - Commercial,
Solihull MBC,Children's Services - DSG Schools - Non DMT,Children & Education Services,Amazon UK Marketplace ,07/02/2016,10.82,Capitation,171114 - Education - Literature,
Solihull MBC,Children's Services - DSG Schools - Non DMT,Children & Education Services,Amazon UK Marketplace ,10/02/2016,10.95,Capitation,161000 - Domestic Goods - Commercial,
Solihull MBC,Resources,Central Services to the Public,Amazon UK Marketplace ,04/02/2016,10.99,Purchase Card Statement Summary,171114 - Education - Literature,
Solihull MBC,Children's Services - DSG Schools - Non DMT,Children & Education Services,Amazon UK Marketplace ,24/02/2016,11.00,Furniture & Equipment,161000 - Domestic Goods - Commercial,
Solihull MBC,Children's Services & Skills,Children & Education Services,Amazon UK Marketplace ,02/03/2016,11.10,General Office Expenses,161000 - Domestic Goods - Commercial,
Solihull MBC,Communities & Adult Social Care,Adult Social Care,Amazon UK Marketplace ,09/02/2016,11.25,General Office Expenses,161000 - Domestic Goods - Commercial,
Solihull MBC,Children's Services - DSG Schools - Non DMT,Children & Education Services,Amazon UK Marketplace ,23/02/2016,11.63,Maintenance Of Grounds,161000 - Domestic Goods - Commercial,
Solihull MBC,Children's Services - DSG Schools - Non DMT,Children & Education Services,Amazon UK Marketplace ,02/03/2016,11.63,Capitation,161000 - Domestic Goods - Commercial,
Solihull MBC,Resources,Central Services to the Public,Amazon UK Marketplace ,03/02/2016,11.65,Materials,171114 - Education - Literature,
Solihull MBC,Communities & Adult Social Care,Adult Social Care,Amazon UK Marketplace ,12/02/2016,11.74,Furniture & Equipment,171114 - Education - Literature,
Solihull MBC,Children's Services - DSG Schools - Non DMT,Children & Education Services,Amazon UK Marketplace ,01/03/2016,11.88,Capitation,161000 - Domestic Goods - Commercial,
Solihull MBC,Children's Services - DSG Schools - Non DMT,Children & Education Services,Amazon UK Marketplace ,27/02/2016,11.89,IT Equipment & Software,171114 - Education - Literature,
Solihull MBC,Children's Services - DSG Schools - Non DMT,Children & Education Services,Amazon UK Marketplace ,04/02/2016,11.98,Purchase Card Statement Summary,171114 - Education - Literature,
Solihull MBC,Children's Services - DSG Schools - Non DMT,Children & Education Services,Amazon UK Marketplace ,04/02/2016,11.98,Capitation,161000 - Domestic Goods - Commercial,
Solihull MBC,Managed Growth - HRA,Housing Revenue Account,Amazon UK Marketplace ,05/02/2016,12.49,General Debtors,161000 - Domestic Goods - Commercial,
Solihull MBC,Children's Services - DSG Schools - Non DMT,Children & Education Services,Amazon UK Marketplace ,11/02/2016,12.76,Capitation,161000 - Domestic Goods - Commercial,
Solihull MBC,Children's Services - DSG Schools - Non DMT,Children & Education Services,Amazon UK Marketplace ,02/03/2016,12.89,Capitation,161000 - Domestic Goods - Commercial,
Solihull MBC,Children's Services - DSG Schools - Non DMT,Children & Education Services,Amazon UK Marketplace ,08/02/2016,12.90,Capitation,161000 - Domestic Goods - Commercial,
Solihull MBC,Children's Services & Skills,Children & Education Services,Amazon UK Marketplace ,08/02/2016,12.95,Purchase Card Statement Summary,161000 - Domestic Goods - Commercial,
Solihull MBC,Children's Services & Skills,Children & Education Services,Amazon UK Marketplace ,08/02/2016,12.95,Purchase Card Statement Summary,171114 - Education - Literature,
Solihull MBC,Children's Services - DSG Schools - Non DMT,Children & Education Services,Amazon UK Marketplace ,05/02/2016,12.95,Capitation,161000 - Domestic Goods - Commercial,
Solihull MBC,Children's Services - DSG Schools - Non DMT,Children & Education Services,Amazon UK Marketplace ,05/02/2016,12.96,Capitation,161000 - Domestic Goods - Commercial,
Solihull MBC,Children's Services - DSG Schools - Non DMT,Children & Education Services,Amazon UK Marketplace ,05/02/2016,12.98,Capitation,171114 - Education - Literature,
Solihull MBC,Children's Services - DSG Schools - Non DMT,Children & Education Services,Amazon UK Marketplace ,26/02/2016,12.98,Capitation,171114 - Education - Literature,
Solihull MBC,Children's Services - DSG Schools - Non DMT,Children & Education Services,Amazon UK Marketplace ,08/02/2016,13.35,IT Equipment & Software,161000 - Domestic Goods - Commercial,
Solihull MBC,Children's Services - DSG Schools - Non DMT,Children & Education Services,Amazon UK Marketplace ,01/03/2016,13.49,Capitation,161000 - Domestic Goods - Commercial,
Solihull MBC,Children's Services - DSG Schools - Non DMT,Children & Education Services,Amazon UK Marketplace ,04/02/2016,13.97,Capitation,161000 - Domestic Goods - Commercial,
Solihull MBC,Children's Services - DSG Schools - Non DMT,Children & Education Services,Amazon UK Marketplace ,24/02/2016,13.98,Capitation,161000 - Domestic Goods - Commercial,
Solihull MBC,Children's Services - DSG Schools - Non DMT,Children & Education Services,Amazon UK Marketplace ,26/02/2016,13.99,Capitation,171114 - Education - Literature,
Solihull MBC,Communities & Adult Social Care,Central Services to the Public,Amazon UK Marketplace ,26/02/2016,14.49,Purchase Card Statement Summary,161000 - Domestic Goods - Commercial,
Solihull MBC,Children's Services - DSG Schools - Non DMT,Children & Education Services,Amazon UK Marketplace ,04/02/2016,14.94,Capitation,161000 - Domestic Goods - Commercial,
Solihull MBC,Children's Services - DSG Schools - Non DMT,Children & Education Services,Amazon UK Marketplace ,04/02/2016,14.95,IT Equipment & Software,161000 - Domestic Goods - Commercial,
Solihull MBC,Children's Services - DSG Schools - Non DMT,Children & Education Services,Amazon UK Marketplace ,26/02/2016,14.99,Capitation,171114 - Education - Literature,
Solihull MBC,Children's Services - DSG Schools - Non DMT,Children & Education Services,Amazon UK Marketplace ,25/02/2016,15.00,Capitation,171114 - Education - Literature,
Solihull MBC,Children's Services - DSG Schools - Non DMT,Children & Education Services,Amazon UK Marketplace ,10/02/2016,15.14,Building Maint Day To Day,171114 - Education - Literature,
Solihull MBC,Communities & Adult Social Care,Adult Social Care,Amazon UK Marketplace ,09/02/2016,15.20,Purchase Card Statement Summary,161000 - Domestic Goods - Commercial,
Solihull MBC,Children's Services - DSG Schools - Non DMT,Children & Education Services,Amazon UK Marketplace ,26/02/2016,15.79,Capitation,161000 - Domestic Goods - Commercial,
Solihull MBC,Children's Services - DSG Schools - Non DMT,Children & Education Services,Amazon UK Marketplace ,05/02/2016,15.80,Capitation,171114 - Education - Literature,
Solihull MBC,Children's Services - DSG Schools - Non DMT,Children & Education Services,Amazon UK Marketplace ,23/02/2016,15.95,Capitation,161000 - Domestic Goods - Commercial,
Solihull MBC,Children's Services - DSG Schools - Non DMT,Children & Education Services,Amazon UK Marketplace ,02/03/2016,15.98,Capitation,171114 - Education - Literature,
Solihull MBC,Children's Services - DSG Schools - Non DMT,Children & Education Services,Amazon UK Marketplace ,10/02/2016,15.99,Capitation,161000 - Domestic Goods - Commercial,
Solihull MBC,Children's Services - DSG Schools - Non DMT,Children & Education Services,Amazon UK Marketplace ,09/02/2016,16.47,Capitation,171114 - Education - Literature,
Solihull MBC,Children's Services - DSG Schools - Non DMT,Children & Education Services,Amazon UK Marketplace ,05/02/2016,16.65,Capitation,161000 - Domestic Goods - Commercial,
Solihull MBC,Children's Services - DSG Schools - Non DMT,Children & Education Services,Amazon UK Marketplace ,01/03/2016,16.94,Capitation,171114 - Education - Literature,
Solihull MBC,Children's Services - DSG Schools - Non DMT,Children & Education Services,Amazon UK Marketplace ,10/02/2016,16.99,IT Equipment & Software,161000 - Domestic Goods - Commercial,
Solihull MBC,Children's Services - DSG Schools - Non DMT,Children & Education Services,Amazon UK Marketplace ,07/02/2016,17.62,Capitation,161000 - Domestic Goods - Commercial,
Solihull MBC,Children's Services - DSG Schools - Non DMT,Children & Education Services,Amazon UK Marketplace ,24/02/2016,17.89,Furniture & Equipment,161000 - Domestic Goods - Commercial,
Solihull MBC,Children's Services - DSG Schools - Non DMT,Children & Education Services,Amazon UK Marketplace ,11/02/2016,17.90,Capitation,161000 - Domestic Goods - Commercial,
Solihull MBC,Children's Services & Skills,Children & Education Services,Amazon UK Marketplace ,29/02/2016,17.98,IT Equipment & Software,161000 - Domestic Goods - Commercial,
Solihull MBC,Children's Services - DSG Schools - Non DMT,Children & Education Services,Amazon UK Marketplace ,03/02/2016,17.99,Capitation,171114 - Education - Literature,
Solihull MBC,Children's Services - DSG Schools - Non DMT,Children & Education Services,Amazon UK Marketplace ,05/02/2016,18.12,Maintenance Of Grounds,161000 - Domestic Goods - Commercial,
Solihull MBC,Children's Services - DSG Schools - Non DMT,Children & Education Services,Amazon UK Marketplace ,24/02/2016,18.25,Capitation,161000 - Domestic Goods - Commercial,
Solihull MBC,Children's Services - DSG Schools - Non DMT,Children & Education Services,Amazon UK Marketplace ,05/02/2016,18.32,Building Maint Day To Day,161000 - Domestic Goods - Commercial,
Solihull MBC,Children's Services - DSG Schools - Non DMT,Children & Education Services,Amazon UK Marketplace ,10/02/2016,18.35,Capitation,171114 - Education - Literature,
Solihull MBC,Children's Services & Skills,Children & Education Services,Amazon UK Marketplace ,02/03/2016,18.90,General Office Expenses,161000 - Domestic Goods - Commercial,
Solihull MBC,Children's Services - DSG Schools - Non DMT,Children & Education Services,Amazon UK Marketplace ,26/02/2016,18.98,Capitation,171114 - Education - Literature,
Solihull MBC,Children's Services - DSG Central.,Children & Education Services,Amazon UK Marketplace ,11/02/2016,18.99,Materials,161000 - Domestic Goods - Commercial,
Solihull MBC,Children's Services - DSG Schools - Non DMT,Children & Education Services,Amazon UK Marketplace ,26/02/2016,19.45,Health & Safety,161000 - Domestic Goods - Commercial,
Solihull MBC,Managed Growth - HRA,Housing Revenue Account,Amazon UK Marketplace ,24/02/2016,19.49,General Debtors,161000 - Domestic Goods - Commercial,
Solihull MBC,Children's Services - DSG Schools - Non DMT,Children & Education Services,Amazon UK Marketplace ,25/02/2016,19.70,Capitation,161000 - Domestic Goods - Commercial,
Solihull MBC,Communities & Adult Social Care,Adult Social Care,Amazon UK Marketplace ,17/02/2016,19.74,Purchase Card Statement Summary,161000 - Domestic Goods - Commercial,
Solihull MBC,Children's Services - DSG Schools - Non DMT,Children & Education Services,Amazon UK Marketplace ,09/02/2016,19.91,Capitation,161000 - Domestic Goods - Commercial,
Solihull MBC,Children's Services - DSG Schools - Non DMT,Children & Education Services,Amazon UK Marketplace ,03/02/2016,19.96,IT Equipment & Software,161000 - Domestic Goods - Commercial,
Solihull MBC,Children's Services - DSG Schools - Non DMT,Children & Education Services,Amazon UK Marketplace ,25/02/2016,19.99,Furniture & Equipment,161000 - Domestic Goods - Commercial,
Solihull MBC,Communities & Adult Social Care,Adult Social Care,Amazon UK Marketplace ,24/02/2016,19.99,Furniture & Equipment,161000 - Domestic Goods - Commercial,
Solihull MBC,Children's Services - DSG Schools - Non DMT,Children & Education Services,Amazon UK Marketplace ,22/02/2016,20.00,Capitation,171114 - Education - Literature,
Solihull MBC,Children's Services - DSG Schools - Non DMT,Children & Education Services,Amazon UK Marketplace ,08/02/2016,20.70,Capitation,161000 - Domestic Goods - Commercial,
Solihull MBC,Children's Services - DSG Schools - Non DMT,Children & Education Services,Amazon UK Marketplace ,04/02/2016,20.72,Capitation,171114 - Education - Literature,
Solihull MBC,Children's Services - DSG Schools - Non DMT,Children & Education Services,Amazon UK Marketplace ,23/02/2016,20.82,Capitation,171114 - Education - Literature,
Solihull MBC,Managed Growth - HRA,Housing Revenue Account,Amazon UK Marketplace ,08/02/2016,20.82,General Debtors,161000 - Domestic Goods - Commercial,
Solihull MBC,Communities & Adult Social Care,Cultural & Related Services,Amazon UK Marketplace ,03/02/2016,20.87,Purchase Card Statement Summary,161000 - Domestic Goods - Commercial,
Solihull MBC,Children's Services - DSG Schools - Non DMT,Children & Education Services,Amazon UK Marketplace ,11/02/2016,20.97,Visits & Pupil Activities,161000 - Domestic Goods - Commercial,
Solihull MBC,Children's Services - DSG Schools - Non DMT,Children & Education Services,Amazon UK Marketplace ,24/02/2016,20.98,Purchase Card Statement Summary,171114 - Education - Literature,
Solihull MBC,Managed Growth - HRA,Housing Revenue Account,Amazon UK Marketplace ,16/02/2016,21.05,Purchase Card Statement Summary,161000 - Domestic Goods - Commercial,
Solihull MBC,Children's Services - DSG Schools - Non DMT,Children & Education Services,Amazon UK Marketplace ,29/02/2016,21.58,Capitation,161000 - Domestic Goods - Commercial,
Solihull MBC,Children's Services - DSG Schools - Non DMT,Children & Education Services,Amazon UK Marketplace ,22/02/2016,21.90,Capitation,161000 - Domestic Goods - Commercial,
Solihull MBC,Children's Services - DSG Schools - Non DMT,Children & Education Services,Amazon UK Marketplace ,08/02/2016,21.99,Catering Provisions,161000 - Domestic Goods - Commercial,
Solihull MBC,Children's Services - DSG Schools - Non DMT,Children & Education Services,Amazon UK Marketplace ,06/02/2016,22.75,Building Maint Day To Day,161000 - Domestic Goods - Commercial,
Solihull MBC,Children's Services - DSG Schools - Non DMT,Children & Education Services,Amazon UK Marketplace ,09/02/2016,22.80,Capitation,171114 - Education - Literature,
Solihull MBC,Children's Services - DSG Schools - Non DMT,Children & Education Services,Amazon UK Marketplace ,25/02/2016,22.99,Maintenance Of Grounds,161000 - Domestic Goods - Commercial,
Solihull MBC,Children's Services - DSG Schools - Non DMT,Children & Education Services,Amazon UK Marketplace ,10/02/2016,23.85,Capitation,171114 - Education - Literature,
Solihull MBC,Children's Services - DSG Schools - Non DMT,Children & Education Services,Amazon UK Marketplace ,24/02/2016,23.94,Capitation,161000 - Domestic Goods - Commercial,
Solihull MBC,Resources,Central Services to the Public,Amazon UK Marketplace ,10/02/2016,23.97,Purchase Card Statement Summary,161000 - Domestic Goods - Commercial,
Solihull MBC,Children's Services - DSG Schools - Non DMT,Children & Education Services,Amazon UK Marketplace ,23/02/2016,23.98,Capitation,161000 - Domestic Goods - Commercial,
Solihull MBC,Children's Services - DSG Schools - Non DMT,Children & Education Services,Amazon UK Marketplace ,29/02/2016,24.38,Capitation,161000 - Domestic Goods - Commercial,
Solihull MBC,Children's Services - DSG Schools - Non DMT,Children & Education Services,Amazon UK Marketplace ,03/02/2016,26.06,Capitation,161000 - Domestic Goods - Commercial,
Solihull MBC,Children's Services - DSG Schools - Non DMT,Children & Education Services,Amazon UK Marketplace ,25/02/2016,26.47,Capitation,171114 - Education - Literature,
Solihull MBC,Children's Services - DSG Schools - Non DMT,Children & Education Services,Amazon UK Marketplace ,05/02/2016,27.08,Capitation,161000 - Domestic Goods - Commercial,
Solihull MBC,Children's Services - DSG Schools - Non DMT,Children & Education Services,Amazon UK Marketplace ,21/02/2016,27.39,Health & Safety,161000 - Domestic Goods - Commercial,
Solihull MBC,Managed Growth - HRA,Housing Revenue Account,Amazon UK Marketplace ,05/02/2016,27.80,Purchase Card Statement Summary,171114 - Education - Literature,
Solihull MBC,Children's Services - DSG Schools - Non DMT,Children & Education Services,Amazon UK Marketplace ,02/03/2016,27.92,Capitation,161000 - Domestic Goods - Commercial,
Solihull MBC,Communities & Adult Social Care,Adult Social Care,Amazon UK Marketplace ,16/02/2016,28.95,Furniture & Equipment,161000 - Domestic Goods - Commercial,
Solihull MBC,Children's Services - DSG Schools - Non DMT,Children & Education Services,Amazon UK Marketplace ,08/02/2016,28.98,Building Maint Day To Day,161000 - Domestic Goods - Commercial,
Solihull MBC,Children's Services - DSG Schools - Non DMT,Children & Education Services,Amazon UK Marketplace ,07/02/2016,29.99,IT Equipment & Software,171114 - Education - Literature,
Solihull MBC,Children's Services - DSG Schools - Non DMT,Children & Education Services,Amazon UK Marketplace ,04/02/2016,30.10,Capitation,171114 - Education - Literature,
Solihull MBC,Managed Growth,Environmental and Regulatory Services,Amazon UK Marketplace ,15/02/2016,31.16,Purchase Card Statement Summary,161000 - Domestic Goods - Commercial,
Solihull MBC,Children's Services - DSG Schools - Non DMT,Children & Education Services,Amazon UK Marketplace ,28/02/2016,31.35,Capitation,161000 - Domestic Goods - Commercial,
Solihull MBC,Children's Services & Skills,Children & Education Services,Amazon UK Marketplace ,18/02/2016,31.80,IT Equipment & Software,171114 - Education - Literature,
Solihull MBC,Children's Services - DSG Schools - Non DMT,Children & Education Services,Amazon UK Marketplace ,23/02/2016,32.12,Capitation,161000 - Domestic Goods - Commercial,
Solihull MBC,Children's Services - DSG Schools - Non DMT,Children & Education Services,Amazon UK Marketplace ,24/02/2016,32.98,Capitation,161000 - Domestic Goods - Commercial,
Solihull MBC,Children's Services - DSG Schools - Non DMT,Children & Education Services,Amazon UK Marketplace ,08/02/2016,33.00,Capitation,161000 - Domestic Goods - Commercial,
Solihull MBC,Communities & Adult Social Care,Adult Social Care,Amazon UK Marketplace ,16/02/2016,33.29,Furniture & Equipment,161000 - Domestic Goods - Commercial,
Solihull MBC,Children's Services - DSG Schools - Non DMT,Children & Education Services,Amazon UK Marketplace ,23/02/2016,33.90,Furniture & Equipment,161000 - Domestic Goods - Commercial,
Solihull MBC,Children's Services - DSG Schools - Non DMT,Children & Education Services,Amazon UK Marketplace ,26/02/2016,34.81,Capitation,161000 - Domestic Goods - Commercial,
Solihull MBC,Children's Services - DSG Schools - Non DMT,Children & Education Services,Amazon UK Marketplace ,24/02/2016,35.73,Stationery,171114 - Education - Literature,
Solihull MBC,Children's Services - DSG Schools - Non DMT,Children & Education Services,Amazon UK Marketplace ,08/02/2016,36.73,Capitation,161000 - Domestic Goods - Commercial,
Solihull MBC,Resources,Central Services to the Public,Amazon UK Marketplace ,05/02/2016,37.36,General Office Expenses,161000 - Domestic Goods - Commercial,
Solihull MBC,Children's Services - DSG Schools - Non DMT,Children & Education Services,Amazon UK Marketplace ,02/03/2016,37.47,Capitation,171114 - Education - Literature,
Solihull MBC,Children's Services - DSG Schools - Non DMT,Children & Education Services,Amazon UK Marketplace ,18/02/2016,37.88,IT Equipment & Software,161000 - Domestic Goods - Commercial,
Solihull MBC,Children's Services - DSG Schools - Non DMT,Children & Education Services,Amazon UK Marketplace ,08/02/2016,38.12,Capitation,161000 - Domestic Goods - Commercial,
Solihull MBC,Children's Services - DSG Schools - Non DMT,Children & Education Services,Amazon UK Marketplace ,01/03/2016,39.62,Capitation,161000 - Domestic Goods - Commercial,
Solihull MBC,Resources,Central Services to the Public,Amazon UK Marketplace ,26/02/2016,44.71,General Office Expenses,161000 - Domestic Goods - Commercial,
Solihull MBC,Children's Services - DSG Schools - Non DMT,Children & Education Services,Amazon UK Marketplace ,24/02/2016,45.64,Capitation,161000 - Domestic Goods - Commercial,
Solihull MBC,Children's Services - DSG Schools - Non DMT,Children & Education Services,Amazon UK Marketplace ,01/03/2016,45.93,Maintenance Of Grounds,171114 - Education - Literature,
Solihull MBC,Children's Services - DSG Schools - Non DMT,Children & Education Services,Amazon UK Marketplace ,04/02/2016,45.95,Cleaning / Janitrl Materials,171114 - Education - Literature,
Solihull MBC,Children's Services - DSG Schools - Non DMT,Children & Education Services,Amazon UK Marketplace ,03/02/2016,45.96,Capitation,171114 - Education - Literature,
Solihull MBC,Children's Services - DSG Central.,Children & Education Services,Amazon UK Marketplace ,14/02/2016,52.73,General Office Expenses,161000 - Domestic Goods - Commercial,
Solihull MBC,Resources,Central Services to the Public,Amazon UK Marketplace ,10/02/2016,56.69,General Office Expenses,161000 - Domestic Goods - Commercial,
Solihull MBC,Children's Services - DSG Schools - Non DMT,Children & Education Services,Amazon UK Marketplace ,24/02/2016,56.70,Stationery,161000 - Domestic Goods - Commercial,
Solihull MBC,Managed Growth,Environmental and Regulatory Services,Amazon UK Marketplace ,13/02/2016,58.94,Purchase Card Statement Summary,161000 - Domestic Goods - Commercial,
Solihull MBC,Communities & Adult Social Care,Cultural & Related Services,Amazon UK Marketplace ,03/02/2016,61.92,Purchase Card Statement Summary,161000 - Domestic Goods - Commercial,
Solihull MBC,Children's Services - DSG Schools - Non DMT,Children & Education Services,Amazon UK Marketplace ,03/02/2016,61.98,Capitation,161000 - Domestic Goods - Commercial,
Solihull MBC,Children's Services - DSG Schools - Non DMT,Children & Education Services,Amazon UK Marketplace ,06/02/2016,64.56,Capitation,161000 - Domestic Goods - Commercial,
Solihull MBC,Children's Services - DSG Schools - Non DMT,Children & Education Services,Amazon UK Marketplace ,23/02/2016,66.60,Capitation,161000 - Domestic Goods - Commercial,
Solihull MBC,Resources,Central Services to the Public,Amazon UK Marketplace ,15/02/2016,68.48,General Office Expenses,161000 - Domestic Goods - Commercial,
Solihull MBC,Managed Growth,Environmental and Regulatory Services,Amazon UK Marketplace ,12/02/2016,70.07,Purchase Card Statement Summary,171114 - Education - Literature,
Solihull MBC,Children's Services - DSG Schools - Non DMT,Children & Education Services,Amazon UK Marketplace ,01/03/2016,71.44,Capitation,161000 - Domestic Goods - Commercial,
Solihull MBC,Children's Services - DSG Schools - Non DMT,Children & Education Services,Amazon UK Marketplace ,26/02/2016,71.92,Capitation,161000 - Domestic Goods - Commercial,
Solihull MBC,Children's Services - DSG Schools - Non DMT,Children & Education Services,Amazon UK Marketplace ,09/02/2016,73.31,IT Equipment & Software,161000 - Domestic Goods - Commercial,
Solihull MBC,Children's Services - DSG Schools - Non DMT,Children & Education Services,Amazon UK Marketplace ,09/02/2016,75.72,IT Equipment & Software,171114 - Education - Literature,
Solihull MBC,Children's Services - DSG Schools - Non DMT,Children & Education Services,Amazon UK Marketplace ,03/02/2016,77.88,Capitation,161000 - Domestic Goods - Commercial,
Solihull MBC,Children's Services - DSG Central.,Children & Education Services,Amazon UK Marketplace ,02/03/2016,78.12,General Office Expenses,171114 - Education - Literature,
Solihull MBC,Children's Services - DSG Schools - Non DMT,Children & Education Services,Amazon UK Marketplace ,11/02/2016,79.16,Capitation,161000 - Domestic Goods - Commercial,
Solihull MBC,Children's Services - DSG Schools - Non DMT,Children & Education Services,Amazon UK Marketplace ,23/02/2016,79.83,Capitation,161000 - Domestic Goods - Commercial,
Solihull MBC,Children's Services - DSG Schools - Non DMT,Children & Education Services,Amazon UK Marketplace ,08/02/2016,80.10,IT Equipment & Software,171114 - Education - Literature,
Solihull MBC,Children's Services - DSG Schools - Non DMT,Children & Education Services,Amazon UK Marketplace ,05/02/2016,85.15,Capitation,161000 - Domestic Goods - Commercial,
Solihull MBC,Children's Services - DSG Central.,Children & Education Services,Amazon UK Marketplace ,12/02/2016,86.43,Materials,161000 - Domestic Goods - Commercial,
Solihull MBC,Communities & Adult Social Care,Adult Social Care,Amazon UK Marketplace ,17/02/2016,87.60,Purchase Card Statement Summary,161000 - Domestic Goods - Commercial,
Solihull MBC,Children's Services - DSG Schools - Non DMT,Children & Education Services,Amazon UK Marketplace ,03/02/2016,89.99,Capitation,161000 - Domestic Goods - Commercial,
Solihull MBC,Managed Growth - HRA,Housing Revenue Account,Amazon UK Marketplace ,02/03/2016,91.13,Purchase Card Statement Summary,171114 - Education - Literature,
Solihull MBC,Children's Services - DSG Schools - Non DMT,Children & Education Services,Amazon UK Marketplace ,12/02/2016,96.02,Capitation,161000 - Domestic Goods - Commercial,
Solihull MBC,Children's Services - DSG Schools - Non DMT,Children & Education Services,Amazon UK Marketplace ,27/02/2016,96.47,Capitation,171114 - Education - Literature,
Solihull MBC,Children's Services - DSG Schools - Non DMT,Children & Education Services,Amazon UK Marketplace ,23/02/2016,97.93,Health & Safety,161000 - Domestic Goods - Commercial,
Solihull MBC,Public Health & Commissioning,Central Services to the Public,Amazon UK Marketplace ,23/02/2016,100.45,Officers Expenses,171114 - Education - Literature,
Solihull MBC,Communities & Adult Social Care,Adult Social Care,Amazon UK Marketplace ,12/02/2016,109.99,Furniture & Equipment,161000 - Domestic Goods - Commercial,
Solihull MBC,Children's Services - DSG Schools - Non DMT,Children & Education Services,Amazon UK Marketplace ,26/02/2016,126.82,IT Equipment & Software,161000 - Domestic Goods - Commercial,
Solihull MBC,Children's Services - DSG Schools - Non DMT,Children & Education Services,Amazon UK Marketplace ,11/02/2016,133.24,Building Maint Day To Day,161000 - Domestic Goods - Commercial,
Solihull MBC,Children's Services - DSG Schools - Non DMT,Children & Education Services,Amazon UK Marketplace ,08/02/2016,142.89,IT Equipment & Software,161000 - Domestic Goods - Commercial,
Solihull MBC,Children's Services - DSG Schools - Non DMT,Children & Education Services,Amazon UK Marketplace ,02/03/2016,239.36,Capitation,161000 - Domestic Goods - Commercial,
Solihull MBC,Children's Services - DSG Schools - Non DMT,Children & Education Services,Amazon UK Marketplace ,01/03/2016,261.77,Postage & Courier Services,161000 - Domestic Goods - Commercial,
Solihull MBC,Children's Services - DSG Schools - Non DMT,Children & Education Services,Amazon UK Marketplace ,25/02/2016,262.75,IT Equipment & Software,161000 - Domestic Goods - Commercial,
Solihull MBC,Children's Services - DSG Schools - Non DMT,Children & Education Services,Amazon UK Marketplace ,25/02/2016,262.75,IT Equipment & Software,171114 - Education - Literature,
Solihull MBC,Children's Services - DSG Schools - Non DMT,Children & Education Services,Amazon UK Marketplace ,08/02/2016,342.34,IT Equipment & Software,161000 - Domestic Goods - Commercial,
Solihull MBC,Children's Services - DSG Schools - Non DMT,Children & Education Services,Amazon UK Marketplace ,08/02/2016,990.00,IT Equipment & Software,171114 - Education - Literature,
Solihull MBC,Children's Services - DSG Schools - Non DMT,Children & Education Services,Amazon UK Marketplace ,08/02/2016,991.68,IT Equipment & Software,161000 - Domestic Goods - Commercial,
Solihull MBC,Children's Services - DSG Schools - Non DMT,Children & Education Services,Amazon UK Marketplace ,08/02/2016,1188.00,IT Equipment & Software,171114 - Education - Literature,
Solihull MBC,Children's Services - DSG Schools - Non DMT,Children & Education Services,Amazon UK Retail,31/03/2016,2,Purchase Card Statement Summary,161000 - Domestic Goods - Commercial,
Solihull MBC,Children's Services - DSG Schools - Non DMT,Children & Education Services,Amazon UK Retail,31/03/2016,7.79,Purchase Card Statement Summary,161000 - Domestic Goods - Commercial,
Solihull MBC,Children's Services - DSG Schools - Non DMT,Children & Education Services,Amazon UK Retail,31/03/2016,12.94,Purchase Card Statement Summary,161000 - Domestic Goods - Commercial,
Solihull MBC,Children's Services - DSG Schools - Non DMT,Children & Education Services,Amazon UK Retail,31/03/2016,17.85,Purchase Card Statement Summary,161000 - Domestic Goods - Commercial,
Solihull MBC,Children's Services - DSG Schools - Non DMT,Children & Education Services,Amazon UK Retail,31/03/2016,25.05,Purchase Card Statement Summary,161000 - Domestic Goods - Commercial,
Solihull MBC,Children's Services - DSG Schools - Non DMT,Children & Education Services,Amazon UK Retail,31/03/2016,37.49,Purchase Card Statement Summary,161000 - Domestic Goods - Commercial,
Solihull MBC,Children's Services - DSG Schools - Non DMT,Children & Education Services,Amazon UK Retail,31/03/2016,71.36,Purchase Card Statement Summary,161000 - Domestic Goods - Commercial,
Solihull MBC,Children's Services - DSG Schools - Non DMT,Children & Education Services,Amazon UK Retail ,14/02/2016,-8.49,Capitation,161000 - Domestic Goods - Commercial,
Solihull MBC,Children's Services - DSG Schools - Non DMT,Children & Education Services,Amazon UK Retail ,03/02/2016,4.55,Capitation,161000 - Domestic Goods - Commercial,
Solihull MBC,Children's Services - DSG Schools - Non DMT,Children & Education Services,Amazon UK Retail ,03/02/2016,4.67,Capitation,161000 - Domestic Goods - Commercial,
Solihull MBC,Children's Services - DSG Schools - Non DMT,Children & Education Services,Amazon UK Retail ,03/02/2016,4.67,Capitation,161000 - Domestic Goods - Commercial,
Solihull MBC,Children's Services - DSG Schools - Non DMT,Children & Education Services,Amazon UK Retail ,03/02/2016,4.81,Capitation,161000 - Domestic Goods - Commercial,
Solihull MBC,Children's Services - DSG Schools - Non DMT,Children & Education Services,Amazon UK Retail ,18/02/2016,4.99,Capitation,161000 - Domestic Goods - Commercial,
Solihull MBC,Children's Services - DSG Schools - Non DMT,Children & Education Services,Amazon UK Retail ,04/02/2016,5.62,Capitation,161000 - Domestic Goods - Commercial,
Solihull MBC,Children's Services - DSG Schools - Non DMT,Children & Education Services,Amazon UK Retail ,01/03/2016,5.99,Capitation,161000 - Domestic Goods - Commercial,
Solihull MBC,Children's Services - DSG Schools - Non DMT,Children & Education Services,Amazon UK Retail ,06/02/2016,6.38,Capitation,161000 - Domestic Goods - Commercial,
Solihull MBC,Children's Services - DSG Schools - Non DMT,Children & Education Services,Amazon UK Retail ,23/02/2016,6.48,Capitation,161000 - Domestic Goods - Commercial,
Solihull MBC,Children's Services - DSG Schools - Non DMT,Children & Education Services,Amazon UK Retail ,07/02/2016,6.97,Maintenance Of Grounds,161000 - Domestic Goods - Commercial,
Solihull MBC,Children's Services - DSG Schools - Non DMT,Children & Education Services,Amazon UK Retail ,06/02/2016,7.01,Capitation,161000 - Domestic Goods - Commercial,
Solihull MBC,Children's Services - DSG Schools - Non DMT,Children & Education Services,Amazon UK Retail ,13/02/2016,7.21,Capitation,161000 - Domestic Goods - Commercial,
Solihull MBC,Children's Services & Skills,Children & Education Services,Amazon UK Retail ,03/02/2016,7.26,Purchase Card Statement Summary,161000 - Domestic Goods - Commercial,
Solihull MBC,Children's Services - DSG Schools - Non DMT,Children & Education Services,Amazon UK Retail ,03/02/2016,7.27,Capitation,161000 - Domestic Goods - Commercial,
Solihull MBC,Children's Services - DSG Schools - Non DMT,Children & Education Services,Amazon UK Retail ,22/02/2016,7.99,Capitation,161000 - Domestic Goods - Commercial,
Solihull MBC,Children's Services - DSG Schools - Non DMT,Children & Education Services,Amazon UK Retail ,10/02/2016,8.05,Capitation,161000 - Domestic Goods - Commercial,
Solihull MBC,Children's Services - DSG Schools - Non DMT,Children & Education Services,Amazon UK Retail ,11/02/2016,8.49,Capitation,161000 - Domestic Goods - Commercial,
Solihull MBC,Children's Services & Skills,Children & Education Services,Amazon UK Retail ,02/03/2016,8.87,Purchase Card Statement Summary,161000 - Domestic Goods - Commercial,
Solihull MBC,Children's Services - DSG Schools - Non DMT,Children & Education Services,Amazon UK Retail ,06/02/2016,8.88,Capitation,161000 - Domestic Goods - Commercial,
Solihull MBC,Children's Services - DSG Schools - Non DMT,Children & Education Services,Amazon UK Retail ,19/02/2016,9.07,Health & Safety,161000 - Domestic Goods - Commercial,
Solihull MBC,Children's Services - DSG Schools - Non DMT,Children & Education Services,Amazon UK Retail ,05/02/2016,10.00,Cleaning / Janitrl Materials,161000 - Domestic Goods - Commercial,
Solihull MBC,Children's Services - DSG Schools - Non DMT,Children & Education Services,Amazon UK Retail ,06/02/2016,10.00,Cleaning / Janitrl Materials,161000 - Domestic Goods - Commercial,
Solihull MBC,Children's Services - DSG Schools - Non DMT,Children & Education Services,Amazon UK Retail ,06/02/2016,10.00,Cleaning / Janitrl Materials,161000 - Domestic Goods - Commercial,
Solihull MBC,Children's Services - DSG Schools - Non DMT,Children & Education Services,Amazon UK Retail ,06/02/2016,10.00,Cleaning / Janitrl Materials,161000 - Domestic Goods - Commercial,
Solihull MBC,Children's Services - DSG Schools - Non DMT,Children & Education Services,Amazon UK Retail ,06/02/2016,10.00,Cleaning / Janitrl Materials,161000 - Domestic Goods - Commercial,
Solihull MBC,Children's Services - DSG Schools - Non DMT,Children & Education Services,Amazon UK Retail ,05/02/2016,10.25,Capitation,161000 - Domestic Goods - Commercial,
Solihull MBC,Children's Services - DSG Schools - Non DMT,Children & Education Services,Amazon UK Retail ,02/03/2016,10.40,Building Maint Day To Day,161000 - Domestic Goods - Commercial,
Solihull MBC,Children's Services - DSG Schools - Non DMT,Children & Education Services,Amazon UK Retail ,15/02/2016,10.49,Capitation,161000 - Domestic Goods - Commercial,
Solihull MBC,Children's Services - DSG Central.,Children & Education Services,Amazon UK Retail ,26/02/2016,10.50,Materials,161000 - Domestic Goods - Commercial,
Solihull MBC,Children's Services - DSG Central.,Children & Education Services,Amazon UK Retail ,26/02/2016,11.57,Materials,161000 - Domestic Goods - Commercial,
Solihull MBC,Children's Services - DSG Schools - Non DMT,Children & Education Services,Amazon UK Retail ,28/02/2016,11.58,Capitation,161000 - Domestic Goods - Commercial,
Solihull MBC,Children's Services - DSG Schools - Non DMT,Children & Education Services,Amazon UK Retail ,05/02/2016,11.81,Purchase Card Statement Summary,161000 - Domestic Goods - Commercial,
Solihull MBC,Children's Services - DSG Schools - Non DMT,Children & Education Services,Amazon UK Retail ,05/02/2016,11.81,Purchase Card Statement Summary,161000 - Domestic Goods - Commercial,
Solihull MBC,Children's Services - DSG Schools - Non DMT,Children & Education Services,Amazon UK Retail ,05/02/2016,11.81,Purchase Card Statement Summary,161000 - Domestic Goods - Commercial,
Solihull MBC,Children's Services - DSG Schools - Non DMT,Children & Education Services,Amazon UK Retail ,04/02/2016,11.98,Capitation,161000 - Domestic Goods - Commercial,
Solihull MBC,Children's Services - DSG Schools - Non DMT,Children & Education Services,Amazon UK Retail ,22/02/2016,12.00,Capitation,161000 - Domestic Goods - Commercial,
Solihull MBC,Children's Services - DSG Schools - Non DMT,Children & Education Services,Amazon UK Retail ,21/02/2016,12.39,Capitation,161000 - Domestic Goods - Commercial,
Solihull MBC,Children's Services - DSG Schools - Non DMT,Children & Education Services,Amazon UK Retail ,09/02/2016,12.80,Capitation,161000 - Domestic Goods - Commercial,
Solihull MBC,Children's Services - DSG Schools - Non DMT,Children & Education Services,Amazon UK Retail ,09/02/2016,12.99,Capitation,161000 - Domestic Goods - Commercial,
Solihull MBC,Children's Services - DSG Schools - Non DMT,Children & Education Services,Amazon UK Retail ,20/02/2016,14.31,Health & Safety,161000 - Domestic Goods - Commercial,
Solihull MBC,Children's Services - DSG Schools - Non DMT,Children & Education Services,Amazon UK Retail ,29/02/2016,14.72,Capitation,161000 - Domestic Goods - Commercial,
Solihull MBC,Children's Services - DSG Schools - Non DMT,Children & Education Services,Amazon UK Retail ,11/02/2016,14.97,Cleaning / Janitrl Materials,161000 - Domestic Goods - Commercial,
Solihull MBC,Children's Services - DSG Schools - Non DMT,Children & Education Services,Amazon UK Retail ,09/02/2016,14.98,Capitation,161000 - Domestic Goods - Commercial,
Solihull MBC,Children's Services - DSG Schools - Non DMT,Children & Education Services,Amazon UK Retail ,08/02/2016,16.01,Purchase Card Statement Summary,161000 - Domestic Goods - Commercial,
Solihull MBC,Children's Services - DSG Schools - Non DMT,Children & Education Services,Amazon UK Retail ,27/02/2016,16.33,Maintenance Of Grounds,161000 - Domestic Goods - Commercial,
Solihull MBC,Children's Services - DSG Schools - Non DMT,Children & Education Services,Amazon UK Retail ,04/02/2016,16.47,Capitation,161000 - Domestic Goods - Commercial,
Solihull MBC,Children's Services - DSG Schools - Non DMT,Children & Education Services,Amazon UK Retail ,05/02/2016,16.67,Maintenance Of Grounds,161000 - Domestic Goods - Commercial,
Solihull MBC,Children's Services - DSG Schools - Non DMT,Children & Education Services,Amazon UK Retail ,09/02/2016,17.24,Capitation,161000 - Domestic Goods - Commercial,
Solihull MBC,Children's Services - DSG Schools - Non DMT,Children & Education Services,Amazon UK Retail ,26/02/2016,17.24,Capitation,161000 - Domestic Goods - Commercial,
Solihull MBC,Children's Services - DSG Schools - Non DMT,Children & Education Services,Amazon UK Retail ,27/02/2016,17.70,Capitation,161000 - Domestic Goods - Commercial,
Solihull MBC,Children's Services - DSG Schools - Non DMT,Children & Education Services,Amazon UK Retail ,11/02/2016,18.33,Capitation,161000 - Domestic Goods - Commercial,
Solihull MBC,Children's Services - DSG Schools - Non DMT,Children & Education Services,Amazon UK Retail ,20/02/2016,19.91,Capitation,161000 - Domestic Goods - Commercial,
Solihull MBC,Children's Services - DSG Schools - Non DMT,Children & Education Services,Amazon UK Retail ,09/02/2016,20.13,Capitation,161000 - Domestic Goods - Commercial,
Solihull MBC,Children's Services - DSG Schools - Non DMT,Children & Education Services,Amazon UK Retail ,09/02/2016,20.13,Capitation,161000 - Domestic Goods - Commercial,
Solihull MBC,Children's Services - DSG Schools - Non DMT,Children & Education Services,Amazon UK Retail ,09/02/2016,20.13,Capitation,161000 - Domestic Goods - Commercial,
Solihull MBC,Children's Services - DSG Schools - Non DMT,Children & Education Services,Amazon UK Retail ,07/02/2016,20.46,Capitation,161000 - Domestic Goods - Commercial,
Solihull MBC,Children's Services - DSG Central.,Children & Education Services,Amazon UK Retail ,12/02/2016,20.46,Materials,161000 - Domestic Goods - Commercial,
Solihull MBC,Children's Services - DSG Schools - Non DMT,Children & Education Services,Amazon UK Retail ,05/02/2016,20.46,IT Equipment & Software,161000 - Domestic Goods - Commercial,
Solihull MBC,Children's Services - DSG Schools - Non DMT,Children & Education Services,Amazon UK Retail ,06/02/2016,20.83,Cleaning / Janitrl Materials,161000 - Domestic Goods - Commercial,
Solihull MBC,Communities & Adult Social Care,Adult Social Care,Amazon UK Retail ,18/02/2016,21.32,Furniture & Equipment,161000 - Domestic Goods - Commercial,
Solihull MBC,Children's Services - DSG Schools - Non DMT,Children & Education Services,Amazon UK Retail ,10/02/2016,21.48,Furniture & Equipment,161000 - Domestic Goods - Commercial,
Solihull MBC,Children's Services - DSG Schools - Non DMT,Children & Education Services,Amazon UK Retail ,08/02/2016,21.63,Capitation,161000 - Domestic Goods - Commercial,
Solihull MBC,Children's Services - DSG Schools - Non DMT,Children & Education Services,Amazon UK Retail ,10/02/2016,21.77,Stationery,161000 - Domestic Goods - Commercial,
Solihull MBC,Children's Services - DSG Schools - Non DMT,Children & Education Services,Amazon UK Retail ,04/02/2016,21.96,Capitation,161000 - Domestic Goods - Commercial,
Solihull MBC,Children's Services - DSG Schools - Non DMT,Children & Education Services,Amazon UK Retail ,05/02/2016,22.30,Health & Safety,161000 - Domestic Goods - Commercial,
Solihull MBC,Children's Services - DSG Schools - Non DMT,Children & Education Services,Amazon UK Retail ,23/02/2016,22.31,Capitation,161000 - Domestic Goods - Commercial,
Solihull MBC,Children's Services - DSG Schools - Non DMT,Children & Education Services,Amazon UK Retail ,04/02/2016,22.76,Capitation,161000 - Domestic Goods - Commercial,
Solihull MBC,Children's Services - DSG Central.,Children & Education Services,Amazon UK Retail ,15/02/2016,22.79,Materials,161000 - Domestic Goods - Commercial,
Solihull MBC,Resources,Central Services to the Public,Amazon UK Retail ,10/02/2016,23.29,IT Equipment & Software,161000 - Domestic Goods - Commercial,
Solihull MBC,Children's Services - DSG Schools - Non DMT,Children & Education Services,Amazon UK Retail ,26/02/2016,23.49,Capitation,161000 - Domestic Goods - Commercial,
Solihull MBC,Children's Services - DSG Schools - Non DMT,Children & Education Services,Amazon UK Retail ,22/02/2016,23.96,Capitation,161000 - Domestic Goods - Commercial,
Solihull MBC,Children's Services - DSG Schools - Non DMT,Children & Education Services,Amazon UK Retail ,09/02/2016,24.99,Capitation,161000 - Domestic Goods - Commercial,
Solihull MBC,Children's Services - DSG Schools - Non DMT,Children & Education Services,Amazon UK Retail ,24/02/2016,25.34,Capitation,161000 - Domestic Goods - Commercial,
Solihull MBC,Children's Services - DSG Schools - Non DMT,Children & Education Services,Amazon UK Retail ,19/02/2016,25.46,Furniture & Equipment,161000 - Domestic Goods - Commercial,
Solihull MBC,Children's Services - DSG Schools - Non DMT,Children & Education Services,Amazon UK Retail ,22/02/2016,26.43,Health & Safety,161000 - Domestic Goods - Commercial,
Solihull MBC,Children's Services - DSG Schools - Non DMT,Children & Education Services,Amazon UK Retail ,11/02/2016,26.79,Capitation,161000 - Domestic Goods - Commercial,
Solihull MBC,Children's Services - DSG Schools - Non DMT,Children & Education Services,Amazon UK Retail ,04/02/2016,27.28,IT Equipment & Software,161000 - Domestic Goods - Commercial,
Solihull MBC,Children's Services - DSG Schools - Non DMT,Children & Education Services,Amazon UK Retail ,22/02/2016,29.95,Capitation,161000 - Domestic Goods - Commercial,
Solihull MBC,Children's Services - DSG Schools - Non DMT,Children & Education Services,Amazon UK Retail ,28/02/2016,29.99,Capitation,161000 - Domestic Goods - Commercial,
Solihull MBC,Children's Services & Skills,Children & Education Services,Amazon UK Retail ,23/02/2016,29.99,Materials,161000 - Domestic Goods - Commercial,
Solihull MBC,Children's Services - DSG Schools - Non DMT,Children & Education Services,Amazon UK Retail ,22/02/2016,33.94,Capitation,161000 - Domestic Goods - Commercial,
Solihull MBC,Children's Services - DSG Schools - Non DMT,Children & Education Services,Amazon UK Retail ,24/02/2016,34.50,Capitation,161000 - Domestic Goods - Commercial,
Solihull MBC,Children's Services & Skills,Children & Education Services,Amazon UK Retail ,15/02/2016,35.30,IT Equipment & Software,161000 - Domestic Goods - Commercial,
Solihull MBC,Children's Services - DSG Schools - Non DMT,Children & Education Services,Amazon UK Retail ,06/02/2016,36.88,Purchase Card Statement Summary,161000 - Domestic Goods - Commercial,
Solihull MBC,Communities & Adult Social Care,Central Services to the Public,Amazon UK Retail ,07/02/2016,37.79,Postage & Courier Services,161000 - Domestic Goods - Commercial,
Solihull MBC,Children's Services - DSG Schools - Non DMT,Children & Education Services,Amazon UK Retail ,09/02/2016,38.67,Capitation,161000 - Domestic Goods - Commercial,
Solihull MBC,Children's Services - DSG Schools - Non DMT,Children & Education Services,Amazon UK Retail ,25/02/2016,38.92,Capitation,161000 - Domestic Goods - Commercial,
Solihull MBC,Children's Services - DSG Schools - Non DMT,Children & Education Services,Amazon UK Retail ,13/02/2016,39.40,Purchase Card Statement Summary,161000 - Domestic Goods - Commercial,
Solihull MBC,Children's Services - DSG Schools - Non DMT,Children & Education Services,Amazon UK Retail ,08/02/2016,39.97,Capitation,161000 - Domestic Goods - Commercial,
Solihull MBC,Children's Services - DSG Schools - Non DMT,Children & Education Services,Amazon UK Retail ,03/02/2016,41.62,Capitation,161000 - Domestic Goods - Commercial,
Solihull MBC,Children's Services - DSG Schools - Non DMT,Children & Education Services,Amazon UK Retail ,29/02/2016,41.98,Capitation,161000 - Domestic Goods - Commercial,
Solihull MBC,Communities & Adult Social Care,Adult Social Care,Amazon UK Retail ,18/02/2016,43.30,Furniture & Equipment,161000 - Domestic Goods - Commercial,
Solihull MBC,Communities & Adult Social Care,Central Services to the Public,Amazon UK Retail ,25/02/2016,44.74,Purchase Card Statement Summary,161000 - Domestic Goods - Commercial,
Solihull MBC,Children's Services - DSG Schools - Non DMT,Children & Education Services,Amazon UK Retail ,03/02/2016,44.91,Capitation,161000 - Domestic Goods - Commercial,
Solihull MBC,Children's Services - DSG Schools - Non DMT,Children & Education Services,Amazon UK Retail ,04/02/2016,45.00,Purchase Card Statement Summary,161000 - Domestic Goods - Commercial,
Solihull MBC,Children's Services - DSG Schools - Non DMT,Children & Education Services,Amazon UK Retail ,09/02/2016,51.66,IT Equipment & Software,161000 - Domestic Goods - Commercial,
Solihull MBC,Resources,Central Services to the Public,Amazon UK Retail ,26/02/2016,53.71,General Office Expenses,161000 - Domestic Goods - Commercial,
Solihull MBC,Children's Services - DSG Central.,Children & Education Services,Amazon UK Retail ,15/02/2016,56.21,Materials,161000 - Domestic Goods - Commercial,
Solihull MBC,Children's Services - DSG Schools - Non DMT,Children & Education Services,Amazon UK Retail ,04/02/2016,59.52,Capitation,161000 - Domestic Goods - Commercial,
Solihull MBC,Children's Services - DSG Schools - Non DMT,Children & Education Services,Amazon UK Retail ,23/02/2016,61.60,Capitation,161000 - Domestic Goods - Commercial,
Solihull MBC,Resources,Central Services to the Public,Amazon UK Retail ,01/03/2016,64.75,General Office Expenses,161000 - Domestic Goods - Commercial,
Solihull MBC,Children's Services - DSG Schools - Non DMT,Children & Education Services,Amazon UK Retail ,11/02/2016,66.07,Capitation,161000 - Domestic Goods - Commercial,
Solihull MBC,Children's Services - DSG Schools - Non DMT,Children & Education Services,Amazon UK Retail ,04/02/2016,67.55,Capitation,161000 - Domestic Goods - Commercial,
Solihull MBC,Children's Services - DSG Schools - Non DMT,Children & Education Services,Amazon UK Retail ,23/02/2016,70.00,Capitation,161000 - Domestic Goods - Commercial,
Solihull MBC,Children's Services - DSG Schools - Non DMT,Children & Education Services,Amazon UK Retail ,10/02/2016,74.73,Capitation,161000 - Domestic Goods - Commercial,
Solihull MBC,Children's Services - DSG Schools - Non DMT,Children & Education Services,Amazon UK Retail ,17/02/2016,77.94,Capitation,161000 - Domestic Goods - Commercial,
Solihull MBC,Children's Services - DSG Schools - Non DMT,Children & Education Services,Amazon UK Retail ,04/02/2016,79.04,Capitation,161000 - Domestic Goods - Commercial,
Solihull MBC,Children's Services - DSG Schools - Non DMT,Children & Education Services,Amazon UK Retail ,23/02/2016,82.49,Capitation,161000 - Domestic Goods - Commercial,
Solihull MBC,Children's Services - DSG Schools - Non DMT,Children & Education Services,Amazon UK Retail ,13/02/2016,84.44,Capitation,161000 - Domestic Goods - Commercial,
Solihull MBC,Children's Services - DSG Schools - Non DMT,Children & Education Services,Amazon UK Retail ,10/02/2016,87.23,Capitation,161000 - Domestic Goods - Commercial,
Solihull MBC,Children's Services & Skills,Children & Education Services,Amazon UK Retail ,09/02/2016,104.08,Materials,161000 - Domestic Goods - Commercial,
Solihull MBC,Children's Services - DSG Central.,Children & Education Services,Amazon UK Retail ,26/02/2016,105.53,Materials,161000 - Domestic Goods - Commercial,
Solihull MBC,Children's Services - DSG Schools - Non DMT,Children & Education Services,Amazon UK Retail ,03/02/2016,107.84,Capitation,161000 - Domestic Goods - Commercial,
Solihull MBC,Children's Services - DSG Schools - Non DMT,Children & Education Services,Amazon UK Retail ,04/02/2016,108.90,Capitation,161000 - Domestic Goods - Commercial,
Solihull MBC,Children's Services - DSG Schools - Non DMT,Children & Education Services,Amazon UK Retail ,27/02/2016,113.81,Capitation,161000 - Domestic Goods - Commercial,
Solihull MBC,Children's Services - DSG Schools - Non DMT,Children & Education Services,Amazon UK Retail ,25/02/2016,119.94,Capitation,161000 - Domestic Goods - Commercial,
Solihull MBC,Children's Services - DSG Schools - Non DMT,Children & Education Services,Amazon UK Retail ,04/02/2016,121.32,Capitation,161000 - Domestic Goods - Commercial,
Solihull MBC,Children's Services - DSG Schools - Non DMT,Children & Education Services,Amazon UK Retail ,04/02/2016,123.67,Capitation,161000 - Domestic Goods - Commercial,
Solihull MBC,Communities & Adult Social Care,Central Services to the Public,Amazon UK Retail ,12/02/2016,155.49,Purchase Card Statement Summary,161000 - Domestic Goods - Commercial,
Solihull MBC,Children's Services - DSG Schools - Non DMT,Children & Education Services,Amazon UK Retail ,03/02/2016,175.24,Capitation,161000 - Domestic Goods - Commercial,
Solihull MBC,Children's Services - DSG Schools - Non DMT,Children & Education Services,Amazon UK Retail ,05/02/2016,202.20,Capitation,161000 - Domestic Goods - Commercial,
Solihull MBC,Managed Growth - HRA,Housing Revenue Account,Amz UK Digital Dwnload ,26/02/2016,3.99,Purchase Card Statement Summary,171111 - Education - Audio Visual,
Solihull MBC,Communities & Adult Social Care,Central Services to the Public,Ao Retail Limited ,12/02/2016,139.00,Purchase Card Statement Summary,169999 - Domestic Goods - Not Elsewhere Classified,
Solihull MBC,Children's Services - DSG Schools - Non DMT,Children & Education Services,Apac Ltd ,04/02/2016,120.00,Training,171011 - Education - School Services,
Solihull MBC,Children's Services - DSG Schools - Non DMT,Children & Education Services,Arbor Education ,01/03/2016,75.00,Capitation,171011 - Education - School Services,
Solihull MBC,Children's Services - DSG Schools - Non DMT,Children & Education Services,Arbor Education ,01/03/2016,275.00,Capitation,171011 - Education - School Services,
Solihull MBC,Children's Services & Skills,Children & Education Services,Argos Direct ,15/02/2016,-19.49,Client Leaving Care Grant,161000 - Domestic Goods - Commercial,
Solihull MBC,Children's Services & Skills,Children & Education Services,Argos Direct ,22/02/2016,-295.92,Clients Expenses,169999 - Domestic Goods - Not Elsewhere Classified,
Solihull MBC,Children's Services - DSG Schools - Non DMT,Children & Education Services,Argos Ltd,31/03/2016,-9.99,Purchase Card Statement Summary,169999 - Domestic Goods - Not Elsewhere Classified,
Solihull MBC,Children's Services - DSG Schools - Non DMT,Children & Education Services,Argos Ltd,31/03/2016,23.03,Purchase Card Statement Summary,169999 - Domestic Goods - Not Elsewhere Classified,
Solihull MBC,Communities & Adult Social Care,Adult Social Care,Argos Ltd,31/03/2016,131.98,Purchase Card Statement Summary,169999 - Domestic Goods - Not Elsewhere Classified,
Solihull MBC,Resources,Children & Education Services,Argos Ltd ,05/02/2016,-20.00,Materials,169999 - Domestic Goods - Not Elsewhere Classified,
Solihull MBC,Resources,Children & Education Services,Argos Ltd ,05/02/2016,-5.00,Materials,169999 - Domestic Goods - Not Elsewhere Classified,
Solihull MBC,Resources,Central Services to the Public,Argos Ltd ,08/02/2016,9.79,General Office Expenses,169999 - Domestic Goods - Not Elsewhere Classified,
Solihull MBC,Children's Services - DSG Schools - Non DMT,Children & Education Services,Argos Ltd ,11/02/2016,16.66,Capitation,169999 - Domestic Goods - Not Elsewhere Classified,
Solihull MBC,Resources,Children & Education Services,Argos Ltd ,11/02/2016,19.99,Materials,169999 - Domestic Goods - Not Elsewhere Classified,
Solihull MBC,Children's Services - DSG Schools - Non DMT,Children & Education Services,Argos Ltd ,11/02/2016,24.99,Capitation,169999 - Domestic Goods - Not Elsewhere Classified,
Solihull MBC,Resources,Children & Education Services,Argos Ltd ,03/02/2016,37.53,Materials,169999 - Domestic Goods - Not Elsewhere Classified,
Solihull MBC,Children's Services - DSG Central.,Children & Education Services,Argos Ltd ,11/02/2016,39.99,General Office Expenses,169999 - Domestic Goods - Not Elsewhere Classified,
Solihull MBC,Resources,Children & Education Services,Argos Ltd ,04/02/2016,58.32,Materials,169999 - Domestic Goods - Not Elsewhere Classified,
Solihull MBC,Communities & Adult Social Care,Central Services to the Public,Argos Ltd ,21/02/2016,59.98,Purchase Card Statement Summary,169999 - Domestic Goods - Not Elsewhere Classified,
Solihull MBC,Communities & Adult Social Care,Adult Social Care,Argos Ltd ,11/02/2016,59.98,Furniture & Equipment,169999 - Domestic Goods - Not Elsewhere Classified,
Solihull MBC,Resources,Central Services to the Public,Argos Ltd ,09/02/2016,60.01,IT Equipment & Software,169999 - Domestic Goods - Not Elsewhere Classified,
Solihull MBC,Children's Services - DSG Schools - Non DMT,Children & Education Services,Argos Ltd ,01/03/2016,99.99,Furniture & Equipment,169999 - Domestic Goods - Not Elsewhere Classified,
Solihull MBC,Communities & Adult Social Care,Adult Social Care,Argos Ltd ,10/02/2016,124.96,Furniture & Equipment,169999 - Domestic Goods - Not Elsewhere Classified,
Solihull MBC,Children's Services - DSG Schools - Non DMT,Children & Education Services,Argos Ltd ,29/02/2016,199.98,Furniture & Equipment,169999 - Domestic Goods - Not Elsewhere Classified,
Solihull MBC,Communities & Adult Social Care,Adult Social Care,Argos Ltd ,19/02/2016,249.99,Purchase Card Statement Summary,169999 - Domestic Goods - Not Elsewhere Classified,
Solihull MBC,Children's Services & Skills,Children & Education Services,Argos Retail Group,31/03/2016,208.94,Purchase Card Statement Summary,169999 - Domestic Goods - Not Elsewhere Classified,
Solihull MBC,Children's Services & Skills,Children & Education Services,Argos Retail Group ,11/02/2016,-149.00,Client Leaving Care Grant,169999 - Domestic Goods - Not Elsewhere Classified,
Solihull MBC,Children's Services & Skills,Children & Education Services,Argos Retail Group ,19/02/2016,12.49,Client Leaving Care Grant,169999 - Domestic Goods - Not Elsewhere Classified,
Solihull MBC,Children's Services - DSG Schools - Non DMT,Children & Education Services,Argos Retail Group ,23/02/2016,12.74,Purchase Card Statement Summary,169999 - Domestic Goods - Not Elsewhere Classified,
Solihull MBC,Children's Services - DSG Schools - Non DMT,Children & Education Services,Argos Retail Group ,05/02/2016,33.94,Furniture & Equipment,169999 - Domestic Goods - Not Elsewhere Classified,
Solihull MBC,Children's Services & Skills,Children & Education Services,Argos Retail Group ,19/02/2016,65.97,Client Leaving Care Grant,169999 - Domestic Goods - Not Elsewhere Classified,
Solihull MBC,Children's Services - DSG Schools - Non DMT,Children & Education Services,Argos Retail Group ,05/02/2016,67.45,Capitation,169999 - Domestic Goods - Not Elsewhere Classified,
Solihull MBC,Children's Services & Skills,Children & Education Services,Argos Retail Group ,04/02/2016,68.94,Client Leaving Care Grant,169999 - Domestic Goods - Not Elsewhere Classified,
Solihull MBC,Children's Services & Skills,Children & Education Services,Argos Retail Group ,04/02/2016,98.69,Client Leaving Care Grant,169999 - Domestic Goods - Not Elsewhere Classified,
Solihull MBC,Children's Services - DSG Schools - Non DMT,Children & Education Services,Argos Retail Group ,03/02/2016,99.98,Health & Safety,169999 - Domestic Goods - Not Elsewhere Classified,
Solihull MBC,Children's Services & Skills,Children & Education Services,Argos Retail Group ,04/02/2016,145.34,Client Leaving Care Grant,169999 - Domestic Goods - Not Elsewhere Classified,
Solihull MBC,Children's Services & Skills,Children & Education Services,Argos Retail Group ,03/02/2016,149.00,Client Leaving Care Grant,169999 - Domestic Goods - Not Elsewhere Classified,
Solihull MBC,Children's Services & Skills,Children & Education Services,Argos Retail Group ,04/02/2016,165.83,Client Leaving Care Grant,169999 - Domestic Goods - Not Elsewhere Classified,
Solihull MBC,Children's Services & Skills,Children & Education Services,Argos Retail Group ,01/03/2016,166.43,Client Leaving Care Grant,169999 - Domestic Goods - Not Elsewhere Classified,
Solihull MBC,Children's Services & Skills,Children & Education Services,Argos Retail Group ,11/02/2016,189.38,Client Leaving Care Grant,169999 - Domestic Goods - Not Elsewhere Classified,
Solihull MBC,Children's Services & Skills,Children & Education Services,Argos Retail Group ,12/02/2016,295.92,Clients Expenses,169999 - Domestic Goods - Not Elsewhere Classified,
Solihull MBC,Children's Services - DSG Schools - Non DMT,Children & Education Services,Asda  Stores 4845 ,27/02/2016,67.42,Catering Provisions,111200 - Catering - Food & Beverages,
Solihull MBC,Children's Services - DSG Schools - Non DMT,Children & Education Services,Asda  Stores 5880 ,28/02/2016,6.00,Catering Provisions,111200 - Catering - Food & Beverages,
Solihull MBC,Children's Services - DSG Schools - Non DMT,Children & Education Services,Asda  Stores 5880 ,25/02/2016,57.85,Catering Provisions,111200 - Catering - Food & Beverages,
Solihull MBC,Children's Services - DSG Schools - Non DMT,Children & Education Services,Asda  Stores 5880 ,14/02/2016,61.80,Catering Provisions,111200 - Catering - Food & Beverages,
Solihull MBC,Children's Services - DSG Schools - Non DMT,Children & Education Services,Asda 4387 ,08/02/2016,29.17,Capitation,111200 - Catering - Food & Beverages,
Solihull MBC,Children's Services & Skills,Children & Education Services,Asda 4387 ,11/02/2016,33.33,Client Leaving Care Grant,111200 - Catering - Food & Beverages,
Solihull MBC,Children's Services - DSG Schools - Non DMT,Children & Education Services,Asda 4387 ,23/02/2016,34.50,Capitation,111200 - Catering - Food & Beverages,
Solihull MBC,Children's Services - DSG Schools - Non DMT,Children & Education Services,Asda 4387 ,04/02/2016,49.45,Capitation,111200 - Catering - Food & Beverages,
Solihull MBC,Children's Services - DSG Schools - Non DMT,Children & Education Services,Asda 4387 ,09/02/2016,57.08,Capitation,111200 - Catering - Food & Beverages,
Solihull MBC,Communities & Adult Social Care,Adult Social Care,Asda Home Shopping ,03/02/2016,-22.00,General Office Expenses,111200 - Catering - Food & Beverages,
Solihull MBC,Children's Services - DSG Schools - Non DMT,Children & Education Services,Asda Home Shopping ,01/03/2016,-5.00,Capitation,111200 - Catering - Food & Beverages,
Solihull MBC,Children's Services - DSG Schools - Non DMT,Children & Education Services,Asda Home Shopping ,29/02/2016,-3.50,Materials For Resale,111200 - Catering - Food & Beverages,
Solihull MBC,Children's Services - DSG Schools - Non DMT,Children & Education Services,Asda Home Shopping ,29/02/2016,-3.00,Capitation,111200 - Catering - Food & Beverages,
Solihull MBC,Children's Services - DSG Schools - Non DMT,Children & Education Services,Asda Home Shopping ,29/02/2016,-2.50,Capitation,111200 - Catering - Food & Beverages,
Solihull MBC,Children's Services - DSG Schools - Non DMT,Children & Education Services,Asda Home Shopping ,08/02/2016,-1.02,Capitation,111200 - Catering - Food & Beverages,
Solihull MBC,Children's Services - DSG Schools - Non DMT,Children & Education Services,Asda Home Shopping ,29/02/2016,-0.86,Catering Provisions,111200 - Catering - Food & Beverages,
Solihull MBC,Children's Services - DSG Schools - Non DMT,Children & Education Services,Asda Home Shopping ,23/02/2016,0.13,Catering Provisions,111200 - Catering - Food & Beverages,
Solihull MBC,Children's Services - DSG Schools - Non DMT,Children & Education Services,Asda Home Shopping ,08/02/2016,0.31,Catering Provisions,111200 - Catering - Food & Beverages,
Solihull MBC,Children's Services - DSG Schools - Non DMT,Children & Education Services,Asda Home Shopping ,23/02/2016,0.37,Meetings & Other Expenses,111200 - Catering - Food & Beverages,
Solihull MBC,Children's Services - DSG Schools - Non DMT,Children & Education Services,Asda Home Shopping ,29/02/2016,0.50,Catering Provisions,111200 - Catering - Food & Beverages,
Solihull MBC,Children's Services - DSG Schools - Non DMT,Children & Education Services,Asda Home Shopping ,23/02/2016,0.50,Meetings & Other Expenses,111200 - Catering - Food & Beverages,
Solihull MBC,Children's Services - DSG Schools - Non DMT,Children & Education Services,Asda Home Shopping ,08/02/2016,0.83,Visits & Pupil Activities,111200 - Catering - Food & Beverages,
Solihull MBC,Children's Services - DSG Schools - Non DMT,Children & Education Services,Asda Home Shopping ,23/02/2016,1.67,Catering Provisions,111200 - Catering - Food & Beverages,
Solihull MBC,Children's Services - DSG Schools - Non DMT,Children & Education Services,Asda Home Shopping ,29/02/2016,2.08,Catering Provisions,111200 - Catering - Food & Beverages,
Solihull MBC,Children's Services - DSG Schools - Non DMT,Children & Education Services,Asda Home Shopping ,29/02/2016,4.00,Meetings & Other Expenses,111200 - Catering - Food & Beverages,
Solihull MBC,Children's Services - DSG Schools - Non DMT,Children & Education Services,Asda Home Shopping ,08/02/2016,7.65,Visits & Pupil Activities,111200 - Catering - Food & Beverages,
Solihull MBC,Children's Services - DSG Schools - Non DMT,Children & Education Services,Asda Home Shopping ,29/02/2016,8.74,Capitation,111200 - Catering - Food & Beverages,
Solihull MBC,Children's Services - DSG Schools - Non DMT,Children & Education Services,Asda Home Shopping ,29/02/2016,10.50,Capitation,111200 - Catering - Food & Beverages,
Solihull MBC,Children's Services - DSG Schools - Non DMT,Children & Education Services,Asda Home Shopping ,08/02/2016,12.50,Meetings & Other Expenses,111200 - Catering - Food & Beverages,
Solihull MBC,Children's Services - DSG Schools - Non DMT,Children & Education Services,Asda Home Shopping ,29/02/2016,31.86,Catering Provisions,111200 - Catering - Food & Beverages,
Solihull MBC,Children's Services - DSG Schools - Non DMT,Children & Education Services,Asda Home Shopping ,23/02/2016,36.01,Catering Provisions,111200 - Catering - Food & Beverages,
Solihull MBC,Children's Services - DSG Schools - Non DMT,Children & Education Services,Asda Home Shopping ,08/02/2016,39.29,Catering Provisions,111200 - Catering - Food & Beverages,
Solihull MBC,Children's Services - DSG Schools - Non DMT,Children & Education Services,Asda Home Shopping ,29/02/2016,39.75,Capitation,111200 - Catering - Food & Beverages,
Solihull MBC,Children's Services - DSG Schools - Non DMT,Children & Education Services,Asda Home Shopping ,22/02/2016,45.40,Capitation,111200 - Catering - Food & Beverages,
Solihull MBC,Children's Services - DSG Schools - Non DMT,Children & Education Services,Asda Home Shopping ,01/03/2016,53.92,Capitation,111200 - Catering - Food & Beverages,
Solihull MBC,Children's Services - DSG Schools - Non DMT,Children & Education Services,Asda Home Shopping ,09/02/2016,56.28,Capitation,111200 - Catering - Food & Beverages,
Solihull MBC,Children's Services - DSG Schools - Non DMT,Children & Education Services,Asda Home Shopping ,08/02/2016,57.60,Materials For Resale,111200 - Catering - Food & Beverages,
Solihull MBC,Children's Services - DSG Schools - Non DMT,Children & Education Services,Asda Home Shopping ,29/02/2016,59.77,Materials For Resale,111200 - Catering - Food & Beverages,
Solihull MBC,Communities & Adult Social Care,Adult Social Care,Asda Home Shopping ,03/02/2016,61.00,General Office Expenses,111200 - Catering - Food & Beverages,
Solihull MBC,Children's Services - DSG Schools - Non DMT,Children & Education Services,Asda Home Shopping ,03/02/2016,66.30,Capitation,111200 - Catering - Food & Beverages,
Solihull MBC,Children's Services - DSG Schools - Non DMT,Children & Education Services,Asda Home Shopping ,22/02/2016,71.07,Materials For Resale,111200 - Catering - Food & Beverages,
Solihull MBC,Children's Services - DSG Schools - Non DMT,Children & Education Services,Asda Home Shopping ,22/02/2016,72.92,Capitation,111200 - Catering - Food & Beverages,
Solihull MBC,Children's Services - DSG Schools - Non DMT,Children & Education Services,Asda Home Shopping ,23/02/2016,82.26,Capitation,111200 - Catering - Food & Beverages,
Solihull MBC,Children's Services - DSG Schools - Non DMT,Children & Education Services,Asda Home Shopping ,08/02/2016,94.85,Capitation,111200 - Catering - Food & Beverages,
Solihull MBC,Children's Services - DSG Schools - Non DMT,Children & Education Services,Asda Home Shopping ,29/02/2016,106.65,Capitation,111200 - Catering - Food & Beverages,
Solihull MBC,Communities & Adult Social Care,Adult Social Care,Asda Stores 5881,31/03/2016,4,Purchase Card Statement Summary,111200 - Catering - Food & Beverages,
Solihull MBC,Communities & Adult Social Care,Adult Social Care,Asda Stores 5881,31/03/2016,13.9,Purchase Card Statement Summary,111200 - Catering - Food & Beverages,
Solihull MBC,Communities & Adult Social Care,Adult Social Care,Asda Stores 5881,31/03/2016,18.5,Purchase Card Statement Summary,111200 - Catering - Food & Beverages,
Solihull MBC,Communities & Adult Social Care,Adult Social Care,Asda Stores 5881,31/03/2016,18.51,Purchase Card Statement Summary,111200 - Catering - Food & Beverages,
Solihull MBC,Communities & Adult Social Care,Adult Social Care,Asda Stores 5881,31/03/2016,18.59,Purchase Card Statement Summary,111200 - Catering - Food & Beverages,
Solihull MBC,Communities & Adult Social Care,Adult Social Care,Asda Stores 5881,31/03/2016,23.52,Purchase Card Statement Summary,111200 - Catering - Food & Beverages,
Solihull MBC,Communities & Adult Social Care,Adult Social Care,Asda Stores 5881,31/03/2016,46.07,Purchase Card Statement Summary,111200 - Catering - Food & Beverages,
Solihull MBC,Communities & Adult Social Care,Adult Social Care,Asda Stores 5881,31/03/2016,95.97,Purchase Card Statement Summary,111200 - Catering - Food & Beverages,
Solihull MBC,Communities & Adult Social Care,Adult Social Care,Asda Stores 5881,31/03/2016,96.58,Purchase Card Statement Summary,111200 - Catering - Food & Beverages,
Solihull MBC,Communities & Adult Social Care,Adult Social Care,Asda Stores 5881,31/03/2016,121.91,Purchase Card Statement Summary,111200 - Catering - Food & Beverages,
Solihull MBC,Communities & Adult Social Care,Adult Social Care,Asda Stores 5881 ,09/02/2016,2.55,Clients Expenses,111200 - Catering - Food & Beverages,
Solihull MBC,Communities & Adult Social Care,Adult Social Care,Asda Stores 5881 ,09/02/2016,3.06,Purchase Card Statement Summary,111200 - Catering - Food & Beverages,
Solihull MBC,Communities & Adult Social Care,Adult Social Care,Asda Stores 5881 ,04/02/2016,4.00,Cleaning,111200 - Catering - Food & Beverages,
Solihull MBC,Children's Services - DSG Schools - Non DMT,Children & Education Services,Asda Stores 5881 ,18/02/2016,4.17,Capitation,111200 - Catering - Food & Beverages,
Solihull MBC,Communities & Adult Social Care,Adult Social Care,Asda Stores 5881 ,16/02/2016,4.96,Catering Provisions,111200 - Catering - Food & Beverages,
Solihull MBC,Children's Services - DSG Schools - Non DMT,Children & Education Services,Asda Stores 5881 ,05/02/2016,5.70,Catering Provisions,111200 - Catering - Food & Beverages,
Solihull MBC,Communities & Adult Social Care,Adult Social Care,Asda Stores 5881 ,11/02/2016,5.90,Catering Provisions,111200 - Catering - Food & Beverages,
Solihull MBC,Children's Services - DSG Schools - Non DMT,Children & Education Services,Asda Stores 5881 ,23/02/2016,6.00,Capitation,111200 - Catering - Food & Beverages,
Solihull MBC,Children's Services - DSG Schools - Non DMT,Children & Education Services,Asda Stores 5881 ,02/03/2016,6.06,Meetings & Other Expenses,111200 - Catering - Food & Beverages,
Solihull MBC,Children's Services - DSG Schools - Non DMT,Children & Education Services,Asda Stores 5881 ,29/02/2016,7.71,Capitation,111200 - Catering - Food & Beverages,
Solihull MBC,Managed Growth - HRA,Housing Revenue Account,Asda Stores 5881 ,04/02/2016,8.25,General Debtors,111200 - Catering - Food & Beverages,
Solihull MBC,Communities & Adult Social Care,Adult Social Care,Asda Stores 5881 ,13/02/2016,8.40,Catering Provisions,111200 - Catering - Food & Beverages,
Solihull MBC,Communities & Adult Social Care,Adult Social Care,Asda Stores 5881 ,15/02/2016,9.02,Cleaning,111200 - Catering - Food & Beverages,
Solihull MBC,Communities & Adult Social Care,Adult Social Care,Asda Stores 5881 ,20/02/2016,12.17,Catering Provisions,111200 - Catering - Food & Beverages,
Solihull MBC,Communities & Adult Social Care,Adult Social Care,Asda Stores 5881 ,07/02/2016,14.02,Catering Provisions,111200 - Catering - Food & Beverages,
Solihull MBC,Communities & Adult Social Care,Adult Social Care,Asda Stores 5881 ,15/02/2016,14.66,Cleaning,111200 - Catering - Food & Beverages,
Solihull MBC,Children's Services - DSG Schools - Non DMT,Children & Education Services,Asda Stores 5881 ,04/02/2016,14.80,Capitation,111200 - Catering - Food & Beverages,
Solihull MBC,Communities & Adult Social Care,Adult Social Care,Asda Stores 5881 ,04/02/2016,16.60,Catering Provisions,111200 - Catering - Food & Beverages,
Solihull MBC,Children's Services & Skills,Children & Education Services,Asda Stores 5881 ,01/03/2016,20.00,Clients Expenses,111200 - Catering - Food & Beverages,
Solihull MBC,Children's Services - DSG Schools - Non DMT,Children & Education Services,Asda Stores 5881 ,23/02/2016,20.29,Capitation,111200 - Catering - Food & Beverages,
Solihull MBC,Resources,Central Services to the Public,Asda Stores 5881 ,08/02/2016,23.38,General Office Expenses,111200 - Catering - Food & Beverages,
Solihull MBC,Communities & Adult Social Care,Adult Social Care,Asda Stores 5881 ,04/02/2016,29.43,Catering Provisions,111200 - Catering - Food & Beverages,
Solihull MBC,Children's Services & Skills,Children & Education Services,Asda Stores 5881 ,10/02/2016,40.00,Officers Expenses,111200 - Catering - Food & Beverages,
Solihull MBC,Children's Services & Skills,Children & Education Services,Asda Stores 5881 ,15/02/2016,50.00,Purchase Card Statement Summary,111200 - Catering - Food & Beverages,
Solihull MBC,Children's Services & Skills,Children & Education Services,Asda Stores 5881 ,22/02/2016,50.00,Officers Expenses,111200 - Catering - Food & Beverages,
Solihull MBC,Communities & Adult Social Care,Adult Social Care,Asda Stores 5881 ,19/02/2016,73.76,Purchase Card Statement Summary,111200 - Catering - Food & Beverages,
Solihull MBC,Communities & Adult Social Care,Adult Social Care,Asda Stores 5881 ,15/02/2016,83.38,Catering Provisions,111200 - Catering - Food & Beverages,
Solihull MBC,Children's Services & Skills,Children & Education Services,Asda Stores 5881 ,12/02/2016,100.00,Officers Expenses,111200 - Catering - Food & Beverages,
Solihull MBC,Communities & Adult Social Care,Adult Social Care,Asda Stores 5881 ,15/02/2016,125.22,Catering Provisions,111200 - Catering - Food & Beverages,
Solihull MBC,Children's Services & Skills,Children & Education Services,Asda Stores 5881 ,19/02/2016,130.84,Catering Provisions,111200 - Catering - Food & Beverages,
Solihull MBC,Communities & Adult Social Care,Adult Social Care,Asda Superstore,31/03/2016,16,Purchase Card Statement Summary,111200 - Catering - Food & Beverages,
Solihull MBC,Children's Services - DSG Schools - Non DMT,Children & Education Services,Asda Superstore ,01/03/2016,1.33,Capitation,111200 - Catering - Food & Beverages,
Solihull MBC,Children's Services - DSG Schools - Non DMT,Children & Education Services,Asda Superstore ,23/02/2016,2.47,Capitation,111200 - Catering - Food & Beverages,
Solihull MBC,Children's Services - DSG Schools - Non DMT,Children & Education Services,Asda Superstore ,11/02/2016,2.50,Capitation,111200 - Catering - Food & Beverages,
Solihull MBC,Children's Services - DSG Schools - Non DMT,Children & Education Services,Asda Superstore ,27/02/2016,4.86,Catering Provisions,111200 - Catering - Food & Beverages,
Solihull MBC,Children's Services - DSG Schools - Non DMT,Children & Education Services,Asda Superstore ,09/02/2016,7.37,Capitation,111200 - Catering - Food & Beverages,
Solihull MBC,Children's Services - DSG Schools - Non DMT,Children & Education Services,Asda Superstore ,13/02/2016,59.01,Catering Provisions,111200 - Catering - Food & Beverages,
Solihull MBC,Children's Services - DSG Schools - Non DMT,Children & Education Services,Asda Superstore 4366 ,29/02/2016,3.00,Capitation,111200 - Catering - Food & Beverages,
Solihull MBC,Children's Services - DSG Schools - Non DMT,Children & Education Services,Ash End House Farm ,01/03/2016,125.00,Visits & Pupil Activities,161000 - Domestic Goods - Commercial,
Solihull MBC,Children's Services - DSG Schools - Non DMT,Children & Education Services,Ash End House Farm ,24/02/2016,150.00,Capitation,161000 - Domestic Goods - Commercial,
Solihull MBC,Communities & Adult Social Care,Cultural & Related Services,Asian Voice And Gujarat S ,05/02/2016,35.00,Materials,161000 - Domestic Goods - Commercial,
Solihull MBC,Communities & Adult Social Care,Adult Social Care,ATG Tickets ,23/02/2016,22.80,Clients Expenses,291300 - Arts & Leisure Services - Performing Arts,
Solihull MBC,Children's Services & Skills,Children & Education Services,Automobile Association ,29/02/2016,85.62,Purchase Card Statement Summary,381900 - Vehicle Management - Vehicle Recovery,
Solihull MBC,Communities & Adult Social Care,Adult Social Care,B & Q ,11/02/2016,-60.00,Purchase Card Statement Summary,102500 - Building Construction Materials - Timber,
Solihull MBC,Children's Services - DSG Schools - Non DMT,Children & Education Services,B & Q ,05/02/2016,8.95,Capitation,102500 - Building Construction Materials - Timber,
Solihull MBC,Children's Services - DSG Schools - Non DMT,Children & Education Services,B & Q ,22/02/2016,9.41,IT Equipment & Software,102500 - Building Construction Materials - Timber,
Solihull MBC,Children's Services - DSG Schools - Non DMT,Children & Education Services,B & Q ,24/02/2016,9.47,Building Maint Day To Day,102500 - Building Construction Materials - Timber,
Solihull MBC,Children's Services - DSG Schools - Non DMT,Children & Education Services,B & Q ,18/02/2016,10.87,Building Maint Day To Day,102500 - Building Construction Materials - Timber,
Solihull MBC,Children's Services - DSG Schools - Non DMT,Children & Education Services,B & Q ,04/02/2016,13.00,Building Maint Day To Day,102500 - Building Construction Materials - Timber,
Solihull MBC,Children's Services - DSG Schools - Non DMT,Children & Education Services,B & Q ,11/02/2016,14.00,Building Maint Day To Day,102500 - Building Construction Materials - Timber,
Solihull MBC,Children's Services - DSG Schools - Non DMT,Children & Education Services,B & Q ,16/02/2016,14.83,Building Maint Day To Day,102500 - Building Construction Materials - Timber,
Solihull MBC,Managed Growth,Highways & Transport Services,B & Q ,17/02/2016,22.00,Materials,102500 - Building Construction Materials - Timber,
Solihull MBC,Children's Services - DSG Schools - Non DMT,Children & Education Services,B & Q ,15/02/2016,23.85,Building Maint Day To Day,102500 - Building Construction Materials - Timber,
Solihull MBC,Children's Services - DSG Schools - Non DMT,Children & Education Services,B & Q ,18/02/2016,30.23,Building Maint Day To Day,102500 - Building Construction Materials - Timber,
Solihull MBC,Children's Services - DSG Schools - Non DMT,Children & Education Services,B & Q ,07/02/2016,36.81,Materials,102500 - Building Construction Materials - Timber,
Solihull MBC,Managed Growth - HRA,Housing Revenue Account,B & Q ,12/02/2016,37.00,General Debtors,102500 - Building Construction Materials - Timber,
Solihull MBC,Managed Growth,Cultural & Related Services,B & Q ,17/02/2016,52.38,Professional Fees,102500 - Building Construction Materials - Timber,
Solihull MBC,Children's Services - DSG Schools - Non DMT,Children & Education Services,B & Q ,11/02/2016,60.00,Building Maint Day To Day,102500 - Building Construction Materials - Timber,
Solihull MBC,Communities & Adult Social Care,Adult Social Care,B & Q ,10/02/2016,60.00,Purchase Card Statement Summary,102500 - Building Construction Materials - Timber,
Solihull MBC,Managed Growth,Cultural & Related Services,B & Q ,17/02/2016,81.00,Professional Fees,102500 - Building Construction Materials - Timber,
Solihull MBC,Children's Services - DSG Schools - Non DMT,Children & Education Services,B & Q ,11/02/2016,118.36,Building Maint Day To Day,102500 - Building Construction Materials - Timber,
Solihull MBC,Managed Growth - HRA,Housing Revenue Account,B And Q 1047 ,29/02/2016,4.50,General Debtors,102500 - Building Construction Materials - Timber,
Solihull MBC,Children's Services - DSG Schools - Non DMT,Children & Education Services,B And Q 1047 ,02/03/2016,6.67,Building Maint Day To Day,102500 - Building Construction Materials - Timber,
Solihull MBC,Children's Services - DSG Schools - Non DMT,Children & Education Services,B And Q 1047 ,26/02/2016,9.00,Building Maint Day To Day,102500 - Building Construction Materials - Timber,
Solihull MBC,Children's Services - DSG Schools - Non DMT,Children & Education Services,B And Q 1047 ,01/03/2016,29.77,Building Maint Day To Day,102500 - Building Construction Materials - Timber,
Solihull MBC,Children's Services - DSG Schools - Non DMT,Children & Education Services,B And Q 1047 ,01/03/2016,160.76,Furniture & Equipment,102500 - Building Construction Materials - Timber,
Solihull MBC,Managed Growth,Cultural & Related Services,B And Q 1047 ,25/02/2016,217.50,Purchase Card Statement Summary,102500 - Building Construction Materials - Timber,
Solihull MBC,Children's Services - DSG Schools - Non DMT,Children & Education Services,B And Q 1302 ,24/02/2016,24.11,Building Maint Day To Day,102500 - Building Construction Materials - Timber,
Solihull MBC,Children's Services - DSG Schools - Non DMT,Children & Education Services,B&Q Direct ,22/02/2016,5.00,Capitation,102500 - Building Construction Materials - Timber,
Solihull MBC,Children's Services - DSG Schools - Non DMT,Children & Education Services,B&Q Direct ,22/02/2016,14.17,Capitation,102500 - Building Construction Materials - Timber,
Solihull MBC,Children's Services - DSG Schools - Non DMT,Children & Education Services,Back In Action ,25/02/2016,29.12,Capitation,211100 - Furniture & Soft Furnishings - Domestic Furniture,
Solihull MBC,Public Health & Commissioning,Adult Social Care,Bam Fm Ltd ,03/02/2016,62.43,Other Contracted Services,291400 - Arts & Leisure Services - Sport & Fitness,
Solihull MBC,Children's Services - DSG Schools - Non DMT,Children & Education Services,BBC Tours ,12/02/2016,92.92,Visits & Pupil Activities,291100 - Arts & Leisure Services - Museums & Arts,
Solihull MBC,Communities & Adult Social Care,Adult Social Care,Berwick Care Equipment-V ,01/03/2016,97.20,Cleaning,311300 - Healthcare - Equipment,
Solihull MBC,Communities & Adult Social Care,Adult Social Care,BHS 151 ,02/03/2016,5.50,Catering Provisions,169999 - Domestic Goods - Not Elsewhere Classified,
Solihull MBC,Children's Services - DSG Schools - Non DMT,Children & Education Services,Birmingham ,18/02/2016,300.00,Visits & Pupil Activities,291100 - Arts & Leisure Services - Museums & Arts,
Solihull MBC,Children's Services - DSG Schools - Non DMT,Children & Education Services,Birmingham Auto Parts ,02/03/2016,362.50,Other Transport Costs,381500 - Vehicle Management - Parts,
Solihull MBC,Communities & Adult Social Care,Cultural & Related Services,Birmingham Catering Hire ,10/02/2016,90.00,Furniture & Equipment,219999 - Furniture & Soft Furnishings - Not Elsewhere Classified,
Solihull MBC,Managed Growth,Environmental and Regulatory Services,Birmingham Dogs Home ,17/02/2016,100.00,Training,201710 - Financial Services - Grants - Charitable,
Solihull MBC,Managed Growth,Environmental and Regulatory Services,Birmingham Dogs Home ,02/03/2016,120.00,General Office Expenses,201710 - Financial Services - Grants - Charitable,
Solihull MBC,Managed Growth,Environmental and Regulatory Services,Birmingham Dogs Home ,17/02/2016,253.00,Training,201710 - Financial Services - Grants - Charitable,
Solihull MBC,Communities & Adult Social Care,Adult Social Care,Birmingham Hippodrome ,23/02/2016,19.90,Clients Expenses,291300 - Arts & Leisure Services - Performing Arts,
Solihull MBC,Children's Services & Skills,Children & Education Services,Blackwell Adv. ,16/02/2016,70.38,Other Fees,161000 - Domestic Goods - Commercial,
Solihull MBC,Children's Services - DSG Schools - Non DMT,Children & Education Services,Bleakrose Limited ,04/02/2016,12.70,Building Maint Day To Day,101400 - Building Construction Materials - General Materials,
Solihull MBC,Children's Services - DSG Schools - Non DMT,Children & Education Services,Bleakrose Limited ,12/02/2016,15.00,Building Maint Day To Day,101400 - Building Construction Materials - General Materials,
Solihull MBC,Children's Services - DSG Schools - Non DMT,Children & Education Services,Blythe Mill Farm Suppl ,15/02/2016,29.80,Maintenance Of Grounds,169999 - Domestic Goods - Not Elsewhere Classified,
Solihull MBC,Communities & Adult Social Care,Adult Social Care,Boardsdirect.co.uk ,16/02/2016,36.08,General Office Expenses,341100 - Stationery - Sundries,
Solihull MBC,Communities & Adult Social Care,Adult Social Care,Bole Bridge,31/03/2016,18.96,Purchase Card Statement Summary,261600 - Human Resources - Travel & Subsistence,
Solihull MBC,Children's Services - DSG Schools - Non DMT,Children & Education Services,Book People Voucher ,26/02/2016,65.00,Capitation,171114 - Education - Literature,
Solihull MBC,Children's Services - DSG Schools - Non DMT,Children & Education Services,Bookdepository.com ,24/02/2016,13.00,Capitation,171114 - Education - Literature,
Solihull MBC,Children's Services - DSG Schools - Non DMT,Children & Education Services,Booker Limited Stirchley ,17/02/2016,6.91,Capitation,111000 - Catering - Banquet & Catering,
Solihull MBC,Children's Services - DSG Schools - Non DMT,Children & Education Services,Boots.com ,04/02/2016,83.98,Health & Safety,311200 - Healthcare - Drugs,
Solihull MBC,Children's Services & Skills,Children & Education Services,British Standards ,10/02/2016,54.00,IT Equipment & Software,151000 - Consultancy - Business,
Solihull MBC,Children's Services - DSG Schools - Non DMT,Children & Education Services,Brother UK Spares ,22/02/2016,140.00,IT Equipment & Software,101100 - Building Construction Materials - Electrical,
Solihull MBC,Resources,Central Services to the Public,Browns Leeds ,03/02/2016,49.55,Purchase Card Statement Summary,261600 - Human Resources - Travel & Subsistence,
Solihull MBC,Children's Services - DSG Schools - Non DMT,Children & Education Services,BT Business Direct Ltd ,12/02/2016,3.55,IT Equipment & Software,271200 - Information Communications Technology - Hardware,
Solihull MBC,Children's Services - DSG Schools - Non DMT,Children & Education Services,BT Business Direct Ltd ,10/02/2016,18.06,IT Equipment & Software,271200 - Information Communications Technology - Hardware,
Solihull MBC,Children's Services - DSG Schools - Non DMT,Children & Education Services,BT Business Direct Ltd ,13/02/2016,101.02,IT Equipment & Software,271200 - Information Communications Technology - Hardware,
Solihull MBC,Children's Services & Skills,Children & Education Services,Bungalow ,01/03/2016,69.43,Repair & Maintn Of Buildings,370000 - Utilities,
Solihull MBC,Communities & Adult Social Care,Adult Social Care,Burger King,31/03/2016,18.08,Purchase Card Statement Summary,261600 - Human Resources - Travel & Subsistence,
Solihull MBC,Managed Growth,Cultural & Related Services,C Curtiss & Sons L ,25/02/2016,8.40,Materials,102500 - Building Construction Materials - Timber,
Solihull MBC,Managed Growth,Cultural & Related Services,C Curtiss & Sons L ,16/02/2016,21.85,Materials,102500 - Building Construction Materials - Timber,
Solihull MBC,Children's Services - DSG Schools - Non DMT,Children & Education Services,Cadbury World Retail ,04/02/2016,-9.65,Visits & Pupil Activities,299999 - Arts & Leisure Services - Not Elsewhere Classified,
Solihull MBC,Children's Services - DSG Schools - Non DMT,Children & Education Services,Cadbury World Retail ,01/03/2016,-5.40,Capitation,299999 - Arts & Leisure Services - Not Elsewhere Classified,
Solihull MBC,Children's Services - DSG Schools - Non DMT,Children & Education Services,Cadbury World Retail ,15/02/2016,74.58,Capitation,299999 - Arts & Leisure Services - Not Elsewhere Classified,
Solihull MBC,Children's Services - DSG Schools - Non DMT,Children & Education Services,Cadbury World Retail ,11/02/2016,279.05,Visits & Pupil Activities,299999 - Arts & Leisure Services - Not Elsewhere Classified,
Solihull MBC,Children's Services - DSG Schools - Non DMT,Children & Education Services,Cadbury World Retail ,11/02/2016,411.00,Visits & Pupil Activities,299999 - Arts & Leisure Services - Not Elsewhere Classified,
Solihull MBC,Children's Services - DSG Schools - Non DMT,Children & Education Services,Cadbury World Retail ,22/02/2016,554.25,Visits & Pupil Activities,299999 - Arts & Leisure Services - Not Elsewhere Classified,
Solihull MBC,Children's Services & Skills,Children & Education Services,Capita Bus Svs-Moto ,01/03/2016,478.80,Training,209999 - Financial Services - Not Elsewhere Classified,
Solihull MBC,Resources,Other Housing Services,Capita Gas ,15/02/2016,182.40,Purchase Card Statement Summary,209999 - Financial Services - Not Elsewhere Classified,
Solihull MBC,Children's Services - DSG Schools - Non DMT,Children & Education Services,Cards.Worldvision.org.uk ,04/02/2016,5.00,Capitation,161000 - Domestic Goods - Commercial,
Solihull MBC,Children's Services - DSG Schools - Non DMT,Children & Education Services,Cartridge Save ,12/02/2016,19.76,Capitation,341100 - Stationery - Sundries,
Solihull MBC,Children's Services - DSG Schools - Non DMT,Children & Education Services,Cartridge Save ,10/02/2016,22.90,Capitation,341100 - Stationery - Sundries,
Solihull MBC,Communities & Adult Social Care,Adult Social Care,Cartridge Save ,22/02/2016,42.57,Furniture & Equipment,341100 - Stationery - Sundries,
Solihull MBC,Children's Services - DSG Schools - Non DMT,Children & Education Services,Cartridge Save ,03/02/2016,82.70,Capitation,341100 - Stationery - Sundries,
Solihull MBC,Communities & Adult Social Care,Adult Social Care,Centerplate UK Ltd,31/03/2016,28.5,Purchase Card Statement Summary,111000 - Catering - Banquet & Catering,
Solihull MBC,Children's Services & Skills,Children & Education Services,Central Eng Coop ,02/03/2016,2.49,Catering Provisions,169999 - Domestic Goods - Not Elsewhere Classified,
Solihull MBC,Children's Services - DSG Schools - Non DMT,Children & Education Services,Central Eng Coop ,07/02/2016,5.57,Meetings & Other Expenses,169999 - Domestic Goods - Not Elsewhere Classified,
Solihull MBC,Communities & Adult Social Care,Adult Social Care,Central Eng Coop ,25/02/2016,8.16,Catering Provisions,169999 - Domestic Goods - Not Elsewhere Classified,
Solihull MBC,Children's Services & Skills,Children & Education Services,Central Eng Coop ,24/02/2016,8.22,Catering Provisions,169999 - Domestic Goods - Not Elsewhere Classified,
Solihull MBC,Children's Services - DSG Schools - Non DMT,Children & Education Services,Central Eng Coop ,24/02/2016,9.55,Meetings & Other Expenses,169999 - Domestic Goods - Not Elsewhere Classified,
Solihull MBC,Children's Services & Skills,Children & Education Services,Central Eng Coop ,10/02/2016,10.46,Catering Provisions,169999 - Domestic Goods - Not Elsewhere Classified,
Solihull MBC,Communities & Adult Social Care,Adult Social Care,Central Eng Coop ,01/03/2016,15.38,Catering Provisions,169999 - Domestic Goods - Not Elsewhere Classified,
Solihull MBC,Children's Services & Skills,Children & Education Services,Central Eng Coop ,09/02/2016,19.98,Catering Provisions,169999 - Domestic Goods - Not Elsewhere Classified,
Solihull MBC,Communities & Adult Social Care,Adult Social Care,Central Eng Coop ,09/02/2016,22.43,Purchase Card Statement Summary,169999 - Domestic Goods - Not Elsewhere Classified,
Solihull MBC,Children's Services - DSG Central.,Children & Education Services,Centro ,26/02/2016,10.00,Clients Transport Costs,209999 - Financial Services - Not Elsewhere Classified,
Solihull MBC,Children's Services - DSG Central.,Children & Education Services,Centro ,26/02/2016,10.00,Clients Transport Costs,209999 - Financial Services - Not Elsewhere Classified,
Solihull MBC,Children's Services - DSG Central.,Children & Education Services,Centro ,26/02/2016,10.00,Clients Transport Costs,209999 - Financial Services - Not Elsewhere Classified,
Solihull MBC,Children's Services - DSG Central.,Children & Education Services,Centro House ,17/02/2016,30.00,Clients Transport Costs,261600 - Human Resources - Travel & Subsistence,
Solihull MBC,Children's Services - DSG Schools - Non DMT,Children & Education Services,Charitychoice.co.uk ,04/02/2016,122.38,Training,201710 - Financial Services - Grants - Charitable,
Solihull MBC,Children's Services - DSG Schools - Non DMT,Children & Education Services,Chelmsley Wood Service St ,12/02/2016,13.33,Meetings & Other Expenses,381100 - Vehicle Management - Fuel,
Solihull MBC,Children's Services - DSG Schools - Non DMT,Children & Education Services,Chelmsley Wood Service St ,25/02/2016,20.00,Vehicle Fuel,381100 - Vehicle Management - Fuel,
Solihull MBC,Children's Services - DSG Schools - Non DMT,Children & Education Services,Chelmsley Wood Service St ,11/02/2016,50.83,Vehicle Fuel,381100 - Vehicle Management - Fuel,
Solihull MBC,Children's Services - DSG Schools - Non DMT,Children & Education Services,Chelmsley Wood Service St ,08/02/2016,63.17,Vehicle Fuel,381100 - Vehicle Management - Fuel,
Solihull MBC,Children's Services - DSG Schools - Non DMT,Children & Education Services,Chelmsley Wood Service St ,01/03/2016,63.88,Vehicle Fuel,381100 - Vehicle Management - Fuel,
Solihull MBC,Managed Growth,Environmental and Regulatory Services,CIEH ,11/02/2016,272.46,Purchase Card Statement Summary,201711 - Financial Services - Grants - Non-charitable,
Solihull MBC,Managed Growth,Environmental and Regulatory Services,City Air Weapons ,19/02/2016,26.65,Purchase Card Statement Summary,331300 - Sports & Playground Equipment & Maintenance - Sports Equipment,
Solihull MBC,Children's Services & Skills,Children & Education Services,Civil Justice Cent ,12/02/2016,200.00,Clients Expenses,209999 - Financial Services - Not Elsewhere Classified,
Solihull MBC,Children's Services - DSG Schools - Non DMT,Children & Education Services,Classrooms ,09/02/2016,173.25,Cleaning / Janitrl Materials,161000 - Domestic Goods - Commercial,
Solihull MBC,Resources,Central Services to the Public,Clickatell Ltd ,12/02/2016,13.60,IT Equipment & Software,271699 - Information Communications Technology - Telecommunications,
Solihull MBC,Resources,Central Services to the Public,Clickatell Ltd ,18/02/2016,13.60,IT Equipment & Software,271699 - Information Communications Technology - Telecommunications,
Solihull MBC,Resources,Central Services to the Public,Clickatell Ltd ,25/02/2016,13.60,IT Equipment & Software,271699 - Information Communications Technology - Telecommunications,
Solihull MBC,Resources,Central Services to the Public,Clickatell Ltd ,10/02/2016,13.60,IT Equipment & Software,271699 - Information Communications Technology - Telecommunications,
Solihull MBC,Children's Services - DSG Schools - Non DMT,Children & Education Services,Columbus Trainline ,09/02/2016,2.00,Training,201800 - Financial Services - Insurance,
Solihull MBC,Resources,Central Services to the Public,Comms Exp ,22/02/2016,863.20,Furniture & Equipment,169999 - Domestic Goods - Not Elsewhere Classified,
Solihull MBC,Resources,Central Services to the Public,Comms Exp ,16/02/2016,912.40,Furniture & Equipment,169999 - Domestic Goods - Not Elsewhere Classified,
Solihull MBC,Children's Services & Skills,Children & Education Services,Completesave.co.uk ,27/02/2016,15.00,Officers Expenses,161000 - Domestic Goods - Commercial,
Solihull MBC,Resources,Children & Education Services,Co-Op Group 070390,31/03/2016,4,Purchase Card Statement Summary,111200 - Catering - Food & Beverages,
Solihull MBC,Children's Services - DSG Schools - Non DMT,Children & Education Services,Co-Op Group 070390 ,08/02/2016,1.50,Catering Provisions,111200 - Catering - Food & Beverages,
Solihull MBC,Resources,Children & Education Services,Co-Op Group 070390 ,26/02/2016,5.18,Catering Provisions,111200 - Catering - Food & Beverages,
Solihull MBC,Children's Services - DSG Schools - Non DMT,Children & Education Services,Corridor ,08/02/2016,107.76,Building Maint Day To Day,102500 - Building Construction Materials - Timber,
Solihull MBC,Communities & Adult Social Care,Cultural & Related Services,CPC ,18/02/2016,79.44,Furniture & Equipment,101100 - Building Construction Materials - Electrical,
Solihull MBC,Children's Services - DSG Schools - Non DMT,Children & Education Services,Crafty Croc ,25/02/2016,20.50,Capitation,171110 - Education - Arts & Crafts,
Solihull MBC,Children's Services - DSG Schools - Non DMT,Children & Education Services,Crafty Croc ,25/02/2016,93.12,Capitation,171110 - Education - Arts & Crafts,
Solihull MBC,Children's Services & Skills,Children & Education Services,Crown Group (UK) Ltd ,17/02/2016,293.00,Clients Expenses,211100 - Furniture & Soft Furnishings - Domestic Furniture,
Solihull MBC,Children's Services - DSG Schools - Non DMT,Children & Education Services,Darlaston Builders Gro ,09/02/2016,7.92,Building Maint Day To Day,379999 - Utilities - Not Elsewhere Classified,
Solihull MBC,Children's Services - DSG Schools - Non DMT,Children & Education Services,Darlaston Builders Gro ,09/02/2016,13.67,Building Maint Day To Day,379999 - Utilities - Not Elsewhere Classified,
Solihull MBC,Children's Services - DSG Schools - Non DMT,Children & Education Services,Darlaston Builders Gro ,12/02/2016,102.22,Building Maint Planned,379999 - Utilities - Not Elsewhere Classified,
Solihull MBC,Communities & Adult Social Care,Cultural & Related Services,Darlow Rosettes Ltd ,02/02/2016,39.18,Furniture & Equipment,161000 - Domestic Goods - Commercial,
Solihull MBC,Children's Services - DSG Schools - Non DMT,Children & Education Services,DC Burgoyne And Sons ,13/02/2016,112.40,Maintenance Of Grounds,381500 - Vehicle Management - Parts,
Solihull MBC,Public Health & Commissioning,Cultural & Related Services,Decathlon UK Ltd ,22/02/2016,177.84,Furniture & Equipment,331300 - Sports & Playground Equipment & Maintenance - Sports Equipment,
Solihull MBC,Children's Services - DSG Schools - Non DMT,Children & Education Services,Decathlon UK Ltd ,09/02/2016,315.93,Capitation,331300 - Sports & Playground Equipment & Maintenance - Sports Equipment,
Solihull MBC,Children's Services - DSG Schools - Non DMT,Children & Education Services,Dennis Publishing ,09/02/2016,258.70,Capitation,349999 - Stationery - Not Elsewhere Classified,
Solihull MBC,Children's Services - DSG Schools - Non DMT,Children & Education Services,Dominos ,01/03/2016,48.58,Capitation,261600 - Human Resources - Travel & Subsistence,
Solihull MBC,Communities & Adult Social Care,Adult Social Care,Don Ruffles Ltd ,16/02/2016,129.00,Furniture & Equipment,341100 - Stationery - Sundries,
Solihull MBC,Communities & Adult Social Care,Adult Social Care,Dunelm Ltd ,29/02/2016,51.38,Furniture & Equipment,211210 - Furniture & Soft Furnishings - Soft Furnishings,
Solihull MBC,Children's Services - DSG Schools - Non DMT,Children & Education Services,E H Smith Bldrs Merchant ,12/02/2016,1.59,Building Maint Day To Day,102500 - Building Construction Materials - Timber,
Solihull MBC,Children's Services - DSG Schools - Non DMT,Children & Education Services,E H Smith Bldrs Merchant ,26/02/2016,3.67,Building Maint Day To Day,102500 - Building Construction Materials - Timber,
Solihull MBC,Children's Services - DSG Schools - Non DMT,Children & Education Services,E H Smith Bldrs Merchant ,15/02/2016,25.27,Building Maint Day To Day,102500 - Building Construction Materials - Timber,
Solihull MBC,Public Health & Commissioning,Adult Social Care,EB Alcohol Research U ,16/02/2016,150.00,Officers Expenses,151000 - Consultancy - Business,
Solihull MBC,Public Health & Commissioning,Children & Education Services,EB Investing In Early ,18/02/2016,158.54,Other Contracted Services,151000 - Consultancy - Business,
Solihull MBC,Children's Services & Skills,Children & Education Services,EB Trans,18/02/2016,174.00,Officers Expenses,151000 - Consultancy - Business,
Solihull MBC,Children's Services - DSG Schools - Non DMT,Children & Education Services,Ebuyer (UK) Ltd ,02/02/2016,13.81,Capitation,169999 - Domestic Goods - Not Elsewhere Classified,
Solihull MBC,Children's Services - DSG Schools - Non DMT,Children & Education Services,Ebuyer (UK) Ltd ,09/02/2016,88.16,IT Equipment & Software,169999 - Domestic Goods - Not Elsewhere Classified,
Solihull MBC,Children's Services - DSG Schools - Non DMT,Children & Education Services,Ebuyer (UK) Ltd ,12/02/2016,824.97,Capitation,169999 - Domestic Goods - Not Elsewhere Classified,
Solihull MBC,Children's Services - DSG Schools - Non DMT,Children & Education Services,Educationumbrella. ,08/02/2016,213.50,Capitation,171114 - Education - Literature,
Solihull MBC,Children's Services - DSG Schools - Non DMT,Children & Education Services,Edwards Bathroom Ltd ,02/03/2016,11.10,Building Maint Day To Day,379999 - Utilities - Not Elsewhere Classified,
Solihull MBC,Children's Services - DSG Schools - Non DMT,Children & Education Services,Edwards Bathroom Ltd ,08/02/2016,104.72,Building Maint Day To Day,379999 - Utilities - Not Elsewhere Classified,
Solihull MBC,Children's Services - DSG Schools - Non DMT,Children & Education Services,Elc-Internet ,26/02/2016,82.49,Capitation,169999 - Domestic Goods - Not Elsewhere Classified,
Solihull MBC,Managed Growth - HRA,Housing Revenue Account,Electric Centre Ltd ,18/02/2016,5.40,Purchase Card Statement Summary,169999 - Domestic Goods - Not Elsewhere Classified,
Solihull MBC,Managed Growth - HRA,Housing Revenue Account,Electric Centre Ltd ,05/02/2016,5.96,Purchase Card Statement Summary,169999 - Domestic Goods - Not Elsewhere Classified,
Solihull MBC,Managed Growth - HRA,Housing Revenue Account,Electric Centre Ltd ,24/02/2016,21.98,Purchase Card Statement Summary,169999 - Domestic Goods - Not Elsewhere Classified,
Solihull MBC,Children's Services - DSG Schools - Non DMT,Children & Education Services,Electrolux ,04/02/2016,27.49,Building Maint Day To Day,161000 - Domestic Goods - Commercial,
Solihull MBC,Public Health & Commissioning,Central Services to the Public,Emap Ltd-Subscriptions ,10/02/2016,188.40,Purchase Card Statement Summary,349999 - Stationery - Not Elsewhere Classified,
Solihull MBC,Communities & Adult Social Care,Cultural & Related Services,Eti Ltd ,09/02/2016,51.00,Furniture & Equipment,111100 - Catering - Equipment & Utensils,
Solihull MBC,Children's Services - DSG Schools - Non DMT,Children & Education Services,Eurocell Building ,19/02/2016,48.31,Building Maint Day To Day,169999 - Domestic Goods - Not Elsewhere Classified,
Solihull MBC,Children's Services - DSG Schools - Non DMT,Children & Education Services,Euroffice.co.uk ,11/02/2016,148.00,Photocopying,341100 - Stationery - Sundries,
Solihull MBC,Managed Growth,Environmental and Regulatory Services,Eurogarages T/A Hobbs Moa ,22/02/2016,41.78,Materials,381100 - Vehicle Management - Fuel,
Solihull MBC,Children's Services - DSG Schools - Non DMT,Children & Education Services,Facebk *Vgwkj8W6A2,31/03/2016,3.51,Purchase Card Statement Summary,191000 - Facilities & Management Services - Advertising,
Solihull MBC,Communities & Adult Social Care,Adult Social Care,Farmfoods- Castle,31/03/2016,34.56,Purchase Card Statement Summary,111200 - Catering - Food & Beverages,
Solihull MBC,Communities & Adult Social Care,Adult Social Care,Farmfoods- Castle,31/03/2016,37.34,Purchase Card Statement Summary,111200 - Catering - Food & Beverages,
Solihull MBC,Children's Services - DSG Schools - Non DMT,Children & Education Services,Farmfoods- Yardley ,10/02/2016,38.88,Cleaning / Janitrl Materials,111200 - Catering - Food & Beverages,
Solihull MBC,Communities & Adult Social Care,Adult Social Care,Fattorini Local ,26/02/2016,-30.36,General Office Expenses,169999 - Domestic Goods - Not Elsewhere Classified,
Solihull MBC,Communities & Adult Social Care,Adult Social Care,Fattorini.1St-Badge ,25/02/2016,30.36,General Office Expenses,161000 - Domestic Goods - Commercial,
Solihull MBC,Communities & Adult Social Care,Adult Social Care,Fattorini.1St-Badge ,25/02/2016,31.08,General Office Expenses,161000 - Domestic Goods - Commercial,
Solihull MBC,Children's Services - DSG Schools - Non DMT,Children & Education Services,Findel Ed Ltd ,03/02/2016,52.78,Capitation,161000 - Domestic Goods - Commercial,
Solihull MBC,Children's Services - DSG Schools - Non DMT,Children & Education Services,Findel Ed Ltd ,03/02/2016,67.98,Capitation,161000 - Domestic Goods - Commercial,
Solihull MBC,Children's Services - DSG Schools - Non DMT,Children & Education Services,Firstaid4Less.co.uk ,26/02/2016,19.30,Health & Safety,161000 - Domestic Goods - Commercial,
Solihull MBC,Children's Services & Skills,Children & Education Services,Flybe       0000000000000 ,15/02/2016,-140.99,Clients Expenses,361300 - Public Transport - Passenger Transport,
Solihull MBC,Children's Services & Skills,Children & Education Services,Flybe       2674068839182 ,12/02/2016,140.99,Clients Expenses,361300 - Public Transport - Passenger Transport,
Solihull MBC,Children's Services & Skills,Children & Education Services,Flybe       2674068982601 ,24/02/2016,357.37,Clients Expenses,361300 - Public Transport - Passenger Transport,
Solihull MBC,Children's Services - DSG Central.,Children & Education Services,Flybe.com   2674068804397 ,09/02/2016,81.48,Car Allowances: Officers,361300 - Public Transport - Passenger Transport,
Solihull MBC,Children's Services & Skills,Children & Education Services,Flybe.com   2674068841535 ,12/02/2016,140.99,Clients Expenses,361300 - Public Transport - Passenger Transport,
Solihull MBC,Managed Growth - HRA,Housing Revenue Account,Fotolia - Wrcn6Q9Bqivm ,01/03/2016,102.00,Purchase Card Statement Summary,191100 - Facilities & Management Services - Design & Photography,
Solihull MBC,Children's Services & Skills,Children & Education Services,Frederick Hyde Ltd ,26/02/2016,23.83,Purchase Card Statement Summary,291110 - Arts & Leisure Services - Professional Musical Instruments,
Solihull MBC,Children's Services - DSG Schools - Non DMT,Children & Education Services,Generator Hostel London L ,22/02/2016,-29.00,Visits & Pupil Activities,261000 - Human Resources - Accommodation,
Solihull MBC,Children's Services - DSG Schools - Non DMT,Children & Education Services,Generator Hostel London L ,22/02/2016,501.00,Visits & Pupil Activities,261000 - Human Resources - Accommodation,
Solihull MBC,Children's Services - DSG Schools - Non DMT,Children & Education Services,Geographical Assoc ,12/02/2016,128.93,Capitation,201710 - Financial Services - Grants - Charitable,
Solihull MBC,Managed Growth,Environmental and Regulatory Services,Giant Marcoms ,17/02/2016,48.21,Furniture & Equipment,349999 - Stationery - Not Elsewhere Classified,
Solihull MBC,Communities & Adult Social Care,Cultural & Related Services,GN&M Ltd ,04/02/2016,36.79,Materials,349999 - Stationery - Not Elsewhere Classified,
Solihull MBC,Children's Services - DSG Schools - Non DMT,Children & Education Services,Graham 3182 ,25/02/2016,6.45,Building Maint Day To Day,102500 - Building Construction Materials - Timber,
Solihull MBC,Children's Services - DSG Schools - Non DMT,Children & Education Services,Grangewood Fencing Suppli ,19/02/2016,61.99,Building Maint Day To Day,249999 - Horticultural - Not Elsewhere Classified,
Solihull MBC,Children's Services - DSG Schools - Non DMT,Children & Education Services,Green Gardener ,25/02/2016,141.56,Capitation,249999 - Horticultural - Not Elsewhere Classified,
Solihull MBC,Children's Services - DSG Schools - Non DMT,Children & Education Services,Greggs - S0485 ,11/02/2016,58.95,Stationery,111200 - Catering - Food & Beverages,
Solihull MBC,Children's Services & Skills,Children & Education Services,GRO HM Passport Office ,01/03/2016,9.25,Officers Expenses,209999 - Financial Services - Not Elsewhere Classified,
Solihull MBC,Children's Services & Skills,Children & Education Services,GRO HM Passport Office ,19/02/2016,23.40,Clients Expenses,209999 - Financial Services - Not Elsewhere Classified,
Solihull MBC,Managed Growth,Planning & Development Services,Growth 2016 ,10/02/2016,270.00,Training,209999 - Financial Services - Not Elsewhere Classified,
Solihull MBC,Communities & Adult Social Care,Cultural & Related Services,Growth Company Inv ,05/02/2016,39.40,Materials,151900 - Consultancy - Management,
Solihull MBC,Communities & Adult Social Care,Cultural & Related Services,Growth Company Inv ,05/02/2016,39.40,Materials,151900 - Consultancy - Management,
Solihull MBC,Communities & Adult Social Care,Cultural & Related Services,Guardian News & Me ,09/02/2016,36.79,Materials,349999 - Stationery - Not Elsewhere Classified,
Solihull MBC,Managed Growth,Highways & Transport Services,GWR Evesham To,31/03/2016,81.4,Purchase Card Statement Summary,261600 - Human Resources - Travel & Subsistence,
Solihull MBC,Managed Growth,Cultural & Related Services,Hal,17/02/2016,4.49,Professional Fees,331300 - Sports & Playground Equipment & Maintenance - Sports Equipment,
Solihull MBC,Managed Growth,Cultural & Related Services,Hal,03/02/2016,17.00,Materials,331300 - Sports & Playground Equipment & Maintenance - Sports Equipment,
Solihull MBC,Managed Growth,Environmental and Regulatory Services,Hal,15/02/2016,32.00,Purchase Card Statement Summary,331300 - Sports & Playground Equipment & Maintenance - Sports Equipment,
Solihull MBC,Managed Growth,Environmental and Regulatory Services,Hal,12/02/2016,40.78,Purchase Card Statement Summary,331300 - Sports & Playground Equipment & Maintenance - Sports Equipment,
Solihull MBC,Children's Services - DSG Schools - Non DMT,Children & Education Services,Harding Electrical Dis ,11/02/2016,60.00,Building Maint Planned,101100 - Building Construction Materials - Electrical,
Solihull MBC,Children's Services - DSG Schools - Non DMT,Children & Education Services,Harding Electrical Dis ,11/02/2016,120.00,Building Maint Planned,101100 - Building Construction Materials - Electrical,
Solihull MBC,Communities & Adult Social Care,Adult Social Care,Hare & Hounds,31/03/2016,5.85,Purchase Card Statement Summary,261600 - Human Resources - Travel & Subsistence,
Solihull MBC,Communities & Adult Social Care,Adult Social Care,Hare & Hounds,31/03/2016,30,Purchase Card Statement Summary,261600 - Human Resources - Travel & Subsistence,
Solihull MBC,Children's Services & Skills,Children & Education Services,Hartlepool BC CNP ,09/02/2016,14.25,Clients Expenses,209999 - Financial Services - Not Elsewhere Classified,
Solihull MBC,Resources,Central Services to the Public,HMCourts-Service.G ,19/02/2016,36.00,Purchase Card Statement Summary,209999 - Financial Services - Not Elsewhere Classified,
Solihull MBC,Resources,Central Services to the Public,HMCourts-Service.G ,05/02/2016,78.00,Purchase Card Statement Summary,209999 - Financial Services - Not Elsewhere Classified,
Solihull MBC,Resources,Central Services to the Public,HMCourts-Service.G ,11/02/2016,171.00,Purchase Card Statement Summary,209999 - Financial Services - Not Elsewhere Classified,
Solihull MBC,Resources,Central Services to the Public,HMCourts-Service.G ,19/02/2016,408.00,Purchase Card Statement Summary,209999 - Financial Services - Not Elsewhere Classified,
Solihull MBC,Resources,Central Services to the Public,HMCourts-Service.G ,05/02/2016,1437.00,Purchase Card Statement Summary,209999 - Financial Services - Not Elsewhere Classified,
Solihull MBC,Children's Services - DSG Schools - Non DMT,Children & Education Services,Hobbycraft (Internet) ,07/02/2016,126.67,Capitation,171110 - Education - Arts & Crafts,
Solihull MBC,Children's Services - DSG Schools - Non DMT,Children & Education Services,Hobbycraft Group L ,27/02/2016,22.50,Visits & Pupil Activities,171110 - Education - Arts & Crafts,
Solihull MBC,Children's Services - DSG Schools - Non DMT,Children & Education Services,Hobbycraft Group L ,20/02/2016,36.67,Capitation,171110 - Education - Arts & Crafts,
Solihull MBC,Children's Services - DSG Schools - Non DMT,Children & Education Services,Hobbycraft Group L ,13/02/2016,37.50,Capitation,171110 - Education - Arts & Crafts,
Solihull MBC,Children's Services - DSG Schools - Non DMT,Children & Education Services,Home Bargains Chelmsle ,05/02/2016,16.09,Furniture & Equipment,101400 - Building Construction Materials - General Materials,
Solihull MBC,Children's Services - DSG Schools - Non DMT,Children & Education Services,Home Bargains Stourbri ,13/02/2016,5.42,Visits & Pupil Activities,101400 - Building Construction Materials - General Materials,
Solihull MBC,Children's Services - DSG Schools - Non DMT,Children & Education Services,Homebase Ltd ,18/02/2016,-97.49,Building Maint Day To Day,102500 - Building Construction Materials - Timber,
Solihull MBC,Children's Services - DSG Schools - Non DMT,Children & Education Services,Homebase Ltd ,18/02/2016,-6.95,Building Maint Day To Day,102500 - Building Construction Materials - Timber,
Solihull MBC,Children's Services - DSG Schools - Non DMT,Children & Education Services,Homebase Ltd ,23/02/2016,27.83,Furniture & Equipment,102500 - Building Construction Materials - Timber,
Solihull MBC,Children's Services - DSG Schools - Non DMT,Children & Education Services,Homebase Ltd ,02/03/2016,58.23,Building Maint Day To Day,102500 - Building Construction Materials - Timber,
Solihull MBC,Children's Services - DSG Schools - Non DMT,Children & Education Services,Homebase Ltd ,11/02/2016,104.44,Building Maint Day To Day,102500 - Building Construction Materials - Timber,
Solihull MBC,Children's Services - DSG Schools - Non DMT,Children & Education Services,Homebase Ltd 039 ,07/02/2016,3.79,Capitation,102500 - Building Construction Materials - Timber,
Solihull MBC,Children's Services - DSG Schools - Non DMT,Children & Education Services,Homebase Ltd 039 ,02/03/2016,4.98,Building Maint Day To Day,102500 - Building Construction Materials - Timber,
Solihull MBC,Children's Services - DSG Schools - Non DMT,Children & Education Services,Homebase Ltd 039 ,29/02/2016,6.76,Catering Provisions,102500 - Building Construction Materials - Timber,
Solihull MBC,Children's Services - DSG Schools - Non DMT,Children & Education Services,Homebase Ltd 039 ,15/02/2016,8.30,Building Maint Day To Day,102500 - Building Construction Materials - Timber,
Solihull MBC,Children's Services - DSG Schools - Non DMT,Children & Education Services,Homebase Ltd 039 ,15/02/2016,8.98,Capitation,102500 - Building Construction Materials - Timber,
Solihull MBC,Children's Services - DSG Schools - Non DMT,Children & Education Services,Homebase Ltd 039 ,02/03/2016,39.98,Building Maint Day To Day,102500 - Building Construction Materials - Timber,
Solihull MBC,Children's Services & Skills,Children & Education Services,Hotelopia.com ,03/02/2016,31.31,Car Allowances: Officers,261000 - Human Resources - Accommodation,
Solihull MBC,Communities & Adult Social Care,Adult Social Care,Hunters Moon ,15/02/2016,27.42,Catering Provisions,261600 - Human Resources - Travel & Subsistence,
Solihull MBC,Children's Services - DSG Schools - Non DMT,Children & Education Services,Iceland,31/03/2016,11,Purchase Card Statement Summary,111200 - Catering - Food & Beverages,
Solihull MBC,Communities & Adult Social Care,Adult Social Care,Iceland,31/03/2016,78.66,Purchase Card Statement Summary,111200 - Catering - Food & Beverages,
Solihull MBC,Communities & Adult Social Care,Adult Social Care,Iceland,31/03/2016,135.91,Purchase Card Statement Summary,111200 - Catering - Food & Beverages,
Solihull MBC,Children's Services - DSG Schools - Non DMT,Children & Education Services,Iceland ,25/02/2016,6.60,Catering Provisions,111200 - Catering - Food & Beverages,
Solihull MBC,Communities & Adult Social Care,Adult Social Care,Iceland ,10/02/2016,9.60,Catering Provisions,111200 - Catering - Food & Beverages,
Solihull MBC,Children's Services - DSG Schools - Non DMT,Children & Education Services,Ikea ,05/02/2016,8.67,Purchase Card Statement Summary,211210 - Furniture & Soft Furnishings - Soft Furnishings,
Solihull MBC,Children's Services - DSG Schools - Non DMT,Children & Education Services,Ikea ,14/02/2016,19.54,Capitation,211210 - Furniture & Soft Furnishings - Soft Furnishings,
Solihull MBC,Children's Services - DSG Schools - Non DMT,Children & Education Services,Ikea ,05/02/2016,82.25,Purchase Card Statement Summary,211210 - Furniture & Soft Furnishings - Soft Furnishings,
Solihull MBC,Communities & Adult Social Care,Central Services to the Public,Ikea Online ,24/02/2016,27.50,Purchase Card Statement Summary,211210 - Furniture & Soft Furnishings - Soft Furnishings,
Solihull MBC,Children's Services - DSG Schools - Non DMT,Children & Education Services,Ikea Online ,12/02/2016,35.08,Capitation,211210 - Furniture & Soft Furnishings - Soft Furnishings,
Solihull MBC,Children's Services - DSG Schools - Non DMT,Children & Education Services,Ikea Online ,22/02/2016,212.50,Furniture & Equipment,211210 - Furniture & Soft Furnishings - Soft Furnishings,
Solihull MBC,Children's Services - DSG Schools - Non DMT,Children & Education Services,Ikea Online ,29/02/2016,216.67,Furniture & Equipment,211210 - Furniture & Soft Furnishings - Soft Furnishings,
Solihull MBC,Communities & Adult Social Care,Central Services to the Public,Ikea Online ,18/02/2016,290.00,Purchase Card Statement Summary,211210 - Furniture & Soft Furnishings - Soft Furnishings,
Solihull MBC,Children's Services - DSG Schools - Non DMT,Children & Education Services,Ikea Sacat ,26/02/2016,83.33,Capitation,211210 - Furniture & Soft Furnishings - Soft Furnishings,
Solihull MBC,Children's Services - DSG Schools - Non DMT,Children & Education Services,Int Craft & Hobby ,02/03/2016,5.00,Capitation,291300 - Arts & Leisure Services - Performing Arts,
Solihull MBC,Children's Services - DSG Schools - Non DMT,Children & Education Services,International Dance ,23/02/2016,31.00,Purchase Card Statement Summary,141000 - Clothing - Children & Adults,
Solihull MBC,Children's Services - DSG Schools - Non DMT,Children & Education Services,International Dance ,23/02/2016,59.10,Capitation,141000 - Clothing - Children & Adults,
Solihull MBC,Managed Growth,Environmental and Regulatory Services,Internetfusion ,12/02/2016,227.06,Purchase Card Statement Summary,331300 - Sports & Playground Equipment & Maintenance - Sports Equipment,
Solihull MBC,Managed Growth,Planning & Development Services,Internetfusion ,02/03/2016,-220.44,Materials,331300 - Sports & Playground Equipment & Maintenance - Sports Equipment,
Solihull MBC,Children's Services - DSG Schools - Non DMT,Children & Education Services,Itunes.com/Bill,31/03/2016,12.25,Purchase Card Statement Summary,171111 - Education - Audio Visual,
Solihull MBC,Children's Services - DSG Schools - Non DMT,Children & Education Services,Itunes.com/Bill ,10/02/2016,0.01,IT Equipment & Software,171111 - Education - Audio Visual,
Solihull MBC,Children's Services - DSG Schools - Non DMT,Children & Education Services,Itunes.com/Bill ,04/02/2016,2.14,Capitation,171111 - Education - Audio Visual,
Solihull MBC,Children's Services - DSG Schools - Non DMT,Children & Education Services,Itunes.com/Bill ,24/02/2016,2.48,IT Equipment & Software,171111 - Education - Audio Visual,
Solihull MBC,Children's Services - DSG Schools - Non DMT,Children & Education Services,Itunes.com/Bill ,01/03/2016,2.99,Software & Services Purchase,171111 - Education - Audio Visual,
Solihull MBC,Children's Services - DSG Schools - Non DMT,Children & Education Services,Itunes.com/Bill ,02/03/2016,3.32,IT Equipment & Software,171111 - Education - Audio Visual,
Solihull MBC,Children's Services - DSG Schools - Non DMT,Children & Education Services,Itunes.com/Bill ,10/02/2016,5.13,IT Equipment & Software,171111 - Education - Audio Visual,
Solihull MBC,Children's Services - DSG Schools - Non DMT,Children & Education Services,Itunes.com/Bill ,11/02/2016,5.26,Capitation,171111 - Education - Audio Visual,
Solihull MBC,Children's Services - DSG Schools - Non DMT,Children & Education Services,Itunes.com/Bill ,04/02/2016,7.63,Capitation,171111 - Education - Audio Visual,
Solihull MBC,Children's Services - DSG Schools - Non DMT,Children & Education Services,Itunes.com/Bill ,04/02/2016,16.86,Capitation,171111 - Education - Audio Visual,
Solihull MBC,Children's Services - DSG Schools - Non DMT,Children & Education Services,Itunes.com/Bill ,01/03/2016,19.00,IT Equipment & Software,171111 - Education - Audio Visual,
Solihull MBC,Children's Services - DSG Schools - Non DMT,Children & Education Services,Itunes.com/Bill ,01/03/2016,62.47,Software & Services Purchase,171111 - Education - Audio Visual,
Solihull MBC,Children's Services - DSG Schools - Non DMT,Children & Education Services,J K Cleaning ,01/03/2016,29.46,Cleaning / Janitrl Materials,169999 - Domestic Goods - Not Elsewhere Classified,
Solihull MBC,Children's Services - DSG Schools - Non DMT,Children & Education Services,J K Cleaning ,24/02/2016,35.46,Cleaning / Janitrl Materials,169999 - Domestic Goods - Not Elsewhere Classified,
Solihull MBC,Children's Services - DSG Schools - Non DMT,Children & Education Services,Jeffries Hardware ,26/02/2016,5.42,Building Maint Day To Day,101400 - Building Construction Materials - General Materials,
Solihull MBC,Children's Services & Skills,Children & Education Services,Jessica Kingsley Publishe,31/03/2016,43.23,Purchase Card Statement Summary,171114 - Education - Literature,
Solihull MBC,Children's Services - DSG Schools - Non DMT,Children & Education Services,Jewson ,25/02/2016,67.63,Capitation,102500 - Building Construction Materials - Timber,
Solihull MBC,Children's Services - DSG Schools - Non DMT,Children & Education Services,JJ Martin Catering Applia ,09/02/2016,330.00,Capitation,301200 - Mail Services - Postage,
Solihull MBC,Children's Services - DSG Central.,Children & Education Services,John Lewis ,04/02/2016,299.21,Materials,169999 - Domestic Goods - Not Elsewhere Classified,
Solihull MBC,Children's Services - DSG Schools - Non DMT,Children & Education Services,Johnstones Dec Centre ,09/02/2016,27.68,Building Maint Day To Day,102100 - Building Construction Materials - Paint & Finishing,
Solihull MBC,Children's Services - DSG Schools - Non DMT,Children & Education Services,JS Online Grocery ,08/02/2016,-9.55,Capitation,111200 - Catering - Food & Beverages,
Solihull MBC,Children's Services - DSG Schools - Non DMT,Children & Education Services,JS Online Grocery ,29/02/2016,-1.80,Capitation,111200 - Catering - Food & Beverages,
Solihull MBC,Children's Services - DSG Schools - Non DMT,Children & Education Services,JS Online Grocery ,08/02/2016,-1.60,Catering Provisions,111200 - Catering - Food & Beverages,
Solihull MBC,Children's Services - DSG Schools - Non DMT,Children & Education Services,JS Online Grocery ,22/02/2016,-1.25,Catering Provisions,111200 - Catering - Food & Beverages,
Solihull MBC,Children's Services - DSG Schools - Non DMT,Children & Education Services,JS Online Grocery ,08/02/2016,1.29,Catering Provisions,111200 - Catering - Food & Beverages,
Solihull MBC,Children's Services - DSG Schools - Non DMT,Children & Education Services,JS Online Grocery ,22/02/2016,7.79,Catering Provisions,111200 - Catering - Food & Beverages,
Solihull MBC,Children's Services - DSG Schools - Non DMT,Children & Education Services,JS Online Grocery ,08/02/2016,8.75,Meetings & Other Expenses,111200 - Catering - Food & Beverages,
Solihull MBC,Children's Services - DSG Schools - Non DMT,Children & Education Services,JS Online Grocery ,08/02/2016,9.79,Capitation,111200 - Catering - Food & Beverages,
Solihull MBC,Children's Services - DSG Schools - Non DMT,Children & Education Services,JS Online Grocery ,22/02/2016,11.62,Capitation,111200 - Catering - Food & Beverages,
Solihull MBC,Children's Services - DSG Schools - Non DMT,Children & Education Services,JS Online Grocery ,08/02/2016,12.46,Catering Provisions,111200 - Catering - Food & Beverages,
Solihull MBC,Children's Services - DSG Schools - Non DMT,Children & Education Services,JS Online Grocery ,29/02/2016,18.46,Capitation,111200 - Catering - Food & Beverages,
Solihull MBC,Children's Services - DSG Schools - Non DMT,Children & Education Services,JS Online Grocery ,15/02/2016,23.54,Catering Provisions,111200 - Catering - Food & Beverages,
Solihull MBC,Children's Services - DSG Schools - Non DMT,Children & Education Services,JS Online Grocery ,08/02/2016,45.36,Postage & Courier Services,111200 - Catering - Food & Beverages,
Solihull MBC,Communities & Adult Social Care,Adult Social Care,JS Online Grocery ,01/03/2016,48.40,Catering Provisions,111200 - Catering - Food & Beverages,
Solihull MBC,Children's Services - DSG Schools - Non DMT,Children & Education Services,JS Online Grocery ,29/02/2016,54.47,Purchase Card Statement Summary,111200 - Catering - Food & Beverages,
Solihull MBC,Children's Services - DSG Schools - Non DMT,Children & Education Services,JS Online Grocery ,08/02/2016,65.85,Purchase Card Statement Summary,111200 - Catering - Food & Beverages,
Solihull MBC,Children's Services - DSG Schools - Non DMT,Children & Education Services,JS Online Grocery ,29/02/2016,72.95,Capitation,111200 - Catering - Food & Beverages,
Solihull MBC,Communities & Adult Social Care,Adult Social Care,JS Online Grocery ,15/02/2016,73.10,Catering Provisions,111200 - Catering - Food & Beverages,
Solihull MBC,Children's Services - DSG Schools - Non DMT,Children & Education Services,JS Online Grocery ,22/02/2016,73.87,Purchase Card Statement Summary,111200 - Catering - Food & Beverages,
Solihull MBC,Children's Services - DSG Schools - Non DMT,Children & Education Services,JS Online Grocery ,23/02/2016,78.26,Capitation,111200 - Catering - Food & Beverages,
Solihull MBC,Children's Services - DSG Schools - Non DMT,Children & Education Services,JS Online Grocery ,15/02/2016,89.87,Purchase Card Statement Summary,111200 - Catering - Food & Beverages,
Solihull MBC,Children's Services - DSG Schools - Non DMT,Children & Education Services,JS Online Grocery ,22/02/2016,101.97,Capitation,111200 - Catering - Food & Beverages,
Solihull MBC,Children's Services - DSG Schools - Non DMT,Children & Education Services,JS Online Grocery ,08/02/2016,112.00,Capitation,111200 - Catering - Food & Beverages,
Solihull MBC,Children's Services - DSG Schools - Non DMT,Children & Education Services,JS Online Grocery ,22/02/2016,116.50,Catering Provisions,111200 - Catering - Food & Beverages,
Solihull MBC,Children's Services - DSG Schools - Non DMT,Children & Education Services,JS Online Grocery ,09/02/2016,117.40,Capitation,111200 - Catering - Food & Beverages,
Solihull MBC,Children's Services - DSG Schools - Non DMT,Children & Education Services,JS Online Grocery ,22/02/2016,118.07,Catering Provisions,111200 - Catering - Food & Beverages,
Solihull MBC,Children's Services - DSG Schools - Non DMT,Children & Education Services,JS Online Grocery ,29/02/2016,124.63,Capitation,111200 - Catering - Food & Beverages,
Solihull MBC,Children's Services - DSG Schools - Non DMT,Children & Education Services,JS Online Grocery ,08/02/2016,125.28,Catering Provisions,111200 - Catering - Food & Beverages,
Solihull MBC,Children's Services - DSG Schools - Non DMT,Children & Education Services,JS Online Grocery ,08/02/2016,129.00,Catering Provisions,111200 - Catering - Food & Beverages,
Solihull MBC,Children's Services - DSG Schools - Non DMT,Children & Education Services,JS Online Grocery ,29/02/2016,130.50,Catering Provisions,111200 - Catering - Food & Beverages,
Solihull MBC,Children's Services - DSG Schools - Non DMT,Children & Education Services,JS Online Grocery ,22/02/2016,130.80,Catering Provisions,111200 - Catering - Food & Beverages,
Solihull MBC,Children's Services - DSG Schools - Non DMT,Children & Education Services,JS Online Grocery ,22/02/2016,131.98,Catering Provisions,111200 - Catering - Food & Beverages,
Solihull MBC,Children's Services - DSG Schools - Non DMT,Children & Education Services,JS Online Grocery ,29/02/2016,147.20,Capitation,111200 - Catering - Food & Beverages,
Solihull MBC,Children's Services - DSG Schools - Non DMT,Children & Education Services,JS Online Grocery ,15/02/2016,161.60,Catering Provisions,111200 - Catering - Food & Beverages,
Solihull MBC,Children's Services - DSG Schools - Non DMT,Children & Education Services,JS Online Grocery ,11/02/2016,163.95,Meetings & Other Expenses,111200 - Catering - Food & Beverages,
Solihull MBC,Children's Services - DSG Schools - Non DMT,Children & Education Services,JS Online Grocery ,08/02/2016,165.56,Meetings & Other Expenses,111200 - Catering - Food & Beverages,
Solihull MBC,Children's Services - DSG Schools - Non DMT,Children & Education Services,JS Online Grocery ,15/02/2016,169.67,Catering Provisions,111200 - Catering - Food & Beverages,
Solihull MBC,Children's Services - DSG Schools - Non DMT,Children & Education Services,JS Online Grocery ,22/02/2016,172.86,Capitation,111200 - Catering - Food & Beverages,
Solihull MBC,Children's Services - DSG Schools - Non DMT,Children & Education Services,JS Online Grocery ,29/02/2016,174.23,Meetings & Other Expenses,111200 - Catering - Food & Beverages,
Solihull MBC,Children's Services - DSG Schools - Non DMT,Children & Education Services,JS Online Grocery ,15/02/2016,185.22,Meetings & Other Expenses,111200 - Catering - Food & Beverages,
Solihull MBC,Children's Services - DSG Schools - Non DMT,Children & Education Services,JS Online Grocery ,08/02/2016,188.65,Capitation,111200 - Catering - Food & Beverages,
Solihull MBC,Children's Services - DSG Schools - Non DMT,Children & Education Services,JS Online Grocery ,08/02/2016,190.5,Catering Provisions,111200 - Catering - Food & Beverages,
Solihull MBC,Children's Services - DSG Schools - Non DMT,Children & Education Services,JS Online Grocery ,29/02/2016,202.85,Catering Provisions,111200 - Catering - Food & Beverages,
Solihull MBC,Children's Services - DSG Schools - Non DMT,Children & Education Services,JS Online Grocery ,22/02/2016,204.35,Meetings & Other Expenses,111200 - Catering - Food & Beverages,
Solihull MBC,Children's Services - DSG Schools - Non DMT,Children & Education Services,JS Online Grocery ,25/02/2016,211.15,Meetings & Other Expenses,111200 - Catering - Food & Beverages,
Solihull MBC,Children's Services - DSG Schools - Non DMT,Children & Education Services,JS Online Grocery ,04/02/2016,225.9,Meetings & Other Expenses,111200 - Catering - Food & Beverages,
Solihull MBC,Resources,Central Services to the Public,KCJonesconf ,26/02/2016,74,Purchase Card Statement Summary,291300 - Arts & Leisure Services - Performing Arts,
Solihull MBC,Children's Services - DSG Schools - Non DMT,Children & Education Services,Kiely Bros Ltd ,09/02/2016,103.33,Building Maint Day To Day,161000 - Domestic Goods - Commercial,
Solihull MBC,Children's Services - DSG Schools - Non DMT,Children & Education Services,Kitronik Ltd ,03/02/2016,131.1,Purchase Card Statement Summary,101100 - Building Construction Materials - Electrical,
Solihull MBC,Children's Services - DSG Schools - Non DMT,Children & Education Services,Lakeland Limited ,14/02/2016,6.58,Visits & Pupil Activities,169999 - Domestic Goods - Not Elsewhere Classified,
Solihull MBC,Children's Services - DSG Schools - Non DMT,Children & Education Services,Lakeland Limited ,18/02/2016,18,Capitation,169999 - Domestic Goods - Not Elsewhere Classified,
Solihull MBC,Managed Growth - HRA,Housing Revenue Account,Lakeside Interiors ,16/02/2016,20,General Debtors,219999 - Furniture & Soft Furnishings - Not Elsewhere Classified,
Solihull MBC,Children's Services - DSG Schools - Non DMT,Children & Education Services,Lamps Direct ,25/02/2016,54.79,IT Equipment & Software,169999 - Domestic Goods - Not Elsewhere Classified,
Solihull MBC,Children's Services - DSG Schools - Non DMT,Children & Education Services,Laserquest ,09/02/2016,14.00,Visits & Pupil Activities,299999 - Arts & Leisure Services - Not Elsewhere Classified,
Solihull MBC,Managed Growth,Environmental and Regulatory Services,Lend Lease Real Estate ,16/02/2016,30.00,Purchase Card Statement Summary,161000 - Domestic Goods - Commercial,
Solihull MBC,Children's Services - DSG Schools - Non DMT,Children & Education Services,Lidl UK ,19/02/2016,40.82,Building Maint Day To Day,111200 - Catering - Food & Beverages,
Solihull MBC,Managed Growth,Highways & Transport Services,London Midland Sel,31/03/2016,10,Purchase Card Statement Summary,261600 - Human Resources - Travel & Subsistence,
Solihull MBC,Managed Growth,Highways & Transport Services,London Midland Sel,31/03/2016,10.1,Purchase Card Statement Summary,261600 - Human Resources - Travel & Subsistence,
Solihull MBC,Managed Growth,Other Housing Services,London Midland Tic ,26/02/2016,3.6,Officers Transport Costs,261600 - Human Resources - Travel & Subsistence,
Solihull MBC,Managed Growth,Highways & Transport Services,London Midland Tic ,25/02/2016,5.4,Furniture & Equipment,261600 - Human Resources - Travel & Subsistence,
Solihull MBC,Managed Growth,Cultural & Related Services,London Midland Tic ,25/02/2016,5.6,Professional Fees,261600 - Human Resources - Travel & Subsistence,
Solihull MBC,Resources,Central Services to the Public,London Midland Tic ,11/02/2016,7.3,Officers Expenses,261600 - Human Resources - Travel & Subsistence,
Solihull MBC,Children's Services & Skills,Children & Education Services,London Midland Tic ,02/03/2016,75,Officers Expenses,261600 - Human Resources - Travel & Subsistence,
Solihull MBC,Children's Services - DSG Central.,Children & Education Services,Love2Shop.co.uk ,01/03/2016,45,Materials,201711 - Financial Services - Grants - Non-charitable,
Solihull MBC,Resources,Central Services to the Public,Lufthansa   2202716610387 ,04/02/2016,12,Purchase Card Statement Summary,369999 - Public Transport - Not Elsewhere Classified,
Solihull MBC,Children's Services - DSG Schools - Non DMT,Children & Education Services,Lyreco UK Ltd ,05/02/2016,281.5,Capitation,341100 - Stationery - Sundries,
Solihull MBC,Managed Growth,Highways & Transport Services,M&J Mahoney & Sons Ltd,31/03/2016,6.24,Purchase Card Statement Summary,102500 - Building Construction Materials - Timber,
Solihull MBC,Managed Growth - HRA,Housing Revenue Account,M&J Mahoney & Sons Ltd ,15/02/2016,4.75,Purchase Card Statement Summary,102500 - Building Construction Materials - Timber,
Solihull MBC,Managed Growth - HRA,Housing Revenue Account,M&J Mahoney & Sons Ltd ,26/02/2016,9.72,Purchase Card Statement Summary,102500 - Building Construction Materials - Timber,
Solihull MBC,Managed Growth - HRA,Housing Revenue Account,M&J Mahoney & Sons Ltd ,15/02/2016,14.32,Purchase Card Statement Summary,102500 - Building Construction Materials - Timber,
Solihull MBC,Managed Growth - HRA,Housing Revenue Account,M&J Mahoney & Sons Ltd ,24/02/2016,16.54,Purchase Card Statement Summary,102500 - Building Construction Materials - Timber,
Solihull MBC,Managed Growth - HRA,Housing Revenue Account,M&J Mahoney & Sons Ltd ,22/02/2016,19.44,Purchase Card Statement Summary,102500 - Building Construction Materials - Timber,
Solihull MBC,Children's Services - DSG Schools - Non DMT,Children & Education Services,M&S E Commerce ,23/02/2016,28,Meetings & Other Expenses,111200 - Catering - Food & Beverages,
Solihull MBC,Children's Services - DSG Schools - Non DMT,Children & Education Services,M&S E Commerce ,08/02/2016,68.50,Meetings & Other Expenses,111200 - Catering - Food & Beverages,
Solihull MBC,Managed Growth,Environmental and Regulatory Services,M6 Toll ,05/02/2016,4.58,Car Allowances: Officers,261600 - Human Resources - Travel & Subsistence,
Solihull MBC,Children's Services & Skills,Children & Education Services,Magazine.co.uk ,22/02/2016,70,General Office Expenses,349999 - Stationery - Not Elsewhere Classified,
Solihull MBC,Children's Services & Skills,Children & Education Services,Man. Airport Car Parks ,09/02/2016,35,Officers Expenses,261600 - Human Resources - Travel & Subsistence,
Solihull MBC,Managed Growth,Highways & Transport Services,Maplin Solihull B91,31/03/2016,33.98,Purchase Card Statement Summary,169999 - Domestic Goods - Not Elsewhere Classified,
Solihull MBC,Children's Services - DSG Schools - Non DMT,Children & Education Services,Maplin Solihull B91 ,08/02/2016,8.32,IT Equipment & Software,169999 - Domestic Goods - Not Elsewhere Classified,
Solihull MBC,Children's Services - DSG Schools - Non DMT,Children & Education Services,Maplin Solihull B91 ,13/02/2016,14.99,IT Equipment & Software,169999 - Domestic Goods - Not Elsewhere Classified,
Solihull MBC,Managed Growth,Environmental and Regulatory Services,Maplin Solihull B91 ,12/02/2016,24.99,Purchase Card Statement Summary,169999 - Domestic Goods - Not Elsewhere Classified,
Solihull MBC,Children's Services - DSG Schools - Non DMT,Children & Education Services,Marks & Spencer ,07/02/2016,11.65,Catering Provisions,111200 - Catering - Food & Beverages,
Solihull MBC,Communities & Adult Social Care,Adult Social Care,Masons Arms ,02/03/2016,3.75,Catering Provisions,261600 - Human Resources - Travel & Subsistence,
Solihull MBC,Children's Services - DSG Schools - Non DMT,Children & Education Services,Maudesport Ltd ,29/02/2016,49.94,Capitation,331300 - Sports & Playground Equipment & Maintenance - Sports Equipment,
Solihull MBC,Children's Services - DSG Schools - Non DMT,Children & Education Services,Maudesport Ltd ,25/02/2016,513.6,Furniture & Equipment,331300 - Sports & Playground Equipment & Maintenance - Sports Equipment,
Solihull MBC,Communities & Adult Social Care,Adult Social Care,McDonalds ,09/02/2016,8.63,Catering Provisions,261600 - Human Resources - Travel & Subsistence,
Solihull MBC,Communities & Adult Social Care,Adult Social Care,Melbicks Garden ,03/02/2016,11.87,Catering Provisions,249999 - Horticultural - Not Elsewhere Classified,
Solihull MBC,Communities & Adult Social Care,Adult Social Care,Midland Business ,09/02/2016,4.98,General Office Expenses,341100 - Stationery - Sundries,
Solihull MBC,Children's Services - DSG Schools - Non DMT,Children & Education Services,Mil/Superstickers- ,03/02/2016,3.9,Capitation,341100 - Stationery - Sundries,
Solihull MBC,Children's Services - DSG Schools - Non DMT,Children & Education Services,Mil/Superstickers- ,25/02/2016,19.97,Capitation,341100 - Stationery - Sundries,
Solihull MBC,Children's Services - DSG Schools - Non DMT,Children & Education Services,Mil/Superstickers- ,02/02/2016,39.35,Capitation,341100 - Stationery - Sundries,
Solihull MBC,Children's Services - DSG Schools - Non DMT,Children & Education Services,Mil/Superstickers- ,10/02/2016,136.41,Capitation,341100 - Stationery - Sundries,
Solihull MBC,Managed Growth,Environmental and Regulatory Services,Millets ,25/02/2016,125,Purchase Card Statement Summary,331300 - Sports & Playground Equipment & Maintenance - Sports Equipment,
Solihull MBC,Children's Services - DSG Schools - Non DMT,Children & Education Services,Monster Skips Ltd ,13/02/2016,158.33,Building Maint Day To Day,219999 - Furniture & Soft Furnishings - Not Elsewhere Classified,
Solihull MBC,Children's Services - DSG Schools - Non DMT,Children & Education Services,Moor Hall Hotel ,06/02/2016,162.5,Training,261000 - Human Resources - Accommodation,
Solihull MBC,Children's Services - DSG Schools - Non DMT,Children & Education Services,Moor Hall Hotel ,06/02/2016,332.92,Training,261000 - Human Resources - Accommodation,
Solihull MBC,Children's Services - DSG Schools - Non DMT,Children & Education Services,Mothercare Direct-E-Co ,23/02/2016,33.33,Capitation,169999 - Domestic Goods - Not Elsewhere Classified,
Solihull MBC,Resources,Central Services to the Public,Mulberry House Ltd ,22/02/2016,49.99,Purchase Card Statement Summary,151000 - Consultancy - Business,
Solihull MBC,Children's Services - DSG Schools - Non DMT,Children & Education Services,N/A Still Contain-Er Prot ,25/02/2016,16.85,Cleaning / Janitrl Materials,141000 - Clothing - Children & Adults,
Solihull MBC,Children's Services - DSG Schools - Non DMT,Children & Education Services,NASBM ,15/02/2016,105,Training,171010 - Education - Adult & Further Education Services,
Solihull MBC,Children's Services - DSG Schools - Non DMT,Children & Education Services,NDNA ,05/02/2016,170,Capitation,201710 - Financial Services - Grants - Charitable,
Solihull MBC,Children's Services - DSG Schools - Non DMT,Children & Education Services,NDNA ,15/02/2016,745,Training,201710 - Financial Services - Grants - Charitable,
Solihull MBC,Children's Services - DSG Schools - Non DMT,Children & Education Services,Newittscom ,25/02/2016,342.49,Capitation,141000 - Clothing - Children & Adults,
Solihull MBC,Communities & Adult Social Care,Adult Social Care,Next Retail Ltd ,09/02/2016,36.05,Purchase Card Statement Summary,141000 - Clothing - Children & Adults,
Solihull MBC,Children's Services - DSG Central.,Children & Education Services,Nisa Supermarket ,29/02/2016,30.75,Clients Transport Costs,111200 - Catering - Food & Beverages,
Solihull MBC,Children's Services - DSG Schools - Non DMT,Children & Education Services,Nochex-Sensory Educati ,25/02/2016,37.63,Capitation,169999 - Domestic Goods - Not Elsewhere Classified,
Solihull MBC,Children's Services & Skills,Children & Education Services,North Solihull Leisure Ce ,05/02/2016,8.6,Other Fees,291400 - Arts & Leisure Services - Sport & Fitness,
Solihull MBC,Children's Services - DSG Schools - Non DMT,Children & Education Services,Norwich Books & Mu,31/03/2016,-13.01,Purchase Card Statement Summary,171114 - Education - Literature,
Solihull MBC,Children's Services - DSG Schools - Non DMT,Children & Education Services,O2 ,24/02/2016,35.66,Telephones,271699 - Information Communications Technology - Telecommunications,
Solihull MBC,Children's Services - DSG Schools - Non DMT,Children & Education Services,O2 UK CCA Payment ,08/02/2016,144.05,Telephones,271699 - Information Communications Technology - Telecommunications,
Solihull MBC,Children's Services - DSG Schools - Non DMT,Children & Education Services,O2 UK Pay & Go ,08/02/2016,10,Telephones,271699 - Information Communications Technology - Telecommunications,
Solihull MBC,Managed Growth,Cultural & Related Services,Outdoorgear ,18/02/2016,86.27,Materials,331300 - Sports & Playground Equipment & Maintenance - Sports Equipment,
Solihull MBC,Children's Services - DSG Central.,Children & Education Services,Paperchase ,05/02/2016,7.56,General Office Expenses,161000 - Domestic Goods - Commercial,
Solihull MBC,Children's Services - DSG Schools - Non DMT,Children & Education Services,Papercut ,22/02/2016,350,IT Equipment & Software,271430 - Information Communication Technology - Software - Commercial Off-The-Shelf,
Solihull MBC,Children's Services & Skills,Children & Education Services,Parentpay.com ,11/02/2016,100,Clients Higher Education & Support,171010 - Education - Adult & Further Education Services,
Solihull MBC,Managed Growth,Environmental and Regulatory Services,Park Mobile ,22/02/2016,1.20,Purchase Card Statement Summary,261600 - Human Resources - Travel & Subsistence,
Solihull MBC,Resources,Central Services to the Public,Park Mobile ,08/02/2016,2.90,Purchase Card Statement Summary,261600 - Human Resources - Travel & Subsistence,
Solihull MBC,Communities & Adult Social Care,Adult Social Care,Parkdean Holiday P ,26/02/2016,169.17,Clients Expenses,291120 - Arts & Leisure Services - Organised Activities,
Solihull MBC,Communities & Adult Social Care,Adult Social Care,Parkdean Holiday P ,26/02/2016,206.38,Clients Expenses,291120 - Arts & Leisure Services - Organised Activities,
Solihull MBC,Children's Services - DSG Schools - Non DMT,Children & Education Services,Party Party ,09/02/2016,10.82,Advertising/Publicity/Promotion,161000 - Domestic Goods - Commercial,
Solihull MBC,Communities & Adult Social Care,Adult Social Care,Pavillion Publishi And ,01/03/2016,26.9,General Office Expenses,161000 - Domestic Goods - Commercial,
Solihull MBC,Children's Services & Skills,Children & Education Services,Paxton Access ,01/03/2016,27.00,Purchase Card Statement Summary,161000 - Domestic Goods - Commercial,
Solihull MBC,Children's Services - DSG Schools - Non DMT,Children & Education Services,Paypal *1000Flags ,05/02/2016,8,Capitation,209999 - Financial Services - Not Elsewhere Classified,
Solihull MBC,Children's Services - DSG Schools - Non DMT,Children & Education Services,Paypal *Alphabetedu ,29/02/2016,129.95,Capitation,171011 - Education - School Services,
Solihull MBC,Children's Services - DSG Schools - Non DMT,Children & Education Services,Paypal *Angieday2 ,18/02/2016,7.2,Capitation,161000 - Domestic Goods - Commercial,
Solihull MBC,Children's Services - DSG Schools - Non DMT,Children & Education Services,Paypal *Bakerrossli ,23/02/2016,41.67,Capitation,171117 - Education - Toys,
Solihull MBC,Children's Services - DSG Schools - Non DMT,Children & Education Services,Paypal *Barriersdir ,25/02/2016,352.38,Cleaning / Janitrl Materials,241000 - Horticultural - Chemicals,
Solihull MBC,Children's Services - DSG Central.,Children & Education Services,Paypal *Connectingw ,26/02/2016,88.86,Professional Fees,151900 - Consultancy - Management,
Solihull MBC,Children's Services - DSG Schools - Non DMT,Children & Education Services,Paypal *Crafty Croc ,23/02/2016,52.33,Capitation,171110 - Education - Arts & Crafts,
Solihull MBC,Children's Services - DSG Schools - Non DMT,Children & Education Services,Paypal *Crownsuppli ,16/02/2016,23.94,Health & Safety,191000 - Facilities & Management Services - Advertising,
Solihull MBC,Children's Services - DSG Schools - Non DMT,Children & Education Services,Paypal *Curtiswardl ,12/02/2016,32.3,Capitation,171110 - Education - Arts & Crafts,
Solihull MBC,Children's Services - DSG Schools - Non DMT,Children & Education Services,Paypal *Diamantecra ,12/02/2016,14.54,Capitation,141000 - Clothing - Children & Adults,
Solihull MBC,Children's Services - DSG Schools - Non DMT,Children & Education Services,Paypal *Easyshoplim ,05/02/2016,17.98,Health & Safety,211210 - Furniture & Soft Furnishings - Soft Furnishings,
Solihull MBC,Children's Services - DSG Schools - Non DMT,Children & Education Services,Paypal *Elainebentl ,05/02/2016,3.99,Capitation,169999 - Domestic Goods - Not Elsewhere Classified,
Solihull MBC,Children's Services - DSG Schools - Non DMT,Children & Education Services,Paypal *Fruitsaladr ,05/02/2016,3.94,Capitation,161000 - Domestic Goods - Commercial,
Solihull MBC,Children's Services - DSG Schools - Non DMT,Children & Education Services,Paypal *Gribblybugs ,22/02/2016,20.8,Capitation,169999 - Domestic Goods - Not Elsewhere Classified,
Solihull MBC,Children's Services - DSG Schools - Non DMT,Children & Education Services,Paypal *Insect Lore ,22/02/2016,2.5,Capitation,171117 - Education - Toys,
Solihull MBC,Children's Services - DSG Schools - Non DMT,Children & Education Services,Paypal *Insect Lore ,24/02/2016,24.96,Capitation,171117 - Education - Toys,
Solihull MBC,Children's Services - DSG Schools - Non DMT,Children & Education Services,Paypal *Johnlawrenc ,05/02/2016,72.97,Capitation,171110 - Education - Arts & Crafts,
Solihull MBC,Children's Services - DSG Schools - Non DMT,Children & Education Services,Paypal *Kath Bailes ,05/02/2016,5.99,Capitation,171110 - Education - Arts & Crafts,
Solihull MBC,Children's Services - DSG Schools - Non DMT,Children & Education Services,Paypal *Kavyaenterp ,16/02/2016,17.94,Health & Safety,111200 - Catering - Food & Beverages,
Solihull MBC,Resources,Central Services to the Public,Paypal *Kirwinmacle ,08/02/2016,52.71,Purchase Card Statement Summary,171114 - Education - Literature,
Solihull MBC,Children's Services - DSG Schools - Non DMT,Children & Education Services,Paypal *Phonicsplay ,10/02/2016,10,Capitation,171040 - Education - Educational Placements,
Solihull MBC,Children's Services - DSG Schools - Non DMT,Children & Education Services,Paypal *Phonicsplay ,10/02/2016,10,Capitation,171040 - Education - Educational Placements,
Solihull MBC,Children's Services - DSG Schools - Non DMT,Children & Education Services,Paypal *Phonicsplay ,10/02/2016,10,Capitation,171040 - Education - Educational Placements,
Solihull MBC,Children's Services - DSG Schools - Non DMT,Children & Education Services,Paypal *Phonicsplay ,10/02/2016,10,Capitation,171040 - Education - Educational Placements,
Solihull MBC,Children's Services - DSG Schools - Non DMT,Children & Education Services,Paypal *Phonicsplay ,12/02/2016,120,Software Licenses & Support,171040 - Education - Educational Placements,
Solihull MBC,Resources,Central Services to the Public,Paypal *Psapartsltd ,12/02/2016,58.78,IT Equipment & Software,169999 - Domestic Goods - Not Elsewhere Classified,
Solihull MBC,Resources,Central Services to the Public,Paypal *Psapartsltd ,03/02/2016,146.5,IT Equipment & Software,169999 - Domestic Goods - Not Elsewhere Classified,
Solihull MBC,Managed Growth,Planning & Development Services,Paypal *Rtpi ,04/02/2016,58,Professional Fees,201710 - Financial Services - Grants - Charitable,
Solihull MBC,Children's Services - DSG Schools - Non DMT,Children & Education Services,Paypal *Showracismr ,04/02/2016,30,Capitation,171040 - Education - Educational Placements,
Solihull MBC,Children's Services - DSG Schools - Non DMT,Children & Education Services,Paypal *Speechmarkp ,23/02/2016,5,Capitation,349999 - Stationery - Not Elsewhere Classified,
Solihull MBC,Children's Services - DSG Schools - Non DMT,Children & Education Services,Paypal *Speechmarkp ,23/02/2016,36.79,Capitation,349999 - Stationery - Not Elsewhere Classified,
Solihull MBC,Children's Services & Skills,Children & Education Services,Paypal *Trainline ,22/02/2016,364.3,Internal Transport/Car Park Passes,261600 - Human Resources - Travel & Subsistence,
Solihull MBC,Children's Services - DSG Schools - Non DMT,Children & Education Services,Paypal *Universalsi ,18/02/2016,0.99,Capitation,191000 - Facilities & Management Services - Advertising,
Solihull MBC,Children's Services & Skills,Children & Education Services,Paypal *Web Hosting ,17/02/2016,88.39,IT Equipment & Software,279999 - Information Communications Technology - Not Elsewhere Classified,
Solihull MBC,Children's Services - DSG Schools - Non DMT,Children & Education Services,Paypal *West10UK ,18/02/2016,1.25,Health & Safety,161000 - Domestic Goods - Commercial,
Solihull MBC,Children's Services - DSG Schools - Non DMT,Children & Education Services,Paypal *Wilkoretail ,02/03/2016,30.87,Building Maint Day To Day,241000 - Horticultural - Chemicals,
Solihull MBC,Children's Services - DSG Schools - Non DMT,Children & Education Services,Peter Coates (Alrewas) ,03/02/2016,3,Capitation,111200 - Catering - Food & Beverages,
Solihull MBC,Children's Services - DSG Schools - Non DMT,Children & Education Services,Pets At Home Ltd ,18/02/2016,19.5,Capitation,199999 - Facilities & Management Services - Not Elsewhere Classified,
Solihull MBC,Communities & Adult Social Care,Central Services to the Public,Plasticonline.couk ,25/02/2016,25.14,Purchase Card Statement Summary,169999 - Domestic Goods - Not Elsewhere Classified,
Solihull MBC,Communities & Adult Social Care,Central Services to the Public,Plasticonline.couk ,25/02/2016,25.52,Purchase Card Statement Summary,169999 - Domestic Goods - Not Elsewhere Classified,
Solihull MBC,Communities & Adult Social Care,Cultural & Related Services,Poetry Society ,05/02/2016,50,Materials,171114 - Education - Literature,
Solihull MBC,Children's Services - DSG Schools - Non DMT,Children & Education Services,Portable Universe ,15/02/2016,760,Capitation,271200 - Information Communications Technology - Hardware,
Solihull MBC,Children's Services - DSG Schools - Non DMT,Children & Education Services,Portable Universe ,12/02/2016,1620,Capitation,271200 - Information Communications Technology - Hardware,
Solihull MBC,Children's Services - DSG Schools - Non DMT,Children & Education Services,Post Office Counter,31/03/2016,2.99,Purchase Card Statement Summary,301200 - Mail Services - Postage,
Solihull MBC,Children's Services - DSG Schools - Non DMT,Children & Education Services,Post Office Counter,31/03/2016,5.53,Purchase Card Statement Summary,301200 - Mail Services - Postage,
Solihull MBC,Resources,Children & Education Services,Post Office Counter,31/03/2016,266.4,Purchase Card Statement Summary,301200 - Mail Services - Postage,
Solihull MBC,Children's Services - DSG Schools - Non DMT,Children & Education Services,Post Office Counter ,29/02/2016,7.25,Postage & Courier Services,301200 - Mail Services - Postage,
Solihull MBC,Children's Services - DSG Schools - Non DMT,Children & Education Services,Post Office Counter ,06/02/2016,7.56,Postage & Courier Services,301200 - Mail Services - Postage,
Solihull MBC,Children's Services - DSG Schools - Non DMT,Children & Education Services,Post Office Counter ,16/02/2016,14.85,Postage & Courier Services,301200 - Mail Services - Postage,
Solihull MBC,Children's Services - DSG Schools - Non DMT,Children & Education Services,Post Office Counter ,19/02/2016,15.12,Postage & Courier Services,301200 - Mail Services - Postage,
Solihull MBC,Managed Growth,Environmental and Regulatory Services,Post Office Counter ,01/03/2016,26.6,Purchase Card Statement Summary,301200 - Mail Services - Postage,
Solihull MBC,Children's Services - DSG Schools - Non DMT,Children & Education Services,Post Office Counter ,09/02/2016,54,Postage & Courier Services,301200 - Mail Services - Postage,
Solihull MBC,Children's Services - DSG Schools - Non DMT,Children & Education Services,Post Office Counter ,17/02/2016,79.43,Postage & Courier Services,301200 - Mail Services - Postage,
Solihull MBC,Children's Services & Skills,Children & Education Services,Post Office Counter ,08/02/2016,80,Materials,301200 - Mail Services - Postage,
Solihull MBC,Children's Services - DSG Schools - Non DMT,Children & Education Services,Poundland ,24/02/2016,9.17,Capitation,169999 - Domestic Goods - Not Elsewhere Classified,
Solihull MBC,Children's Services - DSG Schools - Non DMT,Children & Education Services,Poundland Ltd ,02/03/2016,5,Capitation,169999 - Domestic Goods - Not Elsewhere Classified,
Solihull MBC,Children's Services - DSG Schools - Non DMT,Children & Education Services,Poundland Ltd ,06/02/2016,38,Capitation,169999 - Domestic Goods - Not Elsewhere Classified,
Solihull MBC,Children's Services - DSG Schools - Non DMT,Children & Education Services,Poundland Ltd 1080 ,21/02/2016,2,Capitation,169999 - Domestic Goods - Not Elsewhere Classified,
Solihull MBC,Children's Services - DSG Schools - Non DMT,Children & Education Services,Poundland Ltd 1407 ,13/02/2016,22.54,Visits & Pupil Activities,169999 - Domestic Goods - Not Elsewhere Classified,
Solihull MBC,Children's Services - DSG Schools - Non DMT,Children & Education Services,Poundland Ltd 1553 ,27/02/2016,34.15,Capitation,169999 - Domestic Goods - Not Elsewhere Classified,
Solihull MBC,Children's Services - DSG Schools - Non DMT,Children & Education Services,Poundland Ltd 1713 ,06/02/2016,3,Capitation,169999 - Domestic Goods - Not Elsewhere Classified,
Solihull MBC,Children's Services - DSG Schools - Non DMT,Children & Education Services,Poundland Ltd 1713 ,27/02/2016,6,Capitation,169999 - Domestic Goods - Not Elsewhere Classified,
Solihull MBC,Children's Services - DSG Schools - Non DMT,Children & Education Services,Poundland Ltd 1713 ,10/02/2016,6.67,Capitation,169999 - Domestic Goods - Not Elsewhere Classified,
Solihull MBC,Communities & Adult Social Care,Adult Social Care,Poundstretcher 655 ,13/02/2016,10,Other Premise Costs,211210 - Furniture & Soft Furnishings - Soft Furnishings,
Solihull MBC,Children's Services & Skills,Children & Education Services,Poundworld Retail ,22/02/2016,8,Materials,169999 - Domestic Goods - Not Elsewhere Classified,
Solihull MBC,Children's Services & Skills,Children & Education Services,Powerleague Birmingham ,24/02/2016,18,Other Fees,291400 - Arts & Leisure Services - Sport & Fitness,
Solihull MBC,Children's Services - DSG Schools - Non DMT,Children & Education Services,Pp*Simsvintage ,05/02/2016,67,Furniture & Equipment,211100 - Furniture & Soft Furnishings - Domestic Furniture,
Solihull MBC,Children's Services & Skills,Children & Education Services,Prestige Taxis Ltd ,29/02/2016,33,Clients Expenses,361300 - Public Transport - Passenger Transport,
Solihull MBC,Resources,Central Services to the Public,Prk Mailbox B'ham UPT ,16/02/2016,6.5,Purchase Card Statement Summary,261600 - Human Resources - Travel & Subsistence,
Solihull MBC,Resources,Central Services to the Public,Prk Mailbox B'ham UPT ,26/02/2016,16,Purchase Card Statement Summary,261600 - Human Resources - Travel & Subsistence,
Solihull MBC,Children's Services - DSG Schools - Non DMT,Children & Education Services,Promotional Prod ,08/02/2016,65,Meetings & Other Expenses,141000 - Clothing - Children & Adults,
Solihull MBC,Resources,Central Services to the Public,Prontaprint Solihull ,12/02/2016,24,Purchase Card Statement Summary,349999 - Stationery - Not Elsewhere Classified,
Solihull MBC,Resources,Central Services to the Public,Prontaprint Solihull ,12/02/2016,40,Purchase Card Statement Summary,349999 - Stationery - Not Elsewhere Classified,
Solihull MBC,Managed Growth,Environmental and Regulatory Services,Przcharge.Prezi.com ,03/02/2016,227.98,Purchase Card Statement Summary,271200 - Information Communications Technology - Hardware,
Solihull MBC,Communities & Adult Social Care,Adult Social Care,Ramada Solihull ,16/02/2016,201,General Office Expenses,261000 - Human Resources - Accommodation,
Solihull MBC,Resources,Other Housing Services,Ravenhurst ,17/02/2016,260,Clients Expenses,261000 - Human Resources - Accommodation,
Solihull MBC,Children's Services - DSG Schools - Non DMT,Children & Education Services,Reception ,19/02/2016,10,Capitation,101400 - Building Construction Materials - General Materials,
Solihull MBC,Communities & Adult Social Care,Adult Social Care,Reduction In Delivery Charges ,23/02/2016,-3.36,Purchase Card Statement Summary,161100 - Domestic Goods - Industrial,
Solihull MBC,Resources,Children & Education Services,Revital Health Sho,31/03/2016,4.3,Purchase Card Statement Summary,161000 - Domestic Goods - Commercial,
Solihull MBC,Resources,Children & Education Services,Revital Health Sho,31/03/2016,7.4,Purchase Card Statement Summary,161000 - Domestic Goods - Commercial,
Solihull MBC,Resources,Children & Education Services,Revital Health Sho,31/03/2016,9.09,Purchase Card Statement Summary,161000 - Domestic Goods - Commercial,
Solihull MBC,Resources,Planning & Development Services,RICS Subs UK Cybs ,23/02/2016,509,Grant & Subscription (SCITT),201711 - Financial Services - Grants - Non-charitable,
Solihull MBC,Communities & Adult Social Care,Central Services to the Public,Robert Dyas Holdng Ltd ,18/02/2016,19.99,Purchase Card Statement Summary,101400 - Building Construction Materials - General Materials,
Solihull MBC,Managed Growth,Cultural & Related Services,Rockwell Sheet Sales L ,02/03/2016,14.73,Purchase Card Statement Summary,102500 - Building Construction Materials - Timber,
Solihull MBC,Managed Growth,Cultural & Related Services,Rockwell Sheet Sales L ,02/03/2016,60.37,Materials,102500 - Building Construction Materials - Timber,
Solihull MBC,Managed Growth,Cultural & Related Services,Rockwell Sheet Sales L ,18/02/2016,86.07,Materials,102500 - Building Construction Materials - Timber,
Solihull MBC,Children's Services & Skills,Children & Education Services,Royal Mail ,29/02/2016,284,Postage & Courier Services,301200 - Mail Services - Postage,
Solihull MBC,Children's Services - DSG Schools - Non DMT,Children & Education Services,Royal Mail Fees ,11/02/2016,48.6,Postage & Courier Services,301200 - Mail Services - Postage,
Solihull MBC,Communities & Adult Social Care,Adult Social Care,Royle Household ,23/02/2016,9.9,Purchase Card Statement Summary,101400 - Building Construction Materials - General Materials,
Solihull MBC,Public Health & Commissioning,Cultural & Related Services,S ,29/02/2016,75.53,Furniture & Equipment,301200 - Mail Services - Postage,
Solihull MBC,Children's Services - DSG Schools - Non DMT,Children & Education Services,Sacat Marks & Spencer ,25/02/2016,0.89,Meetings & Other Expenses,111200 - Catering - Food & Beverages,
Solihull MBC,Children's Services - DSG Schools - Non DMT,Children & Education Services,Sainsbury's ,11/02/2016,1.75,Capitation,111200 - Catering - Food & Beverages,
Solihull MBC,Children's Services - DSG Schools - Non DMT,Children & Education Services,Sainsbury's ,11/02/2016,10,Capitation,111200 - Catering - Food & Beverages,
Solihull MBC,Public Health & Commissioning,Adult Social Care,Sainsbury's ,08/02/2016,22.1,General Office Expenses,111200 - Catering - Food & Beverages,
Solihull MBC,Communities & Adult Social Care,Adult Social Care,Sainsbury's S/mkt,31/03/2016,30.35,Purchase Card Statement Summary,111200 - Catering - Food & Beverages,
Solihull MBC,Communities & Adult Social Care,Adult Social Care,Sainsbury's S/mkt,31/03/2016,31.55,Purchase Card Statement Summary,111200 - Catering - Food & Beverages,
Solihull MBC,Communities & Adult Social Care,Adult Social Care,Sainsbury's S/mkt,31/03/2016,37.8,Purchase Card Statement Summary,111200 - Catering - Food & Beverages,
Solihull MBC,Communities & Adult Social Care,Adult Social Care,Sainsbury's S/mkt,31/03/2016,49.35,Purchase Card Statement Summary,111200 - Catering - Food & Beverages,
Solihull MBC,Resources,Children & Education Services,Sainsburys S/mkt ,12/02/2016,33.65,Catering Provisions,111200 - Catering - Food & Beverages,
Solihull MBC,Resources,Children & Education Services,Sainsbury's S/mkt ,01/03/2016,3,Catering Provisions,111200 - Catering - Food & Beverages,
Solihull MBC,Resources,Children & Education Services,Sainsbury's S/mkt ,01/03/2016,3.6,Purchase Card Statement Summary,111200 - Catering - Food & Beverages,
Solihull MBC,Children's Services - DSG Schools - Non DMT,Children & Education Services,Sainsbury's S/mkt ,25/02/2016,5.1,Catering Provisions,111200 - Catering - Food & Beverages,
Solihull MBC,Resources,Children & Education Services,Sainsbury's S/mkt ,07/02/2016,7.56,Purchase Card Statement Summary,111200 - Catering - Food & Beverages,
Solihull MBC,Communities & Adult Social Care,Adult Social Care,Sainsbury's S/mkt ,08/02/2016,9,Cleaning,111200 - Catering - Food & Beverages,
Solihull MBC,Children's Services - DSG Schools - Non DMT,Children & Education Services,Sainsbury's S/mkt ,01/03/2016,13,Catering Provisions,111200 - Catering - Food & Beverages,
Solihull MBC,Children's Services - DSG Schools - Non DMT,Children & Education Services,Sainsbury's S/mkt ,27/02/2016,13.1,Meetings & Other Expenses,111200 - Catering - Food & Beverages,
Solihull MBC,Children's Services - DSG Schools - Non DMT,Children & Education Services,Sainsbury's S/mkt ,11/02/2016,14.75,Meetings & Other Expenses,111200 - Catering - Food & Beverages,
Solihull MBC,Children's Services - DSG Schools - Non DMT,Children & Education Services,Sainsbury's S/mkt ,01/03/2016,15.35,Capitation,111200 - Catering - Food & Beverages,
Solihull MBC,Children's Services - DSG Schools - Non DMT,Children & Education Services,Sainsbury's S/mkt ,22/02/2016,16.45,Capitation,111200 - Catering - Food & Beverages,
Solihull MBC,Children's Services - DSG Schools - Non DMT,Children & Education Services,Sainsbury's S/mkt ,10/02/2016,17.25,Purchase Card Statement Summary,111200 - Catering - Food & Beverages,
Solihull MBC,Children's Services - DSG Schools - Non DMT,Children & Education Services,Sainsbury's S/mkt ,20/02/2016,17.55,Capitation,111200 - Catering - Food & Beverages,
Solihull MBC,Communities & Adult Social Care,Adult Social Care,Sainsbury's S/mkt ,15/02/2016,19.10,Catering Provisions,111200 - Catering - Food & Beverages,
Solihull MBC,Children's Services - DSG Schools - Non DMT,Children & Education Services,Sainsbury's S/mkt ,08/02/2016,19.65,Catering Provisions,111200 - Catering - Food & Beverages,
Solihull MBC,Children's Services - DSG Schools - Non DMT,Children & Education Services,Sainsbury's S/mkt ,26/02/2016,20,Meetings & Other Expenses,111200 - Catering - Food & Beverages,
Solihull MBC,Children's Services - DSG Schools - Non DMT,Children & Education Services,Sainsbury's S/mkt ,18/02/2016,24.05,Catering Provisions,111200 - Catering - Food & Beverages,
Solihull MBC,Communities & Adult Social Care,Adult Social Care,Sainsbury's S/mkt ,17/02/2016,25.15,Cleaning,111200 - Catering - Food & Beverages,
Solihull MBC,Communities & Adult Social Care,Adult Social Care,Sainsbury's S/mkt ,08/02/2016,41.36,Catering Provisions,111200 - Catering - Food & Beverages,
